Workbook

Sheet Line Item Diabetes (hidden)
A1: Unique Key | B1: Diagnosis Code (ICD-9) | C1: CPT©, HCPCS, or Other Billing Code | D1: Provider Type | E1: Category | F1: Descriptor | G1: Allowed Amount | H1: Notes
A2: 1 | B2: 250.00, V58.66, V58.67 | C2: 2803101 | D2: Pharmacy Retail | E2: Pharmacy | F2: Glucagon Emergency Kit | G2: 153
A3: 2 | B3: 250.00, V58.66, V58.67 | C3: 36415 | D3: Primary | E3: Laboratory tests | F3: Routine Venipuncture | G3: 4.131255056
A4: 3 | B4: 250.00, V58.66, V58.67 | C4: 53885014201 | D4: Pharmacy Retail | E4: Medical equipment and supplies | F4: OneTouch Delica Lancing Device | G4: 18
A5: 4 | B5: 250.00, V58.66, V58.67 | C5: 53885024510 | D5: Pharmacy Retail | E5: Medical equipment and supplies | F5: OneTouch Ultra Blue Test Strips (Rx - box of 100) [usage = 2 strips/day; 60 per month] | G5: 123.6
A6: 5 | B6: 250.00, V58.66, V58.67 | C6: 53885039310 | D6: Pharmacy Retail | E6: Medical equipment and supplies | F6: OneTouch Delica Lancets (100 per box) [usage = 60 lancets per month] | G6: 9
A7: 6 | B7: 250.00, V58.66, V58.67 | C7: 53885041601 | D7: Pharmacy Retail | E7: Medical equipment and supplies | F7: OneTouch Ultra Control Solution (2 vials/box) | G7: 6.02
A8: 7 | B8: 250.00, V58.66, V58.67 | C8: 53885044801 | D8: Pharmacy Retail | E8: Medical equipment and supplies | F8: OneTouch Ultra 2 Blood Glucose Meter Kit | G8: 66
A9: 8 | B9: 250.00, V58.66, V58.67 | C9: 80053 | D9: Primary | E9: Laboratory tests | F9: Comprehen Metabolic Panel | G9: 18.13034815
A10: 9 | B10: 250.00, V58.66, V58.67 | C10: 80061 | D10: Primary | E10: Laboratory tests | F10: Lipid panel | G10: 19.23449198
A11: 10 | B11: 250.00, V58.66, V58.67 | C11: 80069 | D11: Primary | E11: Laboratory tests | F11: Renal Function Panel | G11: 14.30265654
A12: 11 | B12: 250.00, V58.66, V58.67 | C12: 81003 | D12: Primary | E12: Laboratory tests | F12: Urinalysis Auto W/O Scope | G12: 3.178504779
A13: 12 | B13: 250.00, V58.66, V58.67 | C13: 82043 | D13: Primary | E13: Laboratory tests | F13: Microalbumin Quantitative | G13: 8.309651643
A14: 13 | B14: 250.00, V58.66, V58.67 | C14: 82570 | D14: Primary | E14: Laboratory tests | F14: Assay of Urine Creatinine | G14: 7.168646356
A15: 14 | B15: 250.00, V58.66, V58.67 | C15: 8290328279 | D15: Pharmacy Retail | E15: Medical equipment and supplies | F15: BD Ultrafine Insulin Syringes / 30G/ 0.5cc [usage = 30 syringes per month] | G15: 8.4
A16: 15 | B16: 250.00, V58.66, V58.67 | C16: 82947 | D16: Primary | E16: Laboratory tests | F16: Assay Glucose Blood Quant | G16: 6.431760408
A17: 16 | B17: 250.00, V58.66, V58.67 | C17: 83036 | D17: Primary | E17: Laboratory tests | F17: Glycosylated Hemoglobin Test | G17: 14.07436287
A18: 17 | B18: 250.00, V58.66, V58.67 | C18: 88222033 | D18: Pharmacy Retail | E18: Pharmacy | F18: Insulin glargine 100 unit/ml injectable solution (Rx - 10ml vial) [20 units QD; expires 28 days after first use] | G18: 119.2
A19: 18 | B19: 250.00, V58.66, V58.67 | C19: 93104801 | D19: Pharmacy Retail | E19: Pharmacy | F19: Metformin hydrochloride 500mg (Rx) [1 BID; #60 pills/month] | G19: 34.37
A20: 19 | B20: 250.00, V58.66, V58.67 | C20: 93743801 | D20: Pharmacy Retail | E20: Pharmacy | F20: Ramipril 10mg (Rx) [1 QD; #30 pills/month] | G20: 53.81
A21: 20 | B21: 250.00, V58.66, V58.67 | C21: 97803 | D21: Dietician | E21: Office visits & procedures | F21: Med Nutrition Indiv Subseq | G21: 63.12776497
A22: 21 | B22: 250.00, V58.66, V58.67 | C22: 98960 | D22: Diabetes Educator | E22: Office visits & procedures | F22: Self-mgmt educ & train 1 pt | G22: 80.52611289
A23: 22 | B23: 250.00, V58.66, V58.67 | C23: 99204 | D23: Ophthalmology | E23: Office visits & procedures | F23: Office/Outpatient Visit New | G23: 157.6113074 | H23: Annual eye exam
A24: 23 | B24: 250.00, V58.66, V58.67 | C24: 99204 | D24: Podiatry | E24: Office visits & procedures | F24: Office/Outpatient Visit New | G24: 157.6113074 | H24: Annual foot exam
A25: 24 | B25: 250.00, V58.66, V58.67 | C25: 99214 | D25: Primary | E25: Office visits & procedures | F25: Office/Outpatient Visit Est | G25: 102.4735938
A26: 25 | B26: 250.00, V58.66, V58.67 | C26: OTC | D26: Pharmacy Retail | E26: Medical equipment and supplies | F26: Alcohol swabs (OTC - box of 100) [usage = 3 wipes/day; 90 wipes/month] | G26: 3
A27: 26 | B27: 250.00, V58.66, V58.67 | C27: OTC | D27: Pharmacy Retail | E27: Pharmacy | F27: Aspirin 81mg (OTC - bottle 100) [usage = 1 QD; #30 pills per month] | G27: 8
A28: 27 | B28: V03.82 | C28: 90471 | D28: Primary | E28: Vaccines, other preventive | F28: Immunization Admin ADMIN | G28: 13.43657624
A29: 28 | B29: V03.82 | C29: 90472 | D29: Primary | E29: Vaccines, other preventive | F29: Immunization admin each add | G29: 13.43657624
A30: 29 | B30: V03.82 | C30: 90669 | D30: Primary | E30: Vaccines, other preventive | F30: Pneumococcal vacc 7 val im | G30: 98.21815127
A31: 30 | B31: V04.81 | C31: 90656 | D31: Primary | E31: Vaccines, other preventive | F31: Flu Vaccine No Preserv 3 & > | G31: 15.03511905

Sheet Line Item Maternity (hidden)
A1: Unique Key | B1: Diagnosis Code (ICD-9) | C1: CPT©, HCPCS, or Other Billing Code | D1: Provider Type | E1: Category | F1: Descriptor | G1: Allowed Amount | H1: Notes
A2: 1 | C2: 378710401 | D2: Pharmacy Retail | E2: Pharmacy | F2: Oxycodone/APAP 5mg/325mg (Rx) [1 pill Q6H PRN; 15 pills] | G2: 5.21
A3: 2 | C3: 591346601 | D3: Pharmacy Retail | E3: Pharmacy | F3: Ibuprofen 800mg (Rx) [1 pill Q8H PRN; 60 pills] | G3: 17.52
A4: 3 | B4: 650, V27.0 | C4: S9443 | D4: Inpatient Facility | E4: Education | F4: Lactation class | G4: 0 | H4: Included in hospital rate**
A5: 4 | B5: 650, V27.0, Proc: 73.59 | C5: **(DRG) 795 | D5: Inpatient Facility | E5: Hospital charges (baby) | F5: Normal newborn | G5: 851.56
A6: 5 | B6: 650, V27.0, Proc: 73.59 | C6: 1967 | D6: Anesthesiology | E6: Anesthesia | F6: Anesth/analg vag delivery | G6: 905.62
A7: 6 | B7: 650, V27.0, Proc: 73.59 | C7: Bundled in global OB package - 59400 | D7: OBGYN | E7: Routine Obstetric Care | F7: Obstetrical Care | G7: 2084.282905 | H7: 59400 - Global OB package description/code
A8: 7 | C8: OTC | D8: Pharmacy Retail | E8: Pharmacy | F8: Docusate sodium (OTC) [1 pill QD] | G8: 30
A9: 8 | C9: OTC | D9: Pharmacy Retail | E9: Pharmacy | F9: Prenatal Vitamins (OTC - Bottle of 100) [1 pill daily; 30 pills/month] | G9: 30
A10: 9 | C10: S9442 | D10: Alternative Provider | E10: Education | F10: Birthing class | G10: 0
A11: 10 | B11: V04.81 | C11: 90471 | D11: OBGYN | E11: Vaccines, other preventive | F11: Immunization Admin | G11: 20.03871025
A12: 11 | B12: V04.81 | C12: 90656 | D12: OBGYN | E12: Vaccines, other preventive | F12: Flu Vaccine N0 Preserv 3 & > | G12: 15.03511905
A13: 12 | B13: V22.0 | C13: 36415 | D13: OBGYN | E13: Laboratory tests | F13: Routine Venipuncture | G13: 4.131255056 | H13: Cystic fibrosis screen
A14: 13 | B14: V22.0 | C14: 76805 | D14: Radiology | E14: Radiology | F14: OB US >/= 14 WKS SNGL FETUS | G14: 176.1133936
A15: 14 | B15: V22.0 | C15: 80055 | D15: OBGYN | E15: Laboratory tests | F15: Obstetric Panel | G15: 54.23990642 | H15: 80055 - Global OB panel code
A16: 15 | B16: V22.0 | C16: 82105 | D16: OBGYN | E16: Laboratory tests | F16: Alpha-fetoprotein serum | G16: 27.85909003 | H16: Maternal serum quad screen
A17: 16 | B17: V22.0 | C17: 82677 | D17: OBGYN | E17: Laboratory tests | F17: Alssay of estriol | G17: 26.62877662 | H17: Maternal serum quad screen
A18: 17 | B18: V22.0 | C18: 82947 | D18: OBGYN | E18: Laboratory tests | F18: Assay Glucose Blood Quant | G18: 6.431760408
A19: 18 | B19: V22.0 | C19: 82950 | D19: OBGYN | E19: Laboratory tests | F19: Glucose Test | G19: 6.953296518
A20: 19 | B20: V22.0 | C20: 83891 | D20: OBGYN | E20: Laboratory tests | F20: Molecule isolate nucleic | G20: 7.19851449 | H20: Cystic fibrosis screen
A21: 20 | B21: V22.0 | C21: 83900 | D21: OBGYN | E21: Laboratory tests | F21: Molecule nucleic ampli 2 seq | G21: 31.84038095 | H21: Cystic fibrosis screen
A22: 21 | B22: V22.0 | C22: 83901 x13 | D22: OBGYN | E22: Laboratory tests | F22: Molecule nucleic ampli addon | G22: 129.5235263 | H22: Cystic fibrosis screen
A23: 22 | B23: V22.0 | C23: 83909 | D23: OBGYN | E23: Laboratory tests | F23: Nucleic acid high resolute | G23: 18.9766764 | H23: Cystic fibrosis screen
A24: 23 | B24: V22.0 | C24: 83912 | D24: OBGYN | E24: Laboratory tests | F24: Genetic examination | G24: 11.78048983 | H24: Cystic fibrosis screen
A25: 24 | B25: V22.0 | C25: 83914 x32 | D25: OBGYN | E25: Laboratory tests | F25: Mutation ident ola/sbce/aspe | G25: 50.0612434 | H25: Cystic fibrosis screen
A26: 25 | B26: V22.0 | C26: 84702 | D26: OBGYN | E26: Laboratory tests | F26: Chorionic gonadotropin test | G26: 21.47364741 | H26: Maternal serum quad screen
A27: 26 | B27: V22.0 | C27: 85025 | D27: OBGYN | E27: Laboratory tests | F27: Complete cbc w/auto diff wbc | G27: 12.28266297
A28: 27 | B28: V22.0 | C28: 86336 | D28: OBGYN | E28: Laboratory tests | F28: Inhibin A | G28: 22.50259489 | H28: Maternal serum quad screen
A29: 28 | B29: V22.0 | C29: 86701 | D29: OBGYN | E29: Laboratory tests | F29: HIV-1 | G29: 12.935806
A30: 29 | B30: V22.0 | C30: 87653 | D30: OBGYN | E30: Laboratory tests | F30: Strep B DNA Amp Probe | G30: 40.61207081
A31: 30 | B31: V22.0 | C31: 87801 x2 | D31: OBGYN | E31: Laboratory tests | F31: Detect agnt mult dna ampli | G31: 9.447952486 | H31: Gonorrhea / Chlamydia screen
A32: 31 | B32: V22.0 | C32: 88164 | D32: OBGYN | E32: Laboratory tests | F32: Cytopath TBS C/V Manual | G32: 14.73512297 | H32: Pap smear
A33: 32 | B33: V22.0 | C33: Bundled in global OB package - 59400 | D33: OBGYN | E33: Routine Obstetric Care | F33: Office/Outpatient Visit Est | G33: 2084.28
A34: 33 | B34: V24.2 | C34: Bundled in global OB package - 59400 | D34: OBGYN | E34: Routine Obstetric Care | F34: Office/Outpatient Visit Est | G34: 2084.28 | H34: Post partum visit
A35: 34 | B35: V30.00 | C35: **(DRG) 775 | D35: Inpatient Facility | E35: Hospital charges (mother) | F35: Vaginal delivery w/o complicating diagnoses | G35: 2714.26
A36: 35 | B36: V72.42 | C36: 81025 | D36: OBGYN | E36: Laboratory tests | F36: Urine Pregnancy Test | G36: 8.868002624
A37: 36 | D37: Inpatient Facility | E37: Hospital charges (bundle) | F37: Inpatient Maternity Bundle (Bundled line items 4, 5, 34) | G37: =G5+G6+G35 -> 4471.44 | H37: see individual line items on Line Item Maternity tab

Sheet Color Key (hidden)
C3: = Input Data provided by Insurer
C6: = Scenario data provided by HHS
B9: Formula | C9: = Derived from formula

Sheet Starting Screen
B2: Welcome to the Coverage Scenarios Cost Sharing Calculator
B6: All insurer data entry fields will be highlighted in orange:
B8: There are two methods to use this tool:
D11: AUTOMATED | F11: Imported data from a Comma Separated Value (CSV) file
F12: You can process multiple plans at one time with this method
D15: MANUAL | F15: Manually enter information about one plan
D19: How would you like to use the tool? | I19: Automated

Sheet Manual Entry (hidden)
B1: MANUAL ENTRY INSTRUCTIONS | L1: Switch to:
B2: Fill in the coverage details for one plan in the orange cells using numbers only.
B3: If the category is not covered or included in the plan, leave the cell blank.
B4: Click the 'Run the Calculator' button to compute the cost sharing for the scenarios.
J6: Selection | L6: $ OR % | M6: =COUNTIF(M7:M14,"Please enter a value")+COUNTIF(M7:M14,"Please correct") -> 0 | N6: rngShare Type | O6: rngPlanDeduct | P6: Cost_Sharing_List_4
A7: =Share_DME -> No Cost Sharing | C7: COST SHARING | E7: Durable Medical Equipment | J7: =INDEX(Cost_Sharing_List_4,K7) -> No Cost Sharing | K7: 3 | M7: =IF(AND(OR(Share_DME="Coinsurance",Share_DME="Copayment"),Value_DME=""),"Please enter a value",IF(OR(AND(Share_DME="Coinsurance",Value_DME>1),AND(Value_DME<>"",OR(Share_DME="Not Covered",Share_DME="No Cost Sharing"))),"Please correct","")) ->  | N7: rngShareValue | O7: rngPlanLimit | P7: Copayment
A8: =Share_RX -> Copayment | E8: Generic Prescriptions | J8: =INDEX(Cost_Sharing_List_4,K8) -> Copayment | K8: 1 | L8: 10 | M8: =IF(AND(OR(Share_RX="Coinsurance",Share_RX="Copayment"),Value_RX=""),"Please enter a value",IF(OR(AND(Share_RX="Coinsurance",Value_RX>1),AND(Value_RX<>"",OR(Share_RX="Not Covered",Share_RX="No Cost Sharing"))),"Please correct","")) ->  | P8: Coinsurance
A9: =Share_Hospital -> Coinsurance | E9: Hospital Care, Inpatient & Anesthesia | J9: =INDEX(Cost_Sharing_List_4,K9) -> Coinsurance | K9: 2 | L9: 0.3 | M9: =IF(AND(OR(Share_Hospital="Coinsurance",Share_Hospital="Copayment"),Value_Hospital=""),"Please enter a value",IF(OR(AND(Share_Hospital="Coinsurance",Value_Hospital>1),AND(Value_Hospital<>"",OR(Share_Hospital="Not Covered",Share_Hospital="No Cost Sharing"))),"Please correct","")) ->  | N9: Manual_Scenario: | O9: Dia | P9: No Cost Sharing
A10: =Share_Lab -> No Cost Sharing | E10: Laboratory | J10: =INDEX(Cost_Sharing_List_4,K10) -> No Cost Sharing | K10: 3 | M10: =IF(AND(OR(Share_Lab="Coinsurance",Share_Lab="Copayment"),Value_Lab=""),"Please enter a value",IF(OR(AND(Share_Lab="Coinsurance",Value_Lab>1),AND(Value_Lab<>"",OR(Share_Lab="Not Covered",Share_Lab="No Cost Sharing"))),"Please correct","")) ->  | P10: Not Covered
A11: =Share_Rad -> Coinsurance | E11: Radiology (Ultrasound) | J11: =INDEX(Cost_Sharing_List_4,K11) -> Coinsurance | K11: 2 | L11: 0.3 | M11: =IF(AND(OR(Share_Rad="Coinsurance",Share_Rad="Copayment"),Value_Rad=""),"Please enter a value",IF(OR(AND(Share_Rad="Coinsurance",Value_Rad>1),AND(Value_Rad<>"",OR(Share_Rad="Not Covered",Share_Rad="No Cost Sharing"))),"Please correct","")) -> 
A12: =Share_Obst -> Copayment | E12: Routine Obstetric Care (Bundled) | J12: =INDEX(Cost_Sharing_List_5,K12) -> Copayment | K12: 1 | L12: 40 | M12: =IF(AND(OR(Share_Obst="Coinsurance",Share_Obst="Copayment",Share_Obst="Deductible"),Value_Obst=""),"Please enter a value",IF(OR(AND(Share_Obst="Coinsurance",Value_Obst>1),AND(Value_Obst<>"",OR(Share_Obst="Not Covered",Share_Obst="No Cost Sharing"))),"Please correct","")) ->  | O12: rngBal | P12: Cost_Sharing_List_5
A13: =Share_Vaccine -> No Cost Sharing | E13: Vaccine & Preventive | J13: =INDEX(Cost_Sharing_List_4,K13) -> No Cost Sharing | K13: 3 | M13: =IF(AND(OR(Share_Vaccine="Coinsurance",Share_Vaccine="Copayment"),Value_Vaccine=""),"Please enter a value",IF(OR(AND(Share_Vaccine="Coinsurance",Value_Vaccine>1),AND(Value_Vaccine<>"",OR(Share_Vaccine="Not Covered",Share_Vaccine="No Cost Sharing"))),"Please correct","")) ->  | P13: Copayment
A14: =Share_Visit -> Copayment | E14: Visits & Procedures | J14: =INDEX(Cost_Sharing_List_4,K14) -> Copayment | K14: 1 | L14: 40 | M14: =IF(AND(OR(Share_Visit="Coinsurance",Share_Visit="Copayment"),Value_Visit=""),"Please enter a value",IF(OR(AND(Share_Visit="Coinsurance",Value_Visit>1),AND(Value_Visit<>"",OR(Share_Visit="Not Covered",Share_Visit="No Cost Sharing"))),"Please correct","")) ->  | N14: Prior Usage | O14: Balance Remaining | P14: Coinsurance
E15: Individual Out-of-Pocket (OOP) Limit | N15: =INDIRECT(Manual_Scenario&"_Prior_OOP") -> 1512.424746 | O15: =IF(OR(ISBLANK(Value_OOP),Value_OOP=""),0,Value_OOP-Prior_OOP) -> 0 | P15: Deductible
C16: DEDUCTIBLES | E16: Overall Plan Deductible | L16: 1000 | N16: =INDIRECT(Manual_Scenario&"_Prior_Deduct_Overall") -> 999.9999519 | O16: =IF(ISBLANK(Value_Deduct_Overall),0,Value_Deduct_Overall-Prior_Overall) -> 4.814399995e-05 | P16: No Cost Sharing
E17: Durable Medical Equipment | N17: =INDIRECT(Manual_Scenario&"_Prior_Deduct_DME") -> 0 | O17: =IF(ISBLANK(Value_Deduct_DME),0,Value_Deduct_DME-Prior_DME) ->  | P17: Not Covered
E18: Generic RX | L18: 100 | N18: =INDIRECT(Manual_Scenario&"_Prior_Deduct_RX") -> 100 | O18: =IF(ISBLANK(Value_Deduct_RX),0,Value_Deduct_RX-Prior_RX) -> 0
E19: Hospital Care, Inpatient & Anesthesia | N19: =INDIRECT(Manual_Scenario&"_Prior_Deduct_Hospital") -> 0 | O19: =IF(ISBLANK(Value_Deduct_Hospital),0,Value_Deduct_Hospital-Prior_Hospital) -> 
E20: Routine Obstetric Care (Bundled) | L20: =IF(Share_Obst="Deductible",Value_Obst,"") ->  | N20: 0 | O20: =IF(Share_Obst="Deductible",Value_Deduct_Obst,0) -> 0
E21: Vaccine & Preventive | N21: =INDIRECT(Manual_Scenario&"_Prior_Deduct_Vaccine") -> 0 | O21: =IF(ISBLANK(Value_Deduct_Vaccine),0,Value_Deduct_Vaccine-Prior_Vaccine) -> 
C22: LIMITS | D22: MATERNITY | E22: Generic Prescriptions # Limit Per Month | N22: 0 | O22: =IF(Manual_Scenario<>"Mat",0,IF(Manual_Scenario<>"Mat","NA",IF(ISBLANK(Limit_Mat_RX_Month),0,Limit_Mat_RX_Month-Prior_Mat_RX_Month))) -> 0
E23: Generic Prescriptions # Limit Per Year | N23: =IF(Manual_Scenario<>"Mat","",INDIRECT(Manual_Scenario&"_Prior_Limit_RX_Year")) ->  | O23: =IF(Manual_Scenario<>"Mat",0,IF(ISBLANK(Limit_Mat_RX_Yr),0,Limit_Mat_RX_Yr-Prior_Mat_RX_Yr)) -> 0
D24: DIABETES | E24: Generic Prescriptions # Limit Per Month | N24: 0 | O24: =IF(Manual_Scenario<>"Dia",0,IF(ISBLANK(Limit_Dia_RX_Month),"0",Limit_Dia_RX_Month-Prior_Dia_RX_Month)) -> 
E25: Generic Prescriptions # Limit Per Year | N25: =IF(Manual_Scenario<>"Dia","",INDIRECT(Manual_Scenario&"_Prior_Limit_RX_Yr")) -> 0 | O25: =IF(Manual_Scenario<>"Dia",0,IF(ISBLANK(Limit_Dia_RX_Yr),0,Limit_Dia_RX_Yr-Prior_Dia_RX_Yr)) -> 
E26: Durable Medical Equipment # Limit Per Month | N26: 0 | O26: =IF(Manual_Scenario<>"Dia",0,IF(ISBLANK(Limit_Dia_DME_Month),0,Limit_Dia_DME_Month-Prior_Dia_DME_Month)) -> 
E27: Durable Medical Equipment # Limit Per Year | N27: =IF(Manual_Scenario<>"Dia","",INDIRECT(Manual_Scenario&"_Prior_Limit_DME_Yr")) -> 0 | O27: =IF(Manual_Scenario<>"Dia",0,IF(ISBLANK(Limit_Dia_DME_Yr),0,Limit_Dia_DME_Yr-Prior_Dia_DME_Yr)) -> 
E28: Visits & Procedures # Limit Per Year | N28: =IF(Manual_Scenario<>"Dia","",INDIRECT(Manual_Scenario&"_Prior_Limit_Visit_Yr")) -> 0 | O28: =IF(Manual_Scenario<>"Dia",0,IF(ISBLANK(Limit_Dia_Visit_Yr),0,Limit_Dia_Visit_Yr-Prior_Dia_Visit_Yr)) -> 

Sheet Automated Import (hidden)
B1: AUTOMATED IMPORT INSTRUCTIONS | J1: Switch to:
B2: Close any previous CSV files that may be open.
B3: Click the 'Import & Run' button to compute the cost sharing for the different plans and export results to a CSV file.
E9: Process multiple plans from a CSV import file:

Sheet Diabetes Timeline
I1: CATEGORIES | R1: COSTS | AF1: DEDUCTIBLES | AR1: LIMITS
A2: Date of Service | B2: Diabetes Claim Unique Key | C2: Diagnosis Code (ICD-9) | D2: CPT©, HCPCS, or Other Billing Code | E2: Provider Type | F2: Category | G2: Descriptor | H2: Notes | I2: DME | J2: Generic RX | K2: Hospital Care | L2: Lab | M2: Radiology | N2: Obstetric | O2: Vaccines | P2: Visits | Q2: Amount Allowed | R2: Insurer Expense | S2: Running Insurer | T2: Exclusions | U2: Running Excl | V2: Limitations | W2: Running Limit | X2: Deductible | Y2: Running Deduct | Z2: Copayment | AA2: Running Copay | AB2: Coinsurance | AC2: Running Coinsur | AD2: OOP Expense | AE2: Running OOP | AF2: Overall | AG2: Running Overall | AH2: DME | AI2: Running DME | AJ2: Generic RX | AK2: Running RX | AL2: Hospital Care | AM2: Running Hospital | AN2: Obstetric | AO2: Running Obst | AP2: Vaccines | AQ2: Running Vaccine | AR2: Dia RX per month | AS2: Running Dia RX Month | AT2: Dia RX per year | AU2: Running Dia RX Yr | AV2: DME per month | AW2: Running Dia DME Month | AX2: DME per year | AY2: Running Dia DME Yr | AZ2: Visits per year | BA2: Running Visit Yr
A3: 2011-01-03 | B3: 25 | C3: =IF(ISBLANK(VLOOKUP(Dia_Claim,Dia_UniqueLine,2,FALSE)),"",VLOOKUP(Dia_Claim,Dia_UniqueLine,2,FALSE)) -> 250.00, V58.66, V58.67 | D3: =IF(ISBLANK(VLOOKUP(Dia_Claim,Dia_UniqueLine,3,FALSE)),"",VLOOKUP(Dia_Claim,Dia_UniqueLine,3,FALSE)) -> OTC | E3: =IF(ISBLANK(VLOOKUP(Dia_Claim,Dia_UniqueLine,4,FALSE)),"",VLOOKUP(Dia_Claim,Dia_UniqueLine,4,FALSE)) -> Pharmacy Retail | F3: =IF(ISBLANK(VLOOKUP(Dia_Claim,Dia_UniqueLine,5,FALSE)),"",VLOOKUP(Dia_Claim,Dia_UniqueLine,5,FALSE)) -> Medical equipment and supplies | G3: =IF(ISBLANK(VLOOKUP(Dia_Claim,Dia_UniqueLine,6,FALSE)),"",VLOOKUP(Dia_Claim,Dia_UniqueLine,6,FALSE)) -> Alcohol swabs (OTC - box of 100) [usage = 3 wipes/day; 90 wipes/month] | H3: =IF(ISBLANK(VLOOKUP(Dia_Claim,Dia_UniqueLine,8,FALSE)),"",VLOOKUP(Dia_Claim,Dia_UniqueLine,8,FALSE)) ->  | I3: =IF(Dia_Col_Category="Medical equipment and supplies",1,"") -> 1 | J3: =IF(AND(Dia_Col_Category="Pharmacy",Dia_Col_BillCode<>"OTC"),1,"") ->  | K3: =IF(AND(Dia_Col_Category="Anesthesia",Dia_Col_Provider<>"Inpatient facility"),1,"") ->  | L3: =IF(Dia_Col_Category="Laboratory tests",1,"") ->  | M3: =IF(Dia_Col_Category="Radiology",1,"") ->  | N3: =IF(Dia_Col_BillCode="Bundled in global OB package - 59400",1,"") ->  | O3: =IF(Dia_Col_Category="Vaccines, other preventive",1,"") ->  | P3: =IF(Dia_Col_Category="Office visits & procedures",1,"") ->  | Q3: =IF(ISBLANK(VLOOKUP(Dia_Claim,Dia_UniqueLine,7,FALSE)),"",VLOOKUP(Dia_Claim,Dia_UniqueLine,7,FALSE)) -> 3 | S3: =R3 -> 0 | T3: 3 | U3: =T3 -> 3 | W3: =V3 -> 0 | Y3: =X3 -> 0 | AA3: =Z3 -> 0 | AC3: =AB3 -> 0 | AD3: =Dia_Col_Deduct+Dia_Col_Copay+Dia_Col_Coinsur -> 0 | AE3: =AD3 -> 0 | AG3: =AF3 -> 0 | AI3: =AH3 -> 0 | AK3: =AJ3 -> 0 | AM3: =AL3 -> 0 | AO3: =AN3 -> 0 | AQ3: =AP3 -> 0 | AS3: =AR3 -> 0 | AU3: =AT3 -> 0 | AW3: =AV3 -> 0 | AY3: =AX3 -> 0 | BA3: =AZ3 -> 0
A4: 2011-01-03 | B4: 14 | C4: 250.00, V58.66, V58.67 | D4: 8290328279 | E4: Pharmacy Retail | F4: Medical equipment and supplies | G4: BD Ultrafine Insulin Syringes / 30G/ 0.5cc [usage = 30 syringes per month] | I4: 1 | Q4: 8.4 | R4: 8.4 | S4: =R4+S3 -> 8.4 | U4: =T4+U3 -> 3 | W4: =V4+W3 -> 0 | Y4: =X4+Y3 -> 0 | AA4: =Z4+AA3 -> 0 | AC4: =AB4+AC3 -> 0 | AD4: 0 | AE4: =AD4+AE3 -> 0 | AG4: =AF4+AG3 -> 0 | AI4: =AH4+AI3 -> 0 | AK4: =AJ4+AK3 -> 0 | AM4: =AL4+AM3 -> 0 | AO4: =AN4+AO3 -> 0 | AQ4: =AP4+AQ3 -> 0 | AS4: =AR4+AS3 -> 0 | AU4: =AT4+AU3 -> 0 | AW4: =AV4+AW3 -> 0 | AY4: =AX4+AY3 -> 0 | BA4: =AZ4+BA3 -> 0
A5: 2011-01-03 | B5: 5 | C5: 250.00, V58.66, V58.67 | D5: 53885039310 | E5: Pharmacy Retail | F5: Medical equipment and supplies | G5: OneTouch Delica Lancets (100 per box) [usage = 60 lancets per month] | I5: 1 | Q5: 9 | R5: 9 | S5: =R5+S4 -> 17.4 | U5: =T5+U4 -> 3 | W5: =V5+W4 -> 0 | Y5: =X5+Y4 -> 0 | AA5: =Z5+AA4 -> 0 | AC5: =AB5+AC4 -> 0 | AD5: 0 | AE5: =AD5+AE4 -> 0 | AG5: =AF5+AG4 -> 0 | AI5: =AH5+AI4 -> 0 | AK5: =AJ5+AK4 -> 0 | AM5: =AL5+AM4 -> 0 | AO5: =AN5+AO4 -> 0 | AQ5: =AP5+AQ4 -> 0 | AS5: =AR5+AS4 -> 0 | AU5: =AT5+AU4 -> 0 | AW5: =AV5+AW4 -> 0 | AY5: =AX5+AY4 -> 0 | BA5: =AZ5+BA4 -> 0
A6: 2011-01-03 | B6: 3 | C6: 250.00, V58.66, V58.67 | D6: 53885014201 | E6: Pharmacy Retail | F6: Medical equipment and supplies | G6: OneTouch Delica Lancing Device | I6: 1 | Q6: 18 | R6: 18 | S6: 35.4 | U6: 3 | W6: 0 | Y6: 0 | AA6: 0 | AC6: 0 | AD6: 0 | AE6: 0 | AG6: 0 | AI6: 0 | AK6: 0 | AM6: 0 | AO6: 0 | AQ6: 0 | AS6: 0 | AU6: 0 | AW6: 0 | AY6: 0 | BA6: 0
A7: 2011-01-03 | B7: 7 | C7: 250.00, V58.66, V58.67 | D7: 53885044801 | E7: Pharmacy Retail | F7: Medical equipment and supplies | G7: OneTouch Ultra 2 Blood Glucose Meter Kit | I7: 1 | Q7: 66 | R7: 66 | S7: 101.4 | U7: 3 | W7: 0 | Y7: 0 | AA7: 0 | AC7: 0 | AD7: 0 | AE7: 0 | AG7: 0 | AI7: 0 | AK7: 0 | AM7: 0 | AO7: 0 | AQ7: 0 | AS7: 0 | AU7: 0 | AW7: 0 | AY7: 0 | BA7: 0
A8: 2011-01-03 | B8: 4 | C8: 250.00, V58.66, V58.67 | D8: 53885024510 | E8: Pharmacy Retail | F8: Medical equipment and supplies | G8: OneTouch Ultra Blue Test Strips (Rx - box of 100) [usage = 2 strips/day; 60 per month] | I8: 1 | Q8: 123.6 | R8: 123.6 | S8: 225 | U8: 3 | W8: 0 | Y8: 0 | AA8: 0 | AC8: 0 | AD8: 0 | AE8: 0 | AG8: 0 | AI8: 0 | AK8: 0 | AM8: 0 | AO8: 0 | AQ8: 0 | AS8: 0 | AU8: 0 | AW8: 0 | AY8: 0 | BA8: 0
A9: 2011-01-03 | B9: 6 | C9: 250.00, V58.66, V58.67 | D9: 53885041601 | E9: Pharmacy Retail | F9: Medical equipment and supplies | G9: OneTouch Ultra Control Solution (2 vials/box) | I9: 1 | Q9: 6.02 | R9: 6.02 | S9: 231.02 | U9: 3 | W9: 0 | Y9: 0 | AA9: 0 | AC9: 0 | AD9: 0 | AE9: 0 | AG9: 0 | AI9: 0 | AK9: 0 | AM9: 0 | AO9: 0 | AQ9: 0 | AS9: 0 | AU9: 0 | AW9: 0 | AY9: 0 | BA9: 0
A10: 2011-01-03 | B10: 26 | C10: 250.00, V58.66, V58.67 | D10: OTC | E10: Pharmacy Retail | F10: Pharmacy | G10: Aspirin 81mg (OTC - bottle 100) [usage = 1 QD; #30 pills per month] | Q10: 8 | S10: 231.02 | T10: 8 | U10: 11 | W10: 0 | Y10: 0 | AA10: 0 | AC10: 0 | AD10: 0 | AE10: 0 | AG10: 0 | AI10: 0 | AK10: 0 | AM10: 0 | AO10: 0 | AQ10: 0 | AS10: 0 | AU10: 0 | AW10: 0 | AY10: 0 | BA10: 0
A11: 2011-01-03 | B11: 1 | C11: 250.00, V58.66, V58.67 | D11: 2803101 | E11: Pharmacy Retail | F11: Pharmacy | G11: Glucagon Emergency Kit | J11: 1 | Q11: 153 | R11: 43 | S11: 274.02 | U11: 11 | W11: 0 | X11: 100 | Y11: 100 | Z11: 10 | AA11: 10 | AC11: 0 | AD11: 110 | AE11: 110 | AG11: 0 | AI11: 0 | AJ11: 100 | AK11: 100 | AM11: 0 | AO11: 0 | AQ11: 0 | AS11: 0 | AU11: 0 | AW11: 0 | AY11: 0 | BA11: 0
A12: 2011-01-03 | B12: 17 | C12: 250.00, V58.66, V58.67 | D12: 88222033 | E12: Pharmacy Retail | F12: Pharmacy | G12: Insulin glargine 100 unit/ml injectable solution (Rx - 10ml vial) [20 units QD; expires 28 days after first use] | J12: 1 | Q12: 119.2 | R12: 109.2 | S12: 383.22 | U12: 11 | W12: 0 | X12: 0 | Y12: 100 | Z12: 10 | AA12: 20 | AC12: 0 | AD12: 10 | AE12: 120 | AG12: 0 | AI12: 0 | AJ12: 0 | AK12: 100 | AM12: 0 | AO12: 0 | AQ12: 0 | AS12: 0 | AU12: 0 | AW12: 0 | AY12: 0 | BA12: 0
A13: 2011-01-03 | B13: 18 | C13: 250.00, V58.66, V58.67 | D13: 93104801 | E13: Pharmacy Retail | F13: Pharmacy | G13: Metformin hydrochloride 500mg (Rx) [1 BID; #60 pills/month] | J13: 1 | Q13: 34.37 | R13: 24.37 | S13: 407.59 | U13: 11 | W13: 0 | X13: 0 | Y13: 100 | Z13: 10 | AA13: 30 | AC13: 0 | AD13: 10 | AE13: 130 | AG13: 0 | AI13: 0 | AJ13: 0 | AK13: 100 | AM13: 0 | AO13: 0 | AQ13: 0 | AS13: 0 | AU13: 0 | AW13: 0 | AY13: 0 | BA13: 0
A14: 2011-01-03 | B14: 19 | C14: 250.00, V58.66, V58.67 | D14: 93743801 | E14: Pharmacy Retail | F14: Pharmacy | G14: Ramipril 10mg (Rx) [1 QD; #30 pills/month] | J14: 1 | Q14: 53.81 | R14: 43.81 | S14: 451.4 | U14: 11 | W14: 0 | X14: 0 | Y14: 100 | Z14: 10 | AA14: 40 | AC14: 0 | AD14: 10 | AE14: 140 | AG14: 0 | AI14: 0 | AJ14: 0 | AK14: 100 | AM14: 0 | AO14: 0 | AQ14: 0 | AS14: 0 | AU14: 0 | AW14: 0 | AY14: 0 | BA14: 0
A15: 2011-01-03 | B15: 15 | C15: 250.00, V58.66, V58.67 | D15: 82947 | E15: Primary | F15: Laboratory tests | G15: Assay Glucose Blood Quant | L15: 1 | Q15: 6.431760408 | R15: 6.431760408 | S15: 457.8317604 | U15: 11 | W15: 0 | Y15: 100 | AA15: 40 | AC15: 0 | AD15: 0 | AE15: 140 | AG15: 0 | AI15: 0 | AK15: 100 | AM15: 0 | AO15: 0 | AQ15: 0 | AS15: 0 | AU15: 0 | AW15: 0 | AY15: 0 | BA15: 0
A16: 2011-01-03 | B16: 13 | C16: 250.00, V58.66, V58.67 | D16: 82570 | E16: Primary | F16: Laboratory tests | G16: Assay of Urine Creatinine | L16: 1 | Q16: 7.168646356 | R16: 7.168646356 | S16: 465.0004068 | U16: 11 | W16: 0 | Y16: 100 | AA16: 40 | AC16: 0 | AD16: 0 | AE16: 140 | AG16: 0 | AI16: 0 | AK16: 100 | AM16: 0 | AO16: 0 | AQ16: 0 | AS16: 0 | AU16: 0 | AW16: 0 | AY16: 0 | BA16: 0
A17: 2011-01-03 | B17: 8 | C17: 250.00, V58.66, V58.67 | D17: 80053 | E17: Primary | F17: Laboratory tests | G17: Comprehen Metabolic Panel | L17: 1 | Q17: 18.13034815 | R17: 18.13034815 | S17: 483.1307549 | U17: 11 | W17: 0 | Y17: 100 | AA17: 40 | AC17: 0 | AD17: 0 | AE17: 140 | AG17: 0 | AI17: 0 | AK17: 100 | AM17: 0 | AO17: 0 | AQ17: 0 | AS17: 0 | AU17: 0 | AW17: 0 | AY17: 0 | BA17: 0
A18: 2011-01-03 | B18: 16 | C18: 250.00, V58.66, V58.67 | D18: 83036 | E18: Primary | F18: Laboratory tests | G18: Glycosylated Hemoglobin Test | L18: 1 | Q18: 14.07436287 | R18: 14.07436287 | S18: 497.2051178 | U18: 11 | W18: 0 | Y18: 100 | AA18: 40 | AC18: 0 | AD18: 0 | AE18: 140 | AG18: 0 | AI18: 0 | AK18: 100 | AM18: 0 | AO18: 0 | AQ18: 0 | AS18: 0 | AU18: 0 | AW18: 0 | AY18: 0 | BA18: 0
A19: 2011-01-03 | B19: 9 | C19: 250.00, V58.66, V58.67 | D19: 80061 | E19: Primary | F19: Laboratory tests | G19: Lipid panel | L19: 1 | Q19: 19.23449198 | R19: 19.23449198 | S19: 516.4396098 | U19: 11 | W19: 0 | Y19: 100 | AA19: 40 | AC19: 0 | AD19: 0 | AE19: 140 | AG19: 0 | AI19: 0 | AK19: 100 | AM19: 0 | AO19: 0 | AQ19: 0 | AS19: 0 | AU19: 0 | AW19: 0 | AY19: 0 | BA19: 0
A20: 2011-01-03 | B20: 12 | C20: 250.00, V58.66, V58.67 | D20: 82043 | E20: Primary | F20: Laboratory tests | G20: Microalbumin Quantitative | L20: 1 | Q20: 8.309651643 | R20: 8.309651643 | S20: 524.7492614 | U20: 11 | W20: 0 | Y20: 100 | AA20: 40 | AC20: 0 | AD20: 0 | AE20: 140 | AG20: 0 | AI20: 0 | AK20: 100 | AM20: 0 | AO20: 0 | AQ20: 0 | AS20: 0 | AU20: 0 | AW20: 0 | AY20: 0 | BA20: 0
A21: 2011-01-03 | B21: 10 | C21: 250.00, V58.66, V58.67 | D21: 80069 | E21: Primary | F21: Laboratory tests | G21: Renal Function Panel | L21: 1 | Q21: 14.30265654 | R21: 14.30265654 | S21: 539.0519179 | U21: 11 | W21: 0 | Y21: 100 | AA21: 40 | AC21: 0 | AD21: 0 | AE21: 140 | AG21: 0 | AI21: 0 | AK21: 100 | AM21: 0 | AO21: 0 | AQ21: 0 | AS21: 0 | AU21: 0 | AW21: 0 | AY21: 0 | BA21: 0
A22: 2011-01-03 | B22: 2 | C22: 250.00, V58.66, V58.67 | D22: 36415 | E22: Primary | F22: Laboratory tests | G22: Routine Venipuncture | L22: 1 | Q22: 4.131255056 | R22: 4.131255056 | S22: 543.183173 | U22: 11 | W22: 0 | Y22: 100 | AA22: 40 | AC22: 0 | AD22: 0 | AE22: 140 | AG22: 0 | AI22: 0 | AK22: 100 | AM22: 0 | AO22: 0 | AQ22: 0 | AS22: 0 | AU22: 0 | AW22: 0 | AY22: 0 | BA22: 0
A23: 2011-01-03 | B23: 11 | C23: 250.00, V58.66, V58.67 | D23: 81003 | E23: Primary | F23: Laboratory tests | G23: Urinalysis Auto W/O Scope | L23: 1 | Q23: 3.178504779 | R23: 3.178504779 | S23: 546.3616778 | U23: 11 | W23: 0 | Y23: 100 | AA23: 40 | AC23: 0 | AD23: 0 | AE23: 140 | AG23: 0 | AI23: 0 | AK23: 100 | AM23: 0 | AO23: 0 | AQ23: 0 | AS23: 0 | AU23: 0 | AW23: 0 | AY23: 0 | BA23: 0
A24: 2011-01-03 | B24: 24 | C24: 250.00, V58.66, V58.67 | D24: 99214 | E24: Primary | F24: Office visits & procedures | G24: Office/Outpatient Visit Est | P24: 1 | Q24: 102.4735938 | R24: 0 | S24: 546.3616778 | U24: 11 | W24: 0 | X24: 102.4735938 | Y24: 202.4735938 | Z24: 0 | AA24: 40 | AC24: 0 | AD24: 102.4735938 | AE24: 242.4735938 | AF24: 102.4735938 | AG24: 102.4735938 | AI24: 0 | AK24: 100 | AM24: 0 | AO24: 0 | AQ24: 0 | AS24: 0 | AU24: 0 | AW24: 0 | AY24: 0 | BA24: 0
A25: 2011-01-04 | B25: 21 | C25: 250.00, V58.66, V58.67 | D25: 98960 | E25: Diabetes Educator | F25: Office visits & procedures | G25: Self-mgmt educ & train 1 pt | P25: 1 | Q25: 80.52611289 | R25: 0 | S25: 546.3616778 | U25: 11 | W25: 0 | X25: 80.52611289 | Y25: 282.9997067 | Z25: 0 | AA25: 40 | AC25: 0 | AD25: 80.52611289 | AE25: 322.9997067 | AF25: 80.52611289 | AG25: 182.9997067 | AI25: 0 | AK25: 100 | AM25: 0 | AO25: 0 | AQ25: 0 | AS25: 0 | AU25: 0 | AW25: 0 | AY25: 0 | BA25: 0
A26: 2011-01-04 | B26: 20 | C26: 250.00, V58.66, V58.67 | D26: 97803 | E26: Dietician | F26: Office visits & procedures | G26: Med Nutrition Indiv Subseq | P26: 1 | Q26: 63.12776497 | R26: 0 | S26: 546.3616778 | U26: 11 | W26: 0 | X26: 63.12776497 | Y26: 346.1274716 | Z26: 0 | AA26: 40 | AC26: 0 | AD26: 63.12776497 | AE26: 386.1274716 | AF26: 63.12776497 | AG26: 246.1274716 | AI26: 0 | AK26: 100 | AM26: 0 | AO26: 0 | AQ26: 0 | AS26: 0 | AU26: 0 | AW26: 0 | AY26: 0 | BA26: 0
A27: 2011-01-06 | B27: 23 | C27: 250.00, V58.66, V58.67 | D27: 99204 | E27: Podiatry | F27: Office visits & procedures | G27: Office/Outpatient Visit New | H27: Annual foot exam | P27: 1 | Q27: 157.6113074 | R27: 0 | S27: 546.3616778 | U27: 11 | W27: 0 | X27: 157.6113074 | Y27: 503.738779 | Z27: 0 | AA27: 40 | AC27: 0 | AD27: 157.6113074 | AE27: 543.738779 | AF27: 157.6113074 | AG27: 403.738779 | AI27: 0 | AK27: 100 | AM27: 0 | AO27: 0 | AQ27: 0 | AS27: 0 | AU27: 0 | AW27: 0 | AY27: 0 | BA27: 0
A28: 2011-01-07 | B28: 22 | C28: 250.00, V58.66, V58.67 | D28: 99204 | E28: Ophthalmology | F28: Office visits & procedures | G28: Office/Outpatient Visit New | H28: Annual eye exam | P28: 1 | Q28: 157.6113074 | R28: 0 | S28: 546.3616778 | U28: 11 | W28: 0 | X28: 157.6113074 | Y28: 661.3500865 | Z28: 0 | AA28: 40 | AC28: 0 | AD28: 157.6113074 | AE28: 701.3500865 | AF28: 157.6113074 | AG28: 561.3500865 | AI28: 0 | AK28: 100 | AM28: 0 | AO28: 0 | AQ28: 0 | AS28: 0 | AU28: 0 | AW28: 0 | AY28: 0 | BA28: 0
A29: 2011-01-31 | B29: 17 | C29: 250.00, V58.66, V58.67 | D29: 88222033 | E29: Pharmacy Retail | F29: Pharmacy | G29: Insulin glargine 100 unit/ml injectable solution (Rx - 10ml vial) [20 units QD; expires 28 days after first use] | J29: 1 | Q29: 119.2 | R29: 109.2 | S29: 655.5616778 | U29: 11 | W29: 0 | X29: 0 | Y29: 661.3500865 | Z29: 10 | AA29: 50 | AC29: 0 | AD29: 10 | AE29: 711.3500865 | AG29: 561.3500865 | AI29: 0 | AJ29: 0 | AK29: 100 | AM29: 0 | AO29: 0 | AQ29: 0 | AS29: 0 | AU29: 0 | AW29: 0 | AY29: 0 | BA29: 0
A30: 2011-02-02 | B30: 25 | C30: 250.00, V58.66, V58.67 | D30: OTC | E30: Pharmacy Retail | F30: Medical equipment and supplies | G30: Alcohol swabs (OTC - box of 100) [usage = 3 wipes/day; 90 wipes/month] | I30: 1 | Q30: 3 | S30: 655.5616778 | T30: 3 | U30: 14 | W30: 0 | Y30: 661.3500865 | AA30: 50 | AC30: 0 | AD30: 0 | AE30: 711.3500865 | AG30: 561.3500865 | AI30: 0 | AK30: 100 | AM30: 0 | AO30: 0 | AQ30: 0 | AS30: 0 | AU30: 0 | AW30: 0 | AY30: 0 | BA30: 0
A31: 2011-02-02 | B31: 14 | C31: 250.00, V58.66, V58.67 | D31: 8290328279 | E31: Pharmacy Retail | F31: Medical equipment and supplies | G31: BD Ultrafine Insulin Syringes / 30G/ 0.5cc [usage = 30 syringes per month] | I31: 1 | Q31: 8.4 | R31: 8.4 | S31: 663.9616778 | U31: 14 | W31: 0 | Y31: 661.3500865 | AA31: 50 | AC31: 0 | AD31: 0 | AE31: 711.3500865 | AG31: 561.3500865 | AI31: 0 | AK31: 100 | AM31: 0 | AO31: 0 | AQ31: 0 | AS31: 0 | AU31: 0 | AW31: 0 | AY31: 0 | BA31: 0
A32: 2011-02-02 | B32: 18 | C32: 250.00, V58.66, V58.67 | D32: 93104801 | E32: Pharmacy Retail | F32: Pharmacy | G32: Metformin hydrochloride 500mg (Rx) [1 BID; #60 pills/month] | J32: 1 | Q32: 34.37 | R32: 24.37 | S32: 688.3316778 | U32: 14 | W32: 0 | X32: 0 | Y32: 661.3500865 | Z32: 10 | AA32: 60 | AC32: 0 | AD32: 10 | AE32: 721.3500865 | AG32: 561.3500865 | AI32: 0 | AJ32: 0 | AK32: 100 | AM32: 0 | AO32: 0 | AQ32: 0 | AS32: 0 | AU32: 0 | AW32: 0 | AY32: 0 | BA32: 0
A33: 2011-02-02 | B33: 19 | C33: 250.00, V58.66, V58.67 | D33: 93743801 | E33: Pharmacy Retail | F33: Pharmacy | G33: Ramipril 10mg (Rx) [1 QD; #30 pills/month] | J33: 1 | Q33: 53.81 | R33: 43.81 | S33: 732.1416778 | U33: 14 | W33: 0 | X33: 0 | Y33: 661.3500865 | Z33: 10 | AA33: 70 | AC33: 0 | AD33: 10 | AE33: 731.3500865 | AG33: 561.3500865 | AI33: 0 | AJ33: 0 | AK33: 100 | AM33: 0 | AO33: 0 | AQ33: 0 | AS33: 0 | AU33: 0 | AW33: 0 | AY33: 0 | BA33: 0
A34: 2011-02-22 | B34: 5 | C34: 250.00, V58.66, V58.67 | D34: 53885039310 | E34: Pharmacy Retail | F34: Medical equipment and supplies | G34: OneTouch Delica Lancets (100 per box) [usage = 60 lancets per month] | I34: 1 | Q34: 9 | R34: 9 | S34: 741.1416778 | U34: 14 | W34: 0 | Y34: 661.3500865 | AA34: 70 | AC34: 0 | AD34: 0 | AE34: 731.3500865 | AG34: 561.3500865 | AI34: 0 | AK34: 100 | AM34: 0 | AO34: 0 | AQ34: 0 | AS34: 0 | AU34: 0 | AW34: 0 | AY34: 0 | BA34: 0
A35: 2011-02-22 | B35: 4 | C35: =IF(ISBLANK(VLOOKUP(Dia_Claim,Dia_UniqueLine,2,FALSE)),"",VLOOKUP(Dia_Claim,Dia_UniqueLine,2,FALSE)) -> 250.00, V58.66, V58.67 | D35: =IF(ISBLANK(VLOOKUP(Dia_Claim,Dia_UniqueLine,3,FALSE)),"",VLOOKUP(Dia_Claim,Dia_UniqueLine,3,FALSE)) -> 53885024510 | E35: =IF(ISBLANK(VLOOKUP(Dia_Claim,Dia_UniqueLine,4,FALSE)),"",VLOOKUP(Dia_Claim,Dia_UniqueLine,4,FALSE)) -> Pharmacy Retail | F35: =IF(ISBLANK(VLOOKUP(Dia_Claim,Dia_UniqueLine,5,FALSE)),"",VLOOKUP(Dia_Claim,Dia_UniqueLine,5,FALSE)) -> Medical equipment and supplies | G35: =IF(ISBLANK(VLOOKUP(Dia_Claim,Dia_UniqueLine,6,FALSE)),"",VLOOKUP(Dia_Claim,Dia_UniqueLine,6,FALSE)) -> OneTouch Ultra Blue Test Strips (Rx - box of 100) [usage = 2 strips/day; 60 per month] | H35: =IF(ISBLANK(VLOOKUP(Dia_Claim,Dia_UniqueLine,8,FALSE)),"",VLOOKUP(Dia_Claim,Dia_UniqueLine,8,FALSE)) ->  | I35: =IF(Dia_Col_Category="Medical equipment and supplies",1,"") -> 1 | J35: =IF(AND(Dia_Col_Category="Pharmacy",Dia_Col_BillCode<>"OTC"),1,"") ->  | K35: =IF(AND(Dia_Col_Category="Anesthesia",Dia_Col_Provider<>"Inpatient facility"),1,"") ->  | L35: =IF(Dia_Col_Category="Laboratory tests",1,"") ->  | M35: =IF(Dia_Col_Category="Radiology",1,"") ->  | N35: =IF(Dia_Col_BillCode="Bundled in global OB package - 59400",1,"") ->  | O35: =IF(Dia_Col_Category="Vaccines, other preventive",1,"") ->  | P35: =IF(Dia_Col_Category="Office visits & procedures",1,"") ->  | Q35: =IF(ISBLANK(VLOOKUP(Dia_Claim,Dia_UniqueLine,7,FALSE)),"",VLOOKUP(Dia_Claim,Dia_UniqueLine,7,FALSE)) -> 123.6 | R35: 123.6 | S35: 864.7416778 | U35: 14 | W35: 0 | Y35: 661.3500865 | AA35: 70 | AC35: 0 | AD35: 0 | AE35: 731.3500865 | AG35: 561.3500865 | AI35: 0 | AK35: 100 | AM35: 0 | AO35: 0 | AQ35: 0 | AS35: 0 | AU35: 0 | AW35: 0 | AY35: 0 | BA35: 0
A36: 2011-02-28 | B36: 17 | C36: 250.00, V58.66, V58.67 | D36: 88222033 | E36: Pharmacy Retail | F36: Pharmacy | G36: Insulin glargine 100 unit/ml injectable solution (Rx - 10ml vial) [20 units QD; expires 28 days after first use] | J36: 1 | Q36: 119.2 | R36: 109.2 | S36: 973.9416778 | U36: 14 | W36: 0 | X36: 0 | Y36: 661.3500865 | Z36: 10 | AA36: 80 | AC36: 0 | AD36: 10 | AE36: 741.3500865 | AG36: 561.3500865 | AI36: 0 | AJ36: 0 | AK36: 100 | AM36: 0 | AO36: 0 | AQ36: 0 | AS36: 0 | AU36: 0 | AW36: 0 | AY36: 0 | BA36: 0
A37: 2011-03-04 | B37: 25 | C37: 250.00, V58.66, V58.67 | D37: OTC | E37: Pharmacy Retail | F37: Medical equipment and supplies | G37: Alcohol swabs (OTC - box of 100) [usage = 3 wipes/day; 90 wipes/month] | I37: 1 | Q37: 3 | S37: 973.9416778 | T37: 3 | U37: 17 | W37: 0 | Y37: 661.3500865 | AA37: 80 | AC37: 0 | AD37: 0 | AE37: 741.3500865 | AG37: 561.3500865 | AI37: 0 | AK37: 100 | AM37: 0 | AO37: 0 | AQ37: 0 | AS37: 0 | AU37: 0 | AW37: 0 | AY37: 0 | BA37: 0
A38: 2011-03-04 | B38: 14 | C38: 250.00, V58.66, V58.67 | D38: 8290328279 | E38: Pharmacy Retail | F38: Medical equipment and supplies | G38: BD Ultrafine Insulin Syringes / 30G/ 0.5cc [usage = 30 syringes per month] | I38: 1 | Q38: 8.4 | R38: 8.4 | S38: 982.3416778 | U38: 17 | W38: 0 | Y38: 661.3500865 | AA38: 80 | AC38: 0 | AD38: 0 | AE38: 741.3500865 | AG38: 561.3500865 | AI38: 0 | AK38: 100 | AM38: 0 | AO38: 0 | AQ38: 0 | AS38: 0 | AU38: 0 | AW38: 0 | AY38: 0 | BA38: 0
A39: 2011-03-04 | B39: 18 | C39: 250.00, V58.66, V58.67 | D39: 93104801 | E39: Pharmacy Retail | F39: Pharmacy | G39: Metformin hydrochloride 500mg (Rx) [1 BID; #60 pills/month] | J39: 1 | Q39: 34.37 | R39: 24.37 | S39: 1006.711678 | U39: 17 | W39: 0 | X39: 0 | Y39: 661.3500865 | Z39: 10 | AA39: 90 | AC39: 0 | AD39: 10 | AE39: 751.3500865 | AG39: 561.3500865 | AI39: 0 | AJ39: 0 | AK39: 100 | AM39: 0 | AO39: 0 | AQ39: 0 | AS39: 0 | AU39: 0 | AW39: 0 | AY39: 0 | BA39: 0
A40: 2011-03-04 | B40: 19 | C40: 250.00, V58.66, V58.67 | D40: 93743801 | E40: Pharmacy Retail | F40: Pharmacy | G40: Ramipril 10mg (Rx) [1 QD; #30 pills/month] | J40: 1 | Q40: 53.81 | R40: 43.81 | S40: 1050.521678 | U40: 17 | W40: 0 | X40: 0 | Y40: 661.3500865 | Z40: 10 | AA40: 100 | AC40: 0 | AD40: 10 | AE40: 761.3500865 | AG40: 561.3500865 | AI40: 0 | AJ40: 0 | AK40: 100 | AM40: 0 | AO40: 0 | AQ40: 0 | AS40: 0 | AU40: 0 | AW40: 0 | AY40: 0 | BA40: 0
A41: 2011-03-28 | B41: 26 | C41: 250.00, V58.66, V58.67 | D41: OTC | E41: Pharmacy Retail | F41: Pharmacy | G41: Aspirin 81mg (OTC - bottle 100) [usage = 1 QD; #30 pills per month] | Q41: 8 | S41: 1050.521678 | T41: 8 | U41: 25 | W41: 0 | Y41: 661.3500865 | AA41: 100 | AC41: 0 | AD41: 0 | AE41: 761.3500865 | AG41: 561.3500865 | AI41: 0 | AK41: 100 | AM41: 0 | AO41: 0 | AQ41: 0 | AS41: 0 | AU41: 0 | AW41: 0 | AY41: 0 | BA41: 0
A42: 2011-03-28 | B42: 17 | C42: 250.00, V58.66, V58.67 | D42: 88222033 | E42: Pharmacy Retail | F42: Pharmacy | G42: Insulin glargine 100 unit/ml injectable solution (Rx - 10ml vial) [20 units QD; expires 28 days after first use] | J42: 1 | Q42: 119.2 | R42: 109.2 | S42: 1159.721678 | U42: 25 | W42: 0 | X42: 0 | Y42: 661.3500865 | Z42: 10 | AA42: 110 | AC42: 0 | AD42: 10 | AE42: 771.3500865 | AG42: 561.3500865 | AI42: 0 | AJ42: 0 | AK42: 100 | AM42: 0 | AO42: 0 | AQ42: 0 | AS42: 0 | AU42: 0 | AW42: 0 | AY42: 0 | BA42: 0
A43: 2011-03-28 | B43: 24 | C43: 250.00, V58.66, V58.67 | D43: 99214 | E43: Primary | F43: Office visits & procedures | G43: Office/Outpatient Visit Est | P43: 1 | Q43: 102.4735938 | R43: 0 | S43: 1159.721678 | U43: 25 | W43: 0 | X43: 102.4735938 | Y43: 763.8236802 | Z43: 0 | AA43: 110 | AC43: 0 | AD43: 102.4735938 | AE43: 873.8236802 | AF43: 102.4735938 | AG43: 663.8236802 | AI43: 0 | AK43: 100 | AM43: 0 | AO43: 0 | AQ43: 0 | AS43: 0 | AU43: 0 | AW43: 0 | AY43: 0 | BA43: 0
A44: 2011-04-03 | B44: 25 | C44: 250.00, V58.66, V58.67 | D44: OTC | E44: Pharmacy Retail | F44: Medical equipment and supplies | G44: Alcohol swabs (OTC - box of 100) [usage = 3 wipes/day; 90 wipes/month] | I44: 1 | Q44: 3 | S44: 1159.721678 | T44: 3 | U44: 28 | W44: 0 | Y44: 763.8236802 | AA44: 110 | AC44: 0 | AD44: 0 | AE44: 873.8236802 | AG44: 663.8236802 | AI44: 0 | AK44: 100 | AM44: 0 | AO44: 0 | AQ44: 0 | AS44: 0 | AU44: 0 | AW44: 0 | AY44: 0 | BA44: 0
A45: 2011-04-03 | B45: 14 | C45: 250.00, V58.66, V58.67 | D45: 8290328279 | E45: Pharmacy Retail | F45: Medical equipment and supplies | G45: BD Ultrafine Insulin Syringes / 30G/ 0.5cc [usage = 30 syringes per month] | I45: 1 | Q45: 8.4 | R45: 8.4 | S45: 1168.121678 | U45: 28 | W45: 0 | Y45: 763.8236802 | AA45: 110 | AC45: 0 | AD45: 0 | AE45: 873.8236802 | AG45: 663.8236802 | AI45: 0 | AK45: 100 | AM45: 0 | AO45: 0 | AQ45: 0 | AS45: 0 | AU45: 0 | AW45: 0 | AY45: 0 | BA45: 0
A46: 2011-04-03 | B46: 18 | C46: 250.00, V58.66, V58.67 | D46: 93104801 | E46: Pharmacy Retail | F46: Pharmacy | G46: Metformin hydrochloride 500mg (Rx) [1 BID; #60 pills/month] | J46: 1 | Q46: 34.37 | R46: 24.37 | S46: 1192.491678 | U46: 28 | W46: 0 | X46: 0 | Y46: 763.8236802 | Z46: 10 | AA46: 120 | AC46: 0 | AD46: 10 | AE46: 883.8236802 | AG46: 663.8236802 | AI46: 0 | AJ46: 0 | AK46: 100 | AM46: 0 | AO46: 0 | AQ46: 0 | AS46: 0 | AU46: 0 | AW46: 0 | AY46: 0 | BA46: 0
A47: 2011-04-03 | B47: 19 | C47: 250.00, V58.66, V58.67 | D47: 93743801 | E47: Pharmacy Retail | F47: Pharmacy | G47: Ramipril 10mg (Rx) [1 QD; #30 pills/month] | J47: 1 | Q47: 53.81 | R47: 43.81 | S47: 1236.301678 | U47: 28 | W47: 0 | X47: 0 | Y47: 763.8236802 | Z47: 10 | AA47: 130 | AC47: 0 | AD47: 10 | AE47: 893.8236802 | AG47: 663.8236802 | AI47: 0 | AJ47: 0 | AK47: 100 | AM47: 0 | AO47: 0 | AQ47: 0 | AS47: 0 | AU47: 0 | AW47: 0 | AY47: 0 | BA47: 0
A48: 2011-04-13 | B48: 5 | C48: 250.00, V58.66, V58.67 | D48: 53885039310 | E48: Pharmacy Retail | F48: Medical equipment and supplies | G48: OneTouch Delica Lancets (100 per box) [usage = 60 lancets per month] | I48: 1 | Q48: 9 | R48: 9 | S48: 1245.301678 | U48: 28 | W48: 0 | Y48: 763.8236802 | AA48: 130 | AC48: 0 | AD48: 0 | AE48: 893.8236802 | AG48: 663.8236802 | AI48: 0 | AK48: 100 | AM48: 0 | AO48: 0 | AQ48: 0 | AS48: 0 | AU48: 0 | AW48: 0 | AY48: 0 | BA48: 0
A49: 2011-04-13 | B49: 4 | C49: 250.00, V58.66, V58.67 | D49: 53885024510 | E49: Pharmacy Retail | F49: Medical equipment and supplies | G49: OneTouch Ultra Blue Test Strips (Rx - box of 100) [usage = 2 strips/day; 60 per month] | I49: 1 | Q49: 123.6 | R49: 123.6 | S49: 1368.901678 | U49: 28 | W49: 0 | Y49: 763.8236802 | AA49: 130 | AC49: 0 | AD49: 0 | AE49: 893.8236802 | AG49: 663.8236802 | AI49: 0 | AK49: 100 | AM49: 0 | AO49: 0 | AQ49: 0 | AS49: 0 | AU49: 0 | AW49: 0 | AY49: 0 | BA49: 0
A50: 2011-04-25 | B50: 17 | C50: 250.00, V58.66, V58.67 | D50: 88222033 | E50: Pharmacy Retail | F50: Pharmacy | G50: Insulin glargine 100 unit/ml injectable solution (Rx - 10ml vial) [20 units QD; expires 28 days after first use] | J50: 1 | Q50: 119.2 | R50: 109.2 | S50: 1478.101678 | U50: 28 | W50: 0 | X50: 0 | Y50: 763.8236802 | Z50: 10 | AA50: 140 | AC50: 0 | AD50: 10 | AE50: 903.8236802 | AG50: 663.8236802 | AI50: 0 | AJ50: 0 | AK50: 100 | AM50: 0 | AO50: 0 | AQ50: 0 | AS50: 0 | AU50: 0 | AW50: 0 | AY50: 0 | BA50: 0
A51: 2011-05-03 | B51: 25 | C51: 250.00, V58.66, V58.67 | D51: OTC | E51: Pharmacy Retail | F51: Medical equipment and supplies | G51: Alcohol swabs (OTC - box of 100) [usage = 3 wipes/day; 90 wipes/month] | I51: 1 | Q51: 3 | S51: 1478.101678 | T51: 3 | U51: 31 | W51: 0 | Y51: 763.8236802 | AA51: 140 | AC51: 0 | AD51: 0 | AE51: 903.8236802 | AG51: 663.8236802 | AI51: 0 | AK51: 100 | AM51: 0 | AO51: 0 | AQ51: 0 | AS51: 0 | AU51: 0 | AW51: 0 | AY51: 0 | BA51: 0
A52: 2011-05-03 | B52: 14 | C52: 250.00, V58.66, V58.67 | D52: 8290328279 | E52: Pharmacy Retail | F52: Medical equipment and supplies | G52: BD Ultrafine Insulin Syringes / 30G/ 0.5cc [usage = 30 syringes per month] | I52: 1 | Q52: 8.4 | R52: 8.4 | S52: 1486.501678 | U52: 31 | W52: 0 | Y52: 763.8236802 | AA52: 140 | AC52: 0 | AD52: 0 | AE52: 903.8236802 | AG52: 663.8236802 | AI52: 0 | AK52: 100 | AM52: 0 | AO52: 0 | AQ52: 0 | AS52: 0 | AU52: 0 | AW52: 0 | AY52: 0 | BA52: 0
A53: 2011-05-03 | B53: 18 | C53: 250.00, V58.66, V58.67 | D53: 93104801 | E53: Pharmacy Retail | F53: Pharmacy | G53: Metformin hydrochloride 500mg (Rx) [1 BID; #60 pills/month] | J53: 1 | Q53: 34.37 | R53: 24.37 | S53: 1510.871678 | U53: 31 | W53: 0 | X53: 0 | Y53: 763.8236802 | Z53: 10 | AA53: 150 | AC53: 0 | AD53: 10 | AE53: 913.8236802 | AG53: 663.8236802 | AI53: 0 | AJ53: 0 | AK53: 100 | AM53: 0 | AO53: 0 | AQ53: 0 | AS53: 0 | AU53: 0 | AW53: 0 | AY53: 0 | BA53: 0
A54: 2011-05-03 | B54: 19 | C54: 250.00, V58.66, V58.67 | D54: 93743801 | E54: Pharmacy Retail | F54: Pharmacy | G54: Ramipril 10mg (Rx) [1 QD; #30 pills/month] | J54: 1 | Q54: 53.81 | R54: 43.81 | S54: 1554.681678 | U54: 31 | W54: 0 | X54: 0 | Y54: 763.8236802 | Z54: 10 | AA54: 160 | AC54: 0 | AD54: 10 | AE54: 923.8236802 | AG54: 663.8236802 | AI54: 0 | AJ54: 0 | AK54: 100 | AM54: 0 | AO54: 0 | AQ54: 0 | AS54: 0 | AU54: 0 | AW54: 0 | AY54: 0 | BA54: 0
A55: 2012-05-23 | B55: 5 | C55: 250.00, V58.66, V58.67 | D55: 53885039310 | E55: Pharmacy Retail | F55: Medical equipment and supplies | G55: OneTouch Delica Lancets (100 per box) [usage = 60 lancets per month] | I55: 1 | Q55: 9 | R55: 9 | S55: 1563.681678 | U55: 31 | W55: 0 | Y55: 763.8236802 | AA55: 160 | AC55: 0 | AD55: 0 | AE55: 923.8236802 | AG55: 663.8236802 | AI55: 0 | AK55: 100 | AM55: 0 | AO55: 0 | AQ55: 0 | AS55: 0 | AU55: 0 | AW55: 0 | AY55: 0 | BA55: 0
A56: 2011-05-23 | B56: 17 | C56: 250.00, V58.66, V58.67 | D56: 88222033 | E56: Pharmacy Retail | F56: Pharmacy | G56: Insulin glargine 100 unit/ml injectable solution (Rx - 10ml vial) [20 units QD; expires 28 days after first use] | J56: 1 | Q56: 119.2 | R56: 109.2 | S56: 1672.881678 | U56: 31 | W56: 0 | X56: 0 | Y56: 763.8236802 | Z56: 10 | AA56: 170 | AC56: 0 | AD56: 10 | AE56: 933.8236802 | AG56: 663.8236802 | AI56: 0 | AJ56: 0 | AK56: 100 | AM56: 0 | AO56: 0 | AQ56: 0 | AS56: 0 | AU56: 0 | AW56: 0 | AY56: 0 | BA56: 0
A57: 2011-06-02 | B57: 25 | C57: 250.00, V58.66, V58.67 | D57: OTC | E57: Pharmacy Retail | F57: Medical equipment and supplies | G57: Alcohol swabs (OTC - box of 100) [usage = 3 wipes/day; 90 wipes/month] | I57: 1 | Q57: 3 | S57: 1672.881678 | T57: 3 | U57: 34 | W57: 0 | Y57: 763.8236802 | AA57: 170 | AC57: 0 | AD57: 0 | AE57: 933.8236802 | AG57: 663.8236802 | AI57: 0 | AK57: 100 | AM57: 0 | AO57: 0 | AQ57: 0 | AS57: 0 | AU57: 0 | AW57: 0 | AY57: 0 | BA57: 0
A58: 2011-06-02 | B58: 14 | C58: 250.00, V58.66, V58.67 | D58: 8290328279 | E58: Pharmacy Retail | F58: Medical equipment and supplies | G58: BD Ultrafine Insulin Syringes / 30G/ 0.5cc [usage = 30 syringes per month] | I58: 1 | Q58: 8.4 | R58: 8.4 | S58: 1681.281678 | U58: 34 | W58: 0 | Y58: 763.8236802 | AA58: 170 | AC58: 0 | AD58: 0 | AE58: 933.8236802 | AG58: 663.8236802 | AI58: 0 | AK58: 100 | AM58: 0 | AO58: 0 | AQ58: 0 | AS58: 0 | AU58: 0 | AW58: 0 | AY58: 0 | BA58: 0
A59: 2011-06-02 | B59: 5 | C59: 250.00, V58.66, V58.67 | D59: 53885039310 | E59: Pharmacy Retail | F59: Medical equipment and supplies | G59: OneTouch Delica Lancets (100 per box) [usage = 60 lancets per month] | I59: 1 | Q59: 9 | R59: 9 | S59: 1690.281678 | U59: 34 | W59: 0 | Y59: 763.8236802 | AA59: 170 | AC59: 0 | AD59: 0 | AE59: 933.8236802 | AG59: 663.8236802 | AI59: 0 | AK59: 100 | AM59: 0 | AO59: 0 | AQ59: 0 | AS59: 0 | AU59: 0 | AW59: 0 | AY59: 0 | BA59: 0
A60: 2011-06-02 | B60: 4 | C60: 250.00, V58.66, V58.67 | D60: 53885024510 | E60: Pharmacy Retail | F60: Medical equipment and supplies | G60: OneTouch Ultra Blue Test Strips (Rx - box of 100) [usage = 2 strips/day; 60 per month] | I60: 1 | Q60: 123.6 | R60: 123.6 | S60: 1813.881678 | U60: 34 | W60: 0 | Y60: 763.8236802 | AA60: 170 | AC60: 0 | AD60: 0 | AE60: 933.8236802 | AG60: 663.8236802 | AI60: 0 | AK60: 100 | AM60: 0 | AO60: 0 | AQ60: 0 | AS60: 0 | AU60: 0 | AW60: 0 | AY60: 0 | BA60: 0
A61: 2011-06-02 | B61: 18 | C61: 250.00, V58.66, V58.67 | D61: 93104801 | E61: Pharmacy Retail | F61: Pharmacy | G61: Metformin hydrochloride 500mg (Rx) [1 BID; #60 pills/month] | J61: 1 | Q61: 34.37 | R61: 24.37 | S61: 1838.251678 | U61: 34 | W61: 0 | X61: 0 | Y61: 763.8236802 | Z61: 10 | AA61: 180 | AC61: 0 | AD61: 10 | AE61: 943.8236802 | AG61: 663.8236802 | AI61: 0 | AJ61: 0 | AK61: 100 | AM61: 0 | AO61: 0 | AQ61: 0 | AS61: 0 | AU61: 0 | AW61: 0 | AY61: 0 | BA61: 0
A62: 2011-06-02 | B62: 19 | C62: 250.00, V58.66, V58.67 | D62: 93743801 | E62: Pharmacy Retail | F62: Pharmacy | G62: Ramipril 10mg (Rx) [1 QD; #30 pills/month] | J62: 1 | Q62: 53.81 | R62: 43.81 | S62: 1882.061678 | U62: 34 | W62: 0 | X62: 0 | Y62: 763.8236802 | Z62: 10 | AA62: 190 | AC62: 0 | AD62: 10 | AE62: 953.8236802 | AG62: 663.8236802 | AI62: 0 | AJ62: 0 | AK62: 100 | AM62: 0 | AO62: 0 | AQ62: 0 | AS62: 0 | AU62: 0 | AW62: 0 | AY62: 0 | BA62: 0
A63: 2011-06-20 | B63: 26 | C63: 250.00, V58.66, V58.67 | D63: OTC | E63: Pharmacy Retail | F63: Pharmacy | G63: Aspirin 81mg (OTC - bottle 100) [usage = 1 QD; #30 pills per month] | Q63: 8 | S63: 1882.061678 | T63: 8 | U63: 42 | W63: 0 | Y63: 763.8236802 | AA63: 190 | AC63: 0 | AD63: 0 | AE63: 953.8236802 | AG63: 663.8236802 | AI63: 0 | AK63: 100 | AM63: 0 | AO63: 0 | AQ63: 0 | AS63: 0 | AU63: 0 | AW63: 0 | AY63: 0 | BA63: 0
A64: 2011-06-20 | B64: 17 | C64: 250.00, V58.66, V58.67 | D64: 88222033 | E64: Pharmacy Retail | F64: Pharmacy | G64: Insulin glargine 100 unit/ml injectable solution (Rx - 10ml vial) [20 units QD; expires 28 days after first use] | J64: 1 | Q64: 119.2 | R64: 109.2 | S64: 1991.261678 | U64: 42 | W64: 0 | X64: 0 | Y64: 763.8236802 | Z64: 10 | AA64: 200 | AC64: 0 | AD64: 10 | AE64: 963.8236802 | AG64: 663.8236802 | AI64: 0 | AJ64: 0 | AK64: 100 | AM64: 0 | AO64: 0 | AQ64: 0 | AS64: 0 | AU64: 0 | AW64: 0 | AY64: 0 | BA64: 0
A65: 2011-06-27 | B65: 15 | C65: 250.00, V58.66, V58.67 | D65: 82947 | E65: Primary | F65: Laboratory tests | G65: Assay Glucose Blood Quant | L65: 1 | Q65: 6.431760408 | R65: 6.431760408 | S65: 1997.693438 | U65: 42 | W65: 0 | Y65: 763.8236802 | AA65: 200 | AC65: 0 | AD65: 0 | AE65: 963.8236802 | AG65: 663.8236802 | AI65: 0 | AK65: 100 | AM65: 0 | AO65: 0 | AQ65: 0 | AS65: 0 | AU65: 0 | AW65: 0 | AY65: 0 | BA65: 0
A66: 2011-06-27 | B66: 16 | C66: 250.00, V58.66, V58.67 | D66: 83036 | E66: Primary | F66: Laboratory tests | G66: Glycosylated Hemoglobin Test | L66: 1 | Q66: 14.07436287 | R66: 14.07436287 | S66: 2011.767801 | U66: 42 | W66: 0 | Y66: 763.8236802 | AA66: 200 | AC66: 0 | AD66: 0 | AE66: 963.8236802 | AG66: 663.8236802 | AI66: 0 | AK66: 100 | AM66: 0 | AO66: 0 | AQ66: 0 | AS66: 0 | AU66: 0 | AW66: 0 | AY66: 0 | BA66: 0
A67: 2011-06-27 | B67: 10 | C67: =IF(ISBLANK(VLOOKUP(Dia_Claim,Dia_UniqueLine,2,FALSE)),"",VLOOKUP(Dia_Claim,Dia_UniqueLine,2,FALSE)) -> 250.00, V58.66, V58.67 | D67: =IF(ISBLANK(VLOOKUP(Dia_Claim,Dia_UniqueLine,3,FALSE)),"",VLOOKUP(Dia_Claim,Dia_UniqueLine,3,FALSE)) -> 80069 | E67: =IF(ISBLANK(VLOOKUP(Dia_Claim,Dia_UniqueLine,4,FALSE)),"",VLOOKUP(Dia_Claim,Dia_UniqueLine,4,FALSE)) -> Primary | F67: =IF(ISBLANK(VLOOKUP(Dia_Claim,Dia_UniqueLine,5,FALSE)),"",VLOOKUP(Dia_Claim,Dia_UniqueLine,5,FALSE)) -> Laboratory tests | G67: =IF(ISBLANK(VLOOKUP(Dia_Claim,Dia_UniqueLine,6,FALSE)),"",VLOOKUP(Dia_Claim,Dia_UniqueLine,6,FALSE)) -> Renal Function Panel | H67: =IF(ISBLANK(VLOOKUP(Dia_Claim,Dia_UniqueLine,8,FALSE)),"",VLOOKUP(Dia_Claim,Dia_UniqueLine,8,FALSE)) ->  | I67: =IF(Dia_Col_Category="Medical equipment and supplies",1,"") ->  | J67: =IF(AND(Dia_Col_Category="Pharmacy",Dia_Col_BillCode<>"OTC"),1,"") ->  | K67: =IF(AND(Dia_Col_Category="Anesthesia",Dia_Col_Provider<>"Inpatient facility"),1,"") ->  | L67: =IF(Dia_Col_Category="Laboratory tests",1,"") -> 1 | M67: =IF(Dia_Col_Category="Radiology",1,"") ->  | N67: =IF(Dia_Col_BillCode="Bundled in global OB package - 59400",1,"") ->  | O67: =IF(Dia_Col_Category="Vaccines, other preventive",1,"") ->  | P67: =IF(Dia_Col_Category="Office visits & procedures",1,"") ->  | Q67: =IF(ISBLANK(VLOOKUP(Dia_Claim,Dia_UniqueLine,7,FALSE)),"",VLOOKUP(Dia_Claim,Dia_UniqueLine,7,FALSE)) -> 14.30265654 | R67: 14.30265654 | S67: 2026.070458 | U67: 42 | W67: 0 | Y67: 763.8236802 | AA67: 200 | AC67: 0 | AD67: =Dia_Col_Deduct+Dia_Col_Copay+Dia_Col_Coinsur -> 0 | AE67: 963.8236802 | AG67: 663.8236802 | AI67: 0 | AK67: 100 | AM67: 0 | AO67: 0 | AQ67: 0 | AS67: 0 | AU67: 0 | AW67: 0 | AY67: 0 | BA67: 0
A68: 2011-06-27 | B68: 2 | C68: 250.00, V58.66, V58.67 | D68: 36415 | E68: Primary | F68: Laboratory tests | G68: Routine Venipuncture | L68: 1 | Q68: 4.131255056 | R68: 4.131255056 | S68: 2030.201713 | U68: 42 | W68: 0 | Y68: 763.8236802 | AA68: 200 | AC68: 0 | AD68: 0 | AE68: 963.8236802 | AG68: 663.8236802 | AI68: 0 | AK68: 100 | AM68: 0 | AO68: 0 | AQ68: 0 | AS68: 0 | AU68: 0 | AW68: 0 | AY68: 0 | BA68: 0
A69: 2011-06-27 | B69: 11 | C69: 250.00, V58.66, V58.67 | D69: 81003 | E69: Primary | F69: Laboratory tests | G69: Urinalysis Auto W/O Scope | L69: 1 | Q69: 3.178504779 | R69: 3.178504779 | S69: =R69+S68 -> 2033.380217 | U69: =T69+U68 -> 42 | W69: =V69+W68 -> 0 | Y69: =X69+Y68 -> 763.8236802 | AA69: =Z69+AA68 -> 200 | AC69: =AB69+AC68 -> 0 | AD69: 0 | AE69: =AD69+AE68 -> 963.8236802 | AG69: =AF69+AG68 -> 663.8236802 | AI69: =AH69+AI68 -> 0 | AK69: =AJ69+AK68 -> 100 | AM69: =AL69+AM68 -> 0 | AO69: =AN69+AO68 -> 0 | AQ69: =AP69+AQ68 -> 0 | AS69: =AR69+AS68 -> 0 | AU69: =AT69+AU68 -> 0 | AW69: =AV69+AW68 -> 0 | AY69: =AX69+AY68 -> 0 | BA69: =AZ69+BA68 -> 0
A70: 2011-06-27 | B70: 24 | C70: 250.00, V58.66, V58.67 | D70: 99214 | E70: Primary | F70: Office visits & procedures | G70: Office/Outpatient Visit Est | P70: 1 | Q70: 102.4735938 | R70: 0 | S70: 2033.380217 | U70: 42 | W70: 0 | X70: 102.4735938 | Y70: 866.297274 | Z70: 0 | AA70: 200 | AC70: 0 | AD70: 102.4735938 | AE70: 1066.297274 | AF70: 102.4735938 | AG70: 766.297274 | AI70: 0 | AK70: 100 | AM70: 0 | AO70: 0 | AQ70: 0 | AS70: 0 | AU70: 0 | AW70: 0 | AY70: 0 | BA70: 0
A71: 2011-06-28 | B71: 21 | C71: 250.00, V58.66, V58.67 | D71: 98960 | E71: Diabetes Educator | F71: Office visits & procedures | G71: Self-mgmt educ & train 1 pt | P71: 1 | Q71: 80.52611289 | R71: 0 | S71: 2033.380217 | U71: 42 | W71: 0 | X71: 80.52611289 | Y71: 946.8233869 | Z71: 0 | AA71: 200 | AC71: 0 | AD71: 80.52611289 | AE71: 1146.823387 | AF71: 80.52611289 | AG71: 846.8233869 | AI71: 0 | AK71: 100 | AM71: 0 | AO71: 0 | AQ71: 0 | AS71: 0 | AU71: 0 | AW71: 0 | AY71: 0 | BA71: 0
A72: 2011-06-28 | B72: 20 | C72: 250.00, V58.66, V58.67 | D72: 97803 | E72: Dietician | F72: Office visits & procedures | G72: Med Nutrition Indiv Subseq | P72: 1 | Q72: 63.12776497 | R72: 0 | S72: 2033.380217 | U72: 42 | W72: 0 | X72: 63.12776497 | Y72: 1009.951152 | Z72: 0 | AA72: 200 | AC72: 0 | AD72: 63.12776497 | AE72: 1209.951152 | AF72: 63.12776497 | AG72: 909.9511519 | AI72: 0 | AK72: 100 | AM72: 0 | AO72: 0 | AQ72: 0 | AS72: 0 | AU72: 0 | AW72: 0 | AY72: 0 | BA72: 0
A73: 2011-07-02 | B73: 25 | C73: 250.00, V58.66, V58.67 | D73: OTC | E73: Pharmacy Retail | F73: Medical equipment and supplies | G73: Alcohol swabs (OTC - box of 100) [usage = 3 wipes/day; 90 wipes/month] | I73: 1 | Q73: 3 | S73: 2033.380217 | T73: 3 | U73: 45 | W73: 0 | Y73: 1009.951152 | AA73: 200 | AC73: 0 | AD73: 0 | AE73: 1209.951152 | AG73: 909.9511519 | AI73: 0 | AK73: 100 | AM73: 0 | AO73: 0 | AQ73: 0 | AS73: 0 | AU73: 0 | AW73: 0 | AY73: 0 | BA73: 0
A74: 2011-07-02 | B74: 14 | C74: 250.00, V58.66, V58.67 | D74: 8290328279 | E74: Pharmacy Retail | F74: Medical equipment and supplies | G74: BD Ultrafine Insulin Syringes / 30G/ 0.5cc [usage = 30 syringes per month] | I74: 1 | Q74: 8.4 | R74: 8.4 | S74: 2041.780217 | U74: 45 | W74: 0 | Y74: 1009.951152 | AA74: 200 | AC74: 0 | AD74: 0 | AE74: 1209.951152 | AG74: 909.9511519 | AI74: 0 | AK74: 100 | AM74: 0 | AO74: 0 | AQ74: 0 | AS74: 0 | AU74: 0 | AW74: 0 | AY74: 0 | BA74: 0
A75: 2011-07-02 | B75: 6 | C75: 250.00, V58.66, V58.67 | D75: 53885041601 | E75: Pharmacy Retail | F75: Medical equipment and supplies | G75: OneTouch Ultra Control Solution (2 vials/box) | I75: 1 | Q75: 6.02 | R75: 6.02 | S75: 2047.800217 | U75: 45 | W75: 0 | Y75: 1009.951152 | AA75: 200 | AC75: 0 | AD75: 0 | AE75: 1209.951152 | AG75: 909.9511519 | AI75: 0 | AK75: 100 | AM75: 0 | AO75: 0 | AQ75: 0 | AS75: 0 | AU75: 0 | AW75: 0 | AY75: 0 | BA75: 0
A76: 2011-07-02 | B76: 18 | C76: 250.00, V58.66, V58.67 | D76: 93104801 | E76: Pharmacy Retail | F76: Pharmacy | G76: Metformin hydrochloride 500mg (Rx) [1 BID; #60 pills/month] | J76: 1 | Q76: 34.37 | R76: 24.37 | S76: 2072.170217 | U76: 45 | W76: 0 | X76: 0 | Y76: 1009.951152 | Z76: 10 | AA76: 210 | AC76: 0 | AD76: 10 | AE76: 1219.951152 | AG76: 909.9511519 | AI76: 0 | AJ76: 0 | AK76: 100 | AM76: 0 | AO76: 0 | AQ76: 0 | AS76: 0 | AU76: 0 | AW76: 0 | AY76: 0 | BA76: 0
A77: 2011-07-02 | B77: 19 | C77: 250.00, V58.66, V58.67 | D77: 93743801 | E77: Pharmacy Retail | F77: Pharmacy | G77: Ramipril 10mg (Rx) [1 QD; #30 pills/month] | J77: 1 | Q77: 53.81 | R77: 43.81 | S77: 2115.980217 | U77: 45 | W77: 0 | X77: 0 | Y77: 1009.951152 | Z77: 10 | AA77: 220 | AC77: 0 | AD77: 10 | AE77: 1229.951152 | AG77: 909.9511519 | AI77: 0 | AJ77: 0 | AK77: 100 | AM77: 0 | AO77: 0 | AQ77: 0 | AS77: 0 | AU77: 0 | AW77: 0 | AY77: 0 | BA77: 0
A78: 2011-07-18 | B78: 17 | C78: 250.00, V58.66, V58.67 | D78: 88222033 | E78: Pharmacy Retail | F78: Pharmacy | G78: Insulin glargine 100 unit/ml injectable solution (Rx - 10ml vial) [20 units QD; expires 28 days after first use] | J78: 1 | Q78: 119.2 | R78: 109.2 | S78: 2225.180217 | U78: 45 | W78: 0 | X78: 0 | Y78: 1009.951152 | Z78: 10 | AA78: 230 | AC78: 0 | AD78: 10 | AE78: 1239.951152 | AG78: 909.9511519 | AI78: 0 | AJ78: 0 | AK78: 100 | AM78: 0 | AO78: 0 | AQ78: 0 | AS78: 0 | AU78: 0 | AW78: 0 | AY78: 0 | BA78: 0
A79: 2011-07-22 | B79: 4 | C79: 250.00, V58.66, V58.67 | D79: 53885024510 | E79: Pharmacy Retail | F79: Medical equipment and supplies | G79: OneTouch Ultra Blue Test Strips (Rx - box of 100) [usage = 2 strips/day; 60 per month] | I79: 1 | Q79: 123.6 | R79: 123.6 | S79: 2348.780217 | U79: 45 | W79: 0 | Y79: 1009.951152 | AA79: 230 | AC79: 0 | AD79: 0 | AE79: 1239.951152 | AG79: 909.9511519 | AI79: 0 | AK79: 100 | AM79: 0 | AO79: 0 | AQ79: 0 | AS79: 0 | AU79: 0 | AW79: 0 | AY79: 0 | BA79: 0
A80: 2011-08-01 | B80: 25 | C80: 250.00, V58.66, V58.67 | D80: OTC | E80: Pharmacy Retail | F80: Medical equipment and supplies | G80: Alcohol swabs (OTC - box of 100) [usage = 3 wipes/day; 90 wipes/month] | I80: 1 | Q80: 3 | S80: 2348.780217 | T80: 3 | U80: 48 | W80: 0 | Y80: 1009.951152 | AA80: 230 | AC80: 0 | AD80: 0 | AE80: 1239.951152 | AG80: 909.9511519 | AI80: 0 | AK80: 100 | AM80: 0 | AO80: 0 | AQ80: 0 | AS80: 0 | AU80: 0 | AW80: 0 | AY80: 0 | BA80: 0
A81: 2011-08-01 | B81: 14 | C81: 250.00, V58.66, V58.67 | D81: 8290328279 | E81: Pharmacy Retail | F81: Medical equipment and supplies | G81: BD Ultrafine Insulin Syringes / 30G/ 0.5cc [usage = 30 syringes per month] | I81: 1 | Q81: 8.4 | R81: 8.4 | S81: 2357.180217 | U81: 48 | W81: 0 | Y81: 1009.951152 | AA81: 230 | AC81: 0 | AD81: 0 | AE81: 1239.951152 | AG81: 909.9511519 | AI81: 0 | AK81: 100 | AM81: 0 | AO81: 0 | AQ81: 0 | AS81: 0 | AU81: 0 | AW81: 0 | AY81: 0 | BA81: 0
A82: 2011-08-01 | B82: 18 | C82: 250.00, V58.66, V58.67 | D82: 93104801 | E82: Pharmacy Retail | F82: Pharmacy | G82: Metformin hydrochloride 500mg (Rx) [1 BID; #60 pills/month] | J82: 1 | Q82: 34.37 | R82: 24.37 | S82: 2381.550217 | U82: 48 | W82: 0 | X82: 0 | Y82: 1009.951152 | Z82: 10 | AA82: 240 | AC82: 0 | AD82: 10 | AE82: 1249.951152 | AG82: 909.9511519 | AI82: 0 | AJ82: 0 | AK82: 100 | AM82: 0 | AO82: 0 | AQ82: 0 | AS82: 0 | AU82: 0 | AW82: 0 | AY82: 0 | BA82: 0
A83: 2011-08-01 | B83: 19 | C83: 250.00, V58.66, V58.67 | D83: 93743801 | E83: Pharmacy Retail | F83: Pharmacy | G83: Ramipril 10mg (Rx) [1 QD; #30 pills/month] | J83: 1 | Q83: 53.81 | R83: 43.81 | S83: 2425.360217 | U83: 48 | W83: 0 | X83: 0 | Y83: 1009.951152 | Z83: 10 | AA83: 250 | AC83: 0 | AD83: 10 | AE83: 1259.951152 | AG83: 909.9511519 | AI83: 0 | AJ83: 0 | AK83: 100 | AM83: 0 | AO83: 0 | AQ83: 0 | AS83: 0 | AU83: 0 | AW83: 0 | AY83: 0 | BA83: 0
A84: 2011-08-15 | B84: 17 | C84: 250.00, V58.66, V58.67 | D84: 88222033 | E84: Pharmacy Retail | F84: Pharmacy | G84: Insulin glargine 100 unit/ml injectable solution (Rx - 10ml vial) [20 units QD; expires 28 days after first use] | J84: 1 | Q84: 119.2 | R84: 109.2 | S84: 2534.560217 | U84: 48 | W84: 0 | X84: 0 | Y84: 1009.951152 | Z84: 10 | AA84: 260 | AC84: 0 | AD84: 10 | AE84: 1269.951152 | AG84: 909.9511519 | AI84: 0 | AJ84: 0 | AK84: 100 | AM84: 0 | AO84: 0 | AQ84: 0 | AS84: 0 | AU84: 0 | AW84: 0 | AY84: 0 | BA84: 0
A85: =A66+50 -> 2011-08-16 | B85: 4 | C85: 250.00, V58.66, V58.67 | D85: 53885024510 | E85: Pharmacy Retail | F85: Medical equipment and supplies | G85: OneTouch Ultra Blue Test Strips (Rx - box of 100) [usage = 2 strips/day; 60 per month] | I85: 1 | Q85: 123.6 | R85: 123.6 | S85: 2658.160217 | U85: 48 | W85: 0 | Y85: 1009.951152 | AA85: 260 | AC85: 0 | AD85: 0 | AE85: 1269.951152 | AG85: 909.9511519 | AI85: 0 | AK85: 100 | AM85: 0 | AO85: 0 | AQ85: 0 | AS85: 0 | AU85: 0 | AW85: 0 | AY85: 0 | BA85: 0
A86: 2011-08-31 | B86: 25 | C86: 250.00, V58.66, V58.67 | D86: OTC | E86: Pharmacy Retail | F86: Medical equipment and supplies | G86: Alcohol swabs (OTC - box of 100) [usage = 3 wipes/day; 90 wipes/month] | I86: 1 | Q86: 3 | S86: 2658.160217 | T86: 3 | U86: 51 | W86: 0 | Y86: 1009.951152 | AA86: 260 | AC86: 0 | AD86: 0 | AE86: 1269.951152 | AG86: 909.9511519 | AI86: 0 | AK86: 100 | AM86: 0 | AO86: 0 | AQ86: 0 | AS86: 0 | AU86: 0 | AW86: 0 | AY86: 0 | BA86: 0
A87: 2011-08-31 | B87: 14 | C87: 250.00, V58.66, V58.67 | D87: 8290328279 | E87: Pharmacy Retail | F87: Medical equipment and supplies | G87: BD Ultrafine Insulin Syringes / 30G/ 0.5cc [usage = 30 syringes per month] | I87: 1 | Q87: 8.4 | R87: 8.4 | S87: 2666.560217 | U87: 51 | W87: 0 | Y87: 1009.951152 | AA87: 260 | AC87: 0 | AD87: 0 | AE87: 1269.951152 | AG87: 909.9511519 | AI87: 0 | AK87: 100 | AM87: 0 | AO87: 0 | AQ87: 0 | AS87: 0 | AU87: 0 | AW87: 0 | AY87: 0 | BA87: 0
A88: 2011-08-31 | B88: 18 | C88: 250.00, V58.66, V58.67 | D88: 93104801 | E88: Pharmacy Retail | F88: Pharmacy | G88: Metformin hydrochloride 500mg (Rx) [1 BID; #60 pills/month] | J88: 1 | Q88: 34.37 | R88: 24.37 | S88: 2690.930217 | U88: 51 | W88: 0 | X88: 0 | Y88: 1009.951152 | Z88: 10 | AA88: 270 | AC88: 0 | AD88: 10 | AE88: 1279.951152 | AG88: 909.9511519 | AI88: 0 | AJ88: 0 | AK88: 100 | AM88: 0 | AO88: 0 | AQ88: 0 | AS88: 0 | AU88: 0 | AW88: 0 | AY88: 0 | BA88: 0
A89: 2011-08-31 | B89: 19 | C89: 250.00, V58.66, V58.67 | D89: 93743801 | E89: Pharmacy Retail | F89: Pharmacy | G89: Ramipril 10mg (Rx) [1 QD; #30 pills/month] | J89: 1 | Q89: 53.81 | R89: 43.81 | S89: 2734.740217 | U89: 51 | W89: 0 | X89: 0 | Y89: 1009.951152 | Z89: 10 | AA89: 280 | AC89: 0 | AD89: 10 | AE89: 1289.951152 | AG89: 909.9511519 | AI89: 0 | AJ89: 0 | AK89: 100 | AM89: 0 | AO89: 0 | AQ89: 0 | AS89: 0 | AU89: 0 | AW89: 0 | AY89: 0 | BA89: 0
A90: 2011-09-10 | B90: 5 | C90: 250.00, V58.66, V58.67 | D90: 53885039310 | E90: Pharmacy Retail | F90: Medical equipment and supplies | G90: OneTouch Delica Lancets (100 per box) [usage = 60 lancets per month] | I90: 1 | Q90: 9 | R90: 9 | S90: 2743.740217 | U90: 51 | W90: 0 | Y90: 1009.951152 | AA90: 280 | AC90: 0 | AD90: 0 | AE90: 1289.951152 | AG90: 909.9511519 | AI90: 0 | AK90: 100 | AM90: 0 | AO90: 0 | AQ90: 0 | AS90: 0 | AU90: 0 | AW90: 0 | AY90: 0 | BA90: 0
A91: 2011-09-10 | B91: 4 | C91: 250.00, V58.66, V58.67 | D91: 53885024510 | E91: Pharmacy Retail | F91: Medical equipment and supplies | G91: OneTouch Ultra Blue Test Strips (Rx - box of 100) [usage = 2 strips/day; 60 per month] | I91: 1 | Q91: 123.6 | R91: 123.6 | S91: 2867.340217 | U91: 51 | W91: 0 | Y91: 1009.951152 | AA91: 280 | AC91: 0 | AD91: 0 | AE91: 1289.951152 | AG91: 909.9511519 | AI91: 0 | AK91: 100 | AM91: 0 | AO91: 0 | AQ91: 0 | AS91: 0 | AU91: 0 | AW91: 0 | AY91: 0 | BA91: 0
A92: 2011-09-12 | B92: 26 | C92: 250.00, V58.66, V58.67 | D92: OTC | E92: Pharmacy Retail | F92: Pharmacy | G92: Aspirin 81mg (OTC - bottle 100) [usage = 1 QD; #30 pills per month] | Q92: 8 | S92: 2867.340217 | T92: 8 | U92: 59 | W92: 0 | Y92: 1009.951152 | AA92: 280 | AC92: 0 | AD92: 0 | AE92: 1289.951152 | AG92: 909.9511519 | AI92: 0 | AK92: 100 | AM92: 0 | AO92: 0 | AQ92: 0 | AS92: 0 | AU92: 0 | AW92: 0 | AY92: 0 | BA92: 0
A93: 2011-09-12 | B93: 17 | C93: 250.00, V58.66, V58.67 | D93: 88222033 | E93: Pharmacy Retail | F93: Pharmacy | G93: Insulin glargine 100 unit/ml injectable solution (Rx - 10ml vial) [20 units QD; expires 28 days after first use] | J93: 1 | Q93: 119.2 | R93: 109.2 | S93: 2976.540217 | U93: 59 | W93: 0 | X93: 0 | Y93: 1009.951152 | Z93: 10 | AA93: 290 | AC93: 0 | AD93: 10 | AE93: 1299.951152 | AG93: 909.9511519 | AI93: 0 | AJ93: 0 | AK93: 100 | AM93: 0 | AO93: 0 | AQ93: 0 | AS93: 0 | AU93: 0 | AW93: 0 | AY93: 0 | BA93: 0
A94: 2011-09-26 | B94: 24 | C94: 250.00, V58.66, V58.67 | D94: 99214 | E94: Primary | F94: Office visits & procedures | G94: Office/Outpatient Visit Est | P94: 1 | Q94: 102.4735938 | R94: 0 | S94: 2976.540217 | U94: 59 | W94: 0 | X94: 90.0488 | Y94: 1099.999952 | Z94: 12.42479377 | AA94: 302.4247938 | AC94: 0 | AD94: 102.4735938 | AE94: 1402.424746 | AF94: 90.0488 | AG94: 999.9999519 | AI94: 0 | AK94: 100 | AM94: 0 | AO94: 0 | AQ94: 0 | AS94: 0 | AU94: 0 | AW94: 0 | AY94: 0 | BA94: 0
A95: 2011-09-30 | B95: 25 | C95: 250.00, V58.66, V58.67 | D95: OTC | E95: Pharmacy Retail | F95: Medical equipment and supplies | G95: Alcohol swabs (OTC - box of 100) [usage = 3 wipes/day; 90 wipes/month] | I95: 1 | Q95: 3 | S95: 2976.540217 | T95: 3 | U95: 62 | W95: 0 | Y95: 1099.999952 | AA95: 302.4247938 | AC95: 0 | AD95: 0 | AE95: 1402.424746 | AG95: 999.9999519 | AI95: 0 | AK95: 100 | AM95: 0 | AO95: 0 | AQ95: 0 | AS95: 0 | AU95: 0 | AW95: 0 | AY95: 0 | BA95: 0
A96: 2011-09-30 | B96: 14 | C96: 250.00, V58.66, V58.67 | D96: 8290328279 | E96: Pharmacy Retail | F96: Medical equipment and supplies | G96: BD Ultrafine Insulin Syringes / 30G/ 0.5cc [usage = 30 syringes per month] | I96: 1 | Q96: 8.4 | R96: 8.4 | S96: 2984.940217 | U96: 62 | W96: 0 | Y96: 1099.999952 | AA96: 302.4247938 | AC96: 0 | AD96: 0 | AE96: 1402.424746 | AG96: 999.9999519 | AI96: 0 | AK96: 100 | AM96: 0 | AO96: 0 | AQ96: 0 | AS96: 0 | AU96: 0 | AW96: 0 | AY96: 0 | BA96: 0
A97: 2011-09-30 | B97: 18 | C97: 250.00, V58.66, V58.67 | D97: 93104801 | E97: Pharmacy Retail | F97: Pharmacy | G97: Metformin hydrochloride 500mg (Rx) [1 BID; #60 pills/month] | J97: 1 | Q97: 34.37 | R97: 24.37 | S97: 3009.310217 | U97: 62 | W97: 0 | X97: 0 | Y97: 1099.999952 | Z97: 10 | AA97: 312.4247938 | AC97: 0 | AD97: 10 | AE97: 1412.424746 | AG97: 999.9999519 | AI97: 0 | AJ97: 0 | AK97: 100 | AM97: 0 | AO97: 0 | AQ97: 0 | AS97: 0 | AU97: 0 | AW97: 0 | AY97: 0 | BA97: 0
A98: 2011-09-30 | B98: 19 | C98: 250.00, V58.66, V58.67 | D98: 93743801 | E98: Pharmacy Retail | F98: Pharmacy | G98: Ramipril 10mg (Rx) [1 QD; #30 pills/month] | J98: 1 | Q98: 53.81 | R98: 43.81 | S98: 3053.120217 | U98: 62 | W98: 0 | X98: 0 | Y98: 1099.999952 | Z98: 10 | AA98: 322.4247938 | AC98: 0 | AD98: 10 | AE98: 1422.424746 | AG98: 999.9999519 | AI98: 0 | AJ98: 0 | AK98: 100 | AM98: 0 | AO98: 0 | AQ98: 0 | AS98: 0 | AU98: 0 | AW98: 0 | AY98: 0 | BA98: 0
A99: 2011-10-03 | B99: 28 | C99: =IF(ISBLANK(VLOOKUP(Dia_Claim,Dia_UniqueLine,2,FALSE)),"",VLOOKUP(Dia_Claim,Dia_UniqueLine,2,FALSE)) -> V03.82 | D99: =IF(ISBLANK(VLOOKUP(Dia_Claim,Dia_UniqueLine,3,FALSE)),"",VLOOKUP(Dia_Claim,Dia_UniqueLine,3,FALSE)) -> 90472 | E99: =IF(ISBLANK(VLOOKUP(Dia_Claim,Dia_UniqueLine,4,FALSE)),"",VLOOKUP(Dia_Claim,Dia_UniqueLine,4,FALSE)) -> Primary | F99: =IF(ISBLANK(VLOOKUP(Dia_Claim,Dia_UniqueLine,5,FALSE)),"",VLOOKUP(Dia_Claim,Dia_UniqueLine,5,FALSE)) -> Vaccines, other preventive | G99: =IF(ISBLANK(VLOOKUP(Dia_Claim,Dia_UniqueLine,6,FALSE)),"",VLOOKUP(Dia_Claim,Dia_UniqueLine,6,FALSE)) -> Immunization admin each add | H99: =IF(ISBLANK(VLOOKUP(Dia_Claim,Dia_UniqueLine,8,FALSE)),"",VLOOKUP(Dia_Claim,Dia_UniqueLine,8,FALSE)) ->  | I99: =IF(Dia_Col_Category="Medical equipment and supplies",1,"") ->  | J99: =IF(AND(Dia_Col_Category="Pharmacy",Dia_Col_BillCode<>"OTC"),1,"") ->  | K99: =IF(AND(Dia_Col_Category="Anesthesia",Dia_Col_Provider<>"Inpatient facility"),1,"") ->  | L99: =IF(Dia_Col_Category="Laboratory tests",1,"") ->  | M99: =IF(Dia_Col_Category="Radiology",1,"") ->  | N99: =IF(Dia_Col_BillCode="Bundled in global OB package - 59400",1,"") ->  | O99: =IF(Dia_Col_Category="Vaccines, other preventive",1,"") -> 1 | P99: =IF(Dia_Col_Category="Office visits & procedures",1,"") ->  | Q99: =IF(ISBLANK(VLOOKUP(Dia_Claim,Dia_UniqueLine,7,FALSE)),"",VLOOKUP(Dia_Claim,Dia_UniqueLine,7,FALSE)) -> 13.43657624 | R99: 13.43657624 | S99: 3066.556794 | U99: 62 | W99: 0 | Y99: 1099.999952 | AA99: 322.4247938 | AC99: 0 | AD99: 0 | AE99: 1422.424746 | AG99: 999.9999519 | AI99: 0 | AK99: 100 | AM99: 0 | AO99: 0 | AQ99: 0 | AS99: 0 | AU99: 0 | AW99: 0 | AY99: 0 | BA99: 0
A100: 2011-10-03 | B100: 27 | C100: V03.82 | D100: 90471 | E100: Primary | F100: Vaccines, other preventive | G100: Immunization Admin ADMIN | O100: 1 | Q100: 13.43657624 | R100: 13.43657624 | S100: 3079.99337 | U100: 62 | W100: 0 | Y100: 1099.999952 | AA100: 322.4247938 | AC100: 0 | AD100: 0 | AE100: 1422.424746 | AG100: 999.9999519 | AI100: 0 | AK100: 100 | AM100: 0 | AO100: 0 | AQ100: 0 | AS100: 0 | AU100: 0 | AW100: 0 | AY100: 0 | BA100: 0
A101: 2011-10-03 | B101: 29 | C101: V03.82 | D101: 90669 | E101: Primary | F101: Vaccines, other preventive | G101: Pneumococcal vacc 7 val im | O101: 1 | Q101: 98.21815127 | R101: 98.21815127 | S101: 3178.211521 | U101: 62 | W101: 0 | Y101: 1099.999952 | AA101: 322.4247938 | AC101: 0 | AD101: 0 | AE101: 1422.424746 | AG101: 999.9999519 | AI101: 0 | AK101: 100 | AM101: 0 | AO101: 0 | AQ101: 0 | AS101: 0 | AU101: 0 | AW101: 0 | AY101: 0 | BA101: 0
A102: 2011-10-03 | B102: 30 | C102: V04.81 | D102: 90656 | E102: Primary | F102: Vaccines, other preventive | G102: Flu Vaccine No Preserv 3 & > | O102: 1 | Q102: 15.03511905 | R102: 15.03511905 | S102: 3193.24664 | U102: 62 | W102: 0 | Y102: 1099.999952 | AA102: 322.4247938 | AC102: 0 | AD102: 0 | AE102: 1422.424746 | AG102: 999.9999519 | AI102: 0 | AK102: 100 | AM102: 0 | AO102: 0 | AQ102: 0 | AS102: 0 | AU102: 0 | AW102: 0 | AY102: 0 | BA102: 0
A103: 2011-10-10 | B103: 17 | C103: 250.00, V58.66, V58.67 | D103: 88222033 | E103: Pharmacy Retail | F103: Pharmacy | G103: Insulin glargine 100 unit/ml injectable solution (Rx - 10ml vial) [20 units QD; expires 28 days after first use] | J103: 1 | Q103: 119.2 | R103: 109.2 | S103: 3302.44664 | U103: 62 | W103: 0 | X103: 0 | Y103: 1099.999952 | Z103: 10 | AA103: 332.4247938 | AC103: 0 | AD103: 10 | AE103: 1432.424746 | AG103: 999.9999519 | AI103: 0 | AJ103: 0 | AK103: 100 | AM103: 0 | AO103: 0 | AQ103: 0 | AS103: 0 | AU103: 0 | AW103: 0 | AY103: 0 | BA103: 0
A104: 2011-10-30 | B104: 25 | C104: 250.00, V58.66, V58.67 | D104: OTC | E104: Pharmacy Retail | F104: Medical equipment and supplies | G104: Alcohol swabs (OTC - box of 100) [usage = 3 wipes/day; 90 wipes/month] | I104: 1 | Q104: 3 | S104: 3302.44664 | T104: 3 | U104: 65 | W104: 0 | Y104: 1099.999952 | AA104: 332.4247938 | AC104: 0 | AD104: 0 | AE104: 1432.424746 | AG104: 999.9999519 | AI104: 0 | AK104: 100 | AM104: 0 | AO104: 0 | AQ104: 0 | AS104: 0 | AU104: 0 | AW104: 0 | AY104: 0 | BA104: 0
A105: 2011-10-30 | B105: 14 | C105: 250.00, V58.66, V58.67 | D105: 8290328279 | E105: Pharmacy Retail | F105: Medical equipment and supplies | G105: BD Ultrafine Insulin Syringes / 30G/ 0.5cc [usage = 30 syringes per month] | I105: 1 | Q105: 8.4 | R105: 8.4 | S105: 3310.84664 | U105: 65 | W105: 0 | Y105: 1099.999952 | AA105: 332.4247938 | AC105: 0 | AD105: 0 | AE105: 1432.424746 | AG105: 999.9999519 | AI105: 0 | AK105: 100 | AM105: 0 | AO105: 0 | AQ105: 0 | AS105: 0 | AU105: 0 | AW105: 0 | AY105: 0 | BA105: 0
A106: 2011-10-30 | B106: 5 | C106: 250.00, V58.66, V58.67 | D106: 53885039310 | E106: Pharmacy Retail | F106: Medical equipment and supplies | G106: OneTouch Delica Lancets (100 per box) [usage = 60 lancets per month] | I106: 1 | Q106: 9 | R106: 9 | S106: 3319.84664 | U106: 65 | W106: 0 | Y106: 1099.999952 | AA106: 332.4247938 | AC106: 0 | AD106: 0 | AE106: 1432.424746 | AG106: 999.9999519 | AI106: 0 | AK106: 100 | AM106: 0 | AO106: 0 | AQ106: 0 | AS106: 0 | AU106: 0 | AW106: 0 | AY106: 0 | BA106: 0
A107: 2011-10-30 | B107: 18 | C107: 250.00, V58.66, V58.67 | D107: 93104801 | E107: Pharmacy Retail | F107: Pharmacy | G107: Metformin hydrochloride 500mg (Rx) [1 BID; #60 pills/month] | J107: 1 | Q107: 34.37 | R107: 24.37 | S107: 3344.21664 | U107: 65 | W107: 0 | X107: 0 | Y107: 1099.999952 | Z107: 10 | AA107: 342.4247938 | AC107: 0 | AD107: 10 | AE107: 1442.424746 | AG107: 999.9999519 | AI107: 0 | AJ107: 0 | AK107: 100 | AM107: 0 | AO107: 0 | AQ107: 0 | AS107: 0 | AU107: 0 | AW107: 0 | AY107: 0 | BA107: 0
A108: 2011-10-30 | B108: 19 | C108: 250.00, V58.66, V58.67 | D108: 93743801 | E108: Pharmacy Retail | F108: Pharmacy | G108: Ramipril 10mg (Rx) [1 QD; #30 pills/month] | J108: 1 | Q108: 53.81 | R108: 43.81 | S108: 3388.02664 | U108: 65 | W108: 0 | X108: 0 | Y108: 1099.999952 | Z108: 10 | AA108: 352.4247938 | AC108: 0 | AD108: 10 | AE108: 1452.424746 | AG108: 999.9999519 | AI108: 0 | AJ108: 0 | AK108: 100 | AM108: 0 | AO108: 0 | AQ108: 0 | AS108: 0 | AU108: 0 | AW108: 0 | AY108: 0 | BA108: 0
A109: 2011-11-07 | B109: 17 | C109: 250.00, V58.66, V58.67 | D109: 88222033 | E109: Pharmacy Retail | F109: Pharmacy | G109: Insulin glargine 100 unit/ml injectable solution (Rx - 10ml vial) [20 units QD; expires 28 days after first use] | J109: 1 | Q109: 119.2 | R109: 109.2 | S109: 3497.22664 | U109: 65 | W109: 0 | X109: 0 | Y109: 1099.999952 | Z109: 10 | AA109: 362.4247938 | AC109: 0 | AD109: 10 | AE109: 1462.424746 | AG109: 999.9999519 | AI109: 0 | AJ109: 0 | AK109: 100 | AM109: 0 | AO109: 0 | AQ109: 0 | AS109: 0 | AU109: 0 | AW109: 0 | AY109: 0 | BA109: 0
A110: 2011-11-29 | B110: 25 | C110: 250.00, V58.66, V58.67 | D110: OTC | E110: Pharmacy Retail | F110: Medical equipment and supplies | G110: Alcohol swabs (OTC - box of 100) [usage = 3 wipes/day; 90 wipes/month] | I110: 1 | Q110: 3 | S110: 3497.22664 | T110: 3 | U110: 68 | W110: 0 | Y110: 1099.999952 | AA110: 362.4247938 | AC110: 0 | AD110: 0 | AE110: 1462.424746 | AG110: 999.9999519 | AI110: 0 | AK110: 100 | AM110: 0 | AO110: 0 | AQ110: 0 | AS110: 0 | AU110: 0 | AW110: 0 | AY110: 0 | BA110: 0
A111: 2011-11-29 | B111: 14 | C111: 250.00, V58.66, V58.67 | D111: 8290328279 | E111: Pharmacy Retail | F111: Medical equipment and supplies | G111: BD Ultrafine Insulin Syringes / 30G/ 0.5cc [usage = 30 syringes per month] | I111: 1 | Q111: 8.4 | R111: 8.4 | S111: 3505.62664 | U111: 68 | W111: 0 | Y111: 1099.999952 | AA111: 362.4247938 | AC111: 0 | AD111: 0 | AE111: 1462.424746 | AG111: 999.9999519 | AI111: 0 | AK111: 100 | AM111: 0 | AO111: 0 | AQ111: 0 | AS111: 0 | AU111: 0 | AW111: 0 | AY111: 0 | BA111: 0
A112: 2011-11-29 | B112: 18 | C112: 250.00, V58.66, V58.67 | D112: 93104801 | E112: Pharmacy Retail | F112: Pharmacy | G112: Metformin hydrochloride 500mg (Rx) [1 BID; #60 pills/month] | J112: 1 | Q112: 34.37 | R112: 24.37 | S112: 3529.99664 | U112: 68 | W112: 0 | X112: 0 | Y112: 1099.999952 | Z112: 10 | AA112: 372.4247938 | AC112: 0 | AD112: 10 | AE112: 1472.424746 | AG112: 999.9999519 | AI112: 0 | AJ112: 0 | AK112: 100 | AM112: 0 | AO112: 0 | AQ112: 0 | AS112: 0 | AU112: 0 | AW112: 0 | AY112: 0 | BA112: 0
A113: 2011-11-29 | B113: 19 | C113: 250.00, V58.66, V58.67 | D113: 93743801 | E113: Pharmacy Retail | F113: Pharmacy | G113: Ramipril 10mg (Rx) [1 QD; #30 pills/month] | J113: 1 | Q113: 53.81 | R113: 43.81 | S113: 3573.80664 | U113: 68 | W113: 0 | X113: 0 | Y113: 1099.999952 | Z113: 10 | AA113: 382.4247938 | AC113: 0 | AD113: 10 | AE113: 1482.424746 | AG113: 999.9999519 | AI113: 0 | AJ113: 0 | AK113: 100 | AM113: 0 | AO113: 0 | AQ113: 0 | AS113: 0 | AU113: 0 | AW113: 0 | AY113: 0 | BA113: 0
A114: 2011-12-05 | B114: 26 | C114: 250.00, V58.66, V58.67 | D114: OTC | E114: Pharmacy Retail | F114: Pharmacy | G114: Aspirin 81mg (OTC - bottle 100) [usage = 1 QD; #30 pills per month] | Q114: 8 | S114: 3573.80664 | T114: 8 | U114: 76 | W114: 0 | Y114: 1099.999952 | AA114: 382.4247938 | AC114: 0 | AD114: 0 | AE114: 1482.424746 | AG114: 999.9999519 | AI114: 0 | AK114: 100 | AM114: 0 | AO114: 0 | AQ114: 0 | AS114: 0 | AU114: 0 | AW114: 0 | AY114: 0 | BA114: 0
A115: 2011-12-05 | B115: 17 | C115: 250.00, V58.66, V58.67 | D115: 88222033 | E115: Pharmacy Retail | F115: Pharmacy | G115: Insulin glargine 100 unit/ml injectable solution (Rx - 10ml vial) [20 units QD; expires 28 days after first use] | J115: 1 | Q115: 119.2 | R115: 109.2 | S115: 3683.00664 | U115: 76 | W115: 0 | X115: 0 | Y115: 1099.999952 | Z115: 10 | AA115: 392.4247938 | AC115: 0 | AD115: 10 | AE115: 1492.424746 | AG115: 999.9999519 | AI115: 0 | AJ115: 0 | AK115: 100 | AM115: 0 | AO115: 0 | AQ115: 0 | AS115: 0 | AU115: 0 | AW115: 0 | AY115: 0 | BA115: 0
A116: 2011-12-19 | B116: 5 | C116: 250.00, V58.66, V58.67 | D116: 53885039310 | E116: Pharmacy Retail | F116: Medical equipment and supplies | G116: OneTouch Delica Lancets (100 per box) [usage = 60 lancets per month] | I116: 1 | Q116: 9 | R116: 9 | S116: 3692.00664 | U116: 76 | W116: 0 | Y116: 1099.999952 | AA116: 392.4247938 | AC116: 0 | AD116: 0 | AE116: 1492.424746 | AG116: 999.9999519 | AI116: 0 | AK116: 100 | AM116: 0 | AO116: 0 | AQ116: 0 | AS116: 0 | AU116: 0 | AW116: 0 | AY116: 0 | BA116: 0
A117: 2011-12-19 | B117: 4 | C117: 250.00, V58.66, V58.67 | D117: 53885024510 | E117: Pharmacy Retail | F117: Medical equipment and supplies | G117: OneTouch Ultra Blue Test Strips (Rx - box of 100) [usage = 2 strips/day; 60 per month] | I117: 1 | Q117: 123.6 | R117: 123.6 | S117: 3815.60664 | U117: 76 | W117: 0 | Y117: 1099.999952 | AA117: 392.4247938 | AC117: 0 | AD117: 0 | AE117: 1492.424746 | AG117: 999.9999519 | AI117: 0 | AK117: 100 | AM117: 0 | AO117: 0 | AQ117: 0 | AS117: 0 | AU117: 0 | AW117: 0 | AY117: 0 | BA117: 0
A118: 2011-12-29 | B118: 25 | C118: 250.00, V58.66, V58.67 | D118: OTC | E118: Pharmacy Retail | F118: Medical equipment and supplies | G118: Alcohol swabs (OTC - box of 100) [usage = 3 wipes/day; 90 wipes/month] | I118: 1 | Q118: 3 | S118: 3815.60664 | T118: 3 | U118: 79 | W118: 0 | Y118: 1099.999952 | AA118: 392.4247938 | AC118: 0 | AD118: 0 | AE118: 1492.424746 | AG118: 999.9999519 | AI118: 0 | AK118: 100 | AM118: 0 | AO118: 0 | AQ118: 0 | AS118: 0 | AU118: 0 | AW118: 0 | AY118: 0 | BA118: 0
A119: 2011-12-29 | B119: 14 | C119: 250.00, V58.66, V58.67 | D119: 8290328279 | E119: Pharmacy Retail | F119: Medical equipment and supplies | G119: BD Ultrafine Insulin Syringes / 30G/ 0.5cc [usage = 30 syringes per month] | I119: 1 | Q119: 8.4 | R119: 8.4 | S119: 3824.00664 | U119: 79 | W119: 0 | Y119: 1099.999952 | AA119: 392.4247938 | AC119: 0 | AD119: 0 | AE119: 1492.424746 | AG119: 999.9999519 | AI119: 0 | AK119: 100 | AM119: 0 | AO119: 0 | AQ119: 0 | AS119: 0 | AU119: 0 | AW119: 0 | AY119: 0 | BA119: 0
A120: 2011-12-29 | B120: 6 | C120: 250.00, V58.66, V58.67 | D120: 53885041601 | E120: Pharmacy Retail | F120: Medical equipment and supplies | G120: OneTouch Ultra Control Solution (2 vials/box) | I120: 1 | Q120: 6.02 | R120: 6.02 | S120: 3830.02664 | U120: 79 | W120: 0 | Y120: 1099.999952 | AA120: 392.4247938 | AC120: 0 | AD120: 0 | AE120: 1492.424746 | AG120: 999.9999519 | AI120: 0 | AK120: 100 | AM120: 0 | AO120: 0 | AQ120: 0 | AS120: 0 | AU120: 0 | AW120: 0 | AY120: 0 | BA120: 0
A121: 2011-12-29 | B121: 18 | C121: 250.00, V58.66, V58.67 | D121: 93104801 | E121: Pharmacy Retail | F121: Pharmacy | G121: Metformin hydrochloride 500mg (Rx) [1 BID; #60 pills/month] | J121: 1 | Q121: 34.37 | R121: 24.37 | S121: 3854.39664 | U121: 79 | W121: 0 | X121: 0 | Y121: 1099.999952 | Z121: 10 | AA121: 402.4247938 | AC121: 0 | AD121: 10 | AE121: 1502.424746 | AG121: 999.9999519 | AI121: 0 | AJ121: 0 | AK121: 100 | AM121: 0 | AO121: 0 | AQ121: 0 | AS121: 0 | AU121: 0 | AW121: 0 | AY121: 0 | BA121: 0
A122: 2011-12-29 | B122: 19 | C122: 250.00, V58.66, V58.67 | D122: 93743801 | E122: Pharmacy Retail | F122: Pharmacy | G122: Ramipril 10mg (Rx) [1 QD; #30 pills/month] | J122: 1 | Q122: 53.81 | R122: 43.81 | S122: 3898.20664 | U122: 79 | W122: 0 | X122: 0 | Y122: 1099.999952 | Z122: 10 | AA122: 412.4247938 | AC122: 0 | AD122: 10 | AE122: 1512.424746 | AG122: 999.9999519 | AI122: 0 | AJ122: 0 | AK122: 100 | AM122: 0 | AO122: 0 | AQ122: 0 | AS122: 0 | AU122: 0 | AW122: 0 | AY122: 0 | BA122: 0
S123: 3898.20664 | U123: 79 | W123: 0 | Y123: 1099.999952 | AA123: 412.4247938 | AC123: 0 | AD123: 0 | AE123: 1512.424746 | AG123: 999.9999519 | AI123: 0 | AK123: 100 | AM123: 0 | AO123: 0 | AQ123: 0 | AS123: 0 | AU123: 0 | AW123: 0 | AY123: 0 | BA123: 0
S124: 3898.20664 | U124: 79 | W124: 0 | Y124: 1099.999952 | AA124: 412.4247938 | AC124: 0 | AD124: 0 | AE124: 1512.424746 | AG124: 999.9999519 | AI124: 0 | AK124: 100 | AM124: 0 | AO124: 0 | AQ124: 0 | AS124: 0 | AU124: 0 | AW124: 0 | AY124: 0 | BA124: 0
S125: 3898.20664 | U125: 79 | W125: 0 | Y125: 1099.999952 | AA125: 412.4247938 | AC125: 0 | AD125: 0 | AE125: 1512.424746 | AG125: 999.9999519 | AI125: 0 | AK125: 100 | AM125: 0 | AO125: 0 | AQ125: 0 | AS125: 0 | AU125: 0 | AW125: 0 | AY125: 0 | BA125: 0
S126: 3898.20664 | U126: 79 | W126: 0 | Y126: 1099.999952 | AA126: 412.4247938 | AC126: 0 | AD126: 0 | AE126: 1512.424746 | AG126: 999.9999519 | AI126: 0 | AK126: 100 | AM126: 0 | AO126: 0 | AQ126: 0 | AS126: 0 | AU126: 0 | AW126: 0 | AY126: 0 | BA126: 0
S127: 3898.20664 | U127: 79 | W127: 0 | Y127: 1099.999952 | AA127: 412.4247938 | AC127: 0 | AD127: 0 | AE127: 1512.424746 | AG127: 999.9999519 | AI127: 0 | AK127: 100 | AM127: 0 | AO127: 0 | AQ127: 0 | AS127: 0 | AU127: 0 | AW127: 0 | AY127: 0 | BA127: 0
S128: 3898.20664 | U128: 79 | W128: 0 | Y128: 1099.999952 | AA128: 412.4247938 | AC128: 0 | AD128: 0 | AE128: 1512.424746 | AG128: 999.9999519 | AI128: 0 | AK128: 100 | AM128: 0 | AO128: 0 | AQ128: 0 | AS128: 0 | AU128: 0 | AW128: 0 | AY128: 0 | BA128: 0
S129: 3898.20664 | U129: 79 | W129: 0 | Y129: 1099.999952 | AA129: 412.4247938 | AC129: 0 | AD129: 0 | AE129: 1512.424746 | AG129: 999.9999519 | AI129: 0 | AK129: 100 | AM129: 0 | AO129: 0 | AQ129: 0 | AS129: 0 | AU129: 0 | AW129: 0 | AY129: 0 | BA129: 0
S130: 3898.20664 | U130: 79 | W130: 0 | Y130: 1099.999952 | AA130: 412.4247938 | AC130: 0 | AD130: 0 | AE130: 1512.424746 | AG130: 999.9999519 | AI130: 0 | AK130: 100 | AM130: 0 | AO130: 0 | AQ130: 0 | AS130: 0 | AU130: 0 | AW130: 0 | AY130: 0 | BA130: 0
S131: 3898.20664 | U131: 79 | W131: 0 | Y131: 1099.999952 | AA131: 412.4247938 | AC131: 0 | AD131: =Dia_Col_Deduct+Dia_Col_Copay+Dia_Col_Coinsur -> 0 | AE131: 1512.424746 | AG131: 999.9999519 | AI131: 0 | AK131: 100 | AM131: 0 | AO131: 0 | AQ131: 0 | AS131: 0 | AU131: 0 | AW131: 0 | AY131: 0 | BA131: 0
S132: 3898.20664 | U132: 79 | W132: 0 | Y132: 1099.999952 | AA132: 412.4247938 | AC132: 0 | AD132: 0 | AE132: 1512.424746 | AG132: 999.9999519 | AI132: 0 | AK132: 100 | AM132: 0 | AO132: 0 | AQ132: 0 | AS132: 0 | AU132: 0 | AW132: 0 | AY132: 0 | BA132: 0
S133: =R133+S132 -> 3898.20664 | U133: =T133+U132 -> 79 | W133: =V133+W132 -> 0 | Y133: =X133+Y132 -> 1099.999952 | AA133: =Z133+AA132 -> 412.4247938 | AC133: =AB133+AC132 -> 0 | AD133: 0 | AE133: =AD133+AE132 -> 1512.424746 | AG133: =AF133+AG132 -> 999.9999519 | AI133: =AH133+AI132 -> 0 | AK133: =AJ133+AK132 -> 100 | AM133: =AL133+AM132 -> 0 | AO133: =AN133+AO132 -> 0 | AQ133: =AP133+AQ132 -> 0 | AS133: =AR133+AS132 -> 0 | AU133: =AT133+AU132 -> 0 | AW133: =AV133+AW132 -> 0 | AY133: =AX133+AY132 -> 0 | BA133: =AZ133+BA132 -> 0
S134: 3898.20664 | U134: 79 | W134: 0 | Y134: 1099.999952 | AA134: 412.4247938 | AC134: 0 | AD134: 0 | AE134: 1512.424746 | AG134: 999.9999519 | AI134: 0 | AK134: 100 | AM134: 0 | AO134: 0 | AQ134: 0 | AS134: 0 | AU134: 0 | AW134: 0 | AY134: 0 | BA134: 0
S135: 3898.20664 | U135: 79 | W135: 0 | Y135: 1099.999952 | AA135: 412.4247938 | AC135: 0 | AD135: 0 | AE135: 1512.424746 | AG135: 999.9999519 | AI135: 0 | AK135: 100 | AM135: 0 | AO135: 0 | AQ135: 0 | AS135: 0 | AU135: 0 | AW135: 0 | AY135: 0 | BA135: 0
S136: 3898.20664 | U136: 79 | W136: 0 | Y136: 1099.999952 | AA136: 412.4247938 | AC136: 0 | AD136: 0 | AE136: 1512.424746 | AG136: 999.9999519 | AI136: 0 | AK136: 100 | AM136: 0 | AO136: 0 | AQ136: 0 | AS136: 0 | AU136: 0 | AW136: 0 | AY136: 0 | BA136: 0
S137: 3898.20664 | U137: 79 | W137: 0 | Y137: 1099.999952 | AA137: 412.4247938 | AC137: 0 | AD137: 0 | AE137: 1512.424746 | AG137: 999.9999519 | AI137: 0 | AK137: 100 | AM137: 0 | AO137: 0 | AQ137: 0 | AS137: 0 | AU137: 0 | AW137: 0 | AY137: 0 | BA137: 0
S138: 3898.20664 | U138: 79 | W138: 0 | Y138: 1099.999952 | AA138: 412.4247938 | AC138: 0 | AD138: 0 | AE138: 1512.424746 | AG138: 999.9999519 | AI138: 0 | AK138: 100 | AM138: 0 | AO138: 0 | AQ138: 0 | AS138: 0 | AU138: 0 | AW138: 0 | AY138: 0 | BA138: 0
S139: 3898.20664 | U139: 79 | W139: 0 | Y139: 1099.999952 | AA139: 412.4247938 | AC139: 0 | AD139: 0 | AE139: 1512.424746 | AG139: 999.9999519 | AI139: 0 | AK139: 100 | AM139: 0 | AO139: 0 | AQ139: 0 | AS139: 0 | AU139: 0 | AW139: 0 | AY139: 0 | BA139: 0
S140: 3898.20664 | U140: 79 | W140: 0 | Y140: 1099.999952 | AA140: 412.4247938 | AC140: 0 | AD140: 0 | AE140: 1512.424746 | AG140: 999.9999519 | AI140: 0 | AK140: 100 | AM140: 0 | AO140: 0 | AQ140: 0 | AS140: 0 | AU140: 0 | AW140: 0 | AY140: 0 | BA140: 0
S141: 3898.20664 | U141: 79 | W141: 0 | Y141: 1099.999952 | AA141: 412.4247938 | AC141: 0 | AD141: 0 | AE141: 1512.424746 | AG141: 999.9999519 | AI141: 0 | AK141: 100 | AM141: 0 | AO141: 0 | AQ141: 0 | AS141: 0 | AU141: 0 | AW141: 0 | AY141: 0 | BA141: 0
S142: 3898.20664 | U142: 79 | W142: 0 | Y142: 1099.999952 | AA142: 412.4247938 | AC142: 0 | AD142: 0 | AE142: 1512.424746 | AG142: 999.9999519 | AI142: 0 | AK142: 100 | AM142: 0 | AO142: 0 | AQ142: 0 | AS142: 0 | AU142: 0 | AW142: 0 | AY142: 0 | BA142: 0
S143: 3898.20664 | U143: 79 | W143: 0 | Y143: 1099.999952 | AA143: 412.4247938 | AC143: 0 | AD143: 0 | AE143: 1512.424746 | AG143: 999.9999519 | AI143: 0 | AK143: 100 | AM143: 0 | AO143: 0 | AQ143: 0 | AS143: 0 | AU143: 0 | AW143: 0 | AY143: 0 | BA143: 0
S144: 3898.20664 | U144: 79 | W144: 0 | Y144: 1099.999952 | AA144: 412.4247938 | AC144: 0 | AD144: 0 | AE144: 1512.424746 | AG144: 999.9999519 | AI144: 0 | AK144: 100 | AM144: 0 | AO144: 0 | AQ144: 0 | AS144: 0 | AU144: 0 | AW144: 0 | AY144: 0 | BA144: 0
S145: 3898.20664 | U145: 79 | W145: 0 | Y145: 1099.999952 | AA145: 412.4247938 | AC145: 0 | AD145: 0 | AE145: 1512.424746 | AG145: 999.9999519 | AI145: 0 | AK145: 100 | AM145: 0 | AO145: 0 | AQ145: 0 | AS145: 0 | AU145: 0 | AW145: 0 | AY145: 0 | BA145: 0
S146: 3898.20664 | U146: 79 | W146: 0 | Y146: 1099.999952 | AA146: 412.4247938 | AC146: 0 | AD146: 0 | AE146: 1512.424746 | AG146: 999.9999519 | AI146: 0 | AK146: 100 | AM146: 0 | AO146: 0 | AQ146: 0 | AS146: 0 | AU146: 0 | AW146: 0 | AY146: 0 | BA146: 0
S147: 3898.20664 | U147: 79 | W147: 0 | Y147: 1099.999952 | AA147: 412.4247938 | AC147: 0 | AD147: 0 | AE147: 1512.424746 | AG147: 999.9999519 | AI147: 0 | AK147: 100 | AM147: 0 | AO147: 0 | AQ147: 0 | AS147: 0 | AU147: 0 | AW147: 0 | AY147: 0 | BA147: 0
S148: 3898.20664 | U148: 79 | W148: 0 | Y148: 1099.999952 | AA148: 412.4247938 | AC148: 0 | AD148: 0 | AE148: 1512.424746 | AG148: 999.9999519 | AI148: 0 | AK148: 100 | AM148: 0 | AO148: 0 | AQ148: 0 | AS148: 0 | AU148: 0 | AW148: 0 | AY148: 0 | BA148: 0
S149: 3898.20664 | U149: 79 | W149: 0 | Y149: 1099.999952 | AA149: 412.4247938 | AC149: 0 | AD149: 0 | AE149: 1512.424746 | AG149: 999.9999519 | AI149: 0 | AK149: 100 | AM149: 0 | AO149: 0 | AQ149: 0 | AS149: 0 | AU149: 0 | AW149: 0 | AY149: 0 | BA149: 0
S150: 3898.20664 | U150: 79 | W150: 0 | Y150: 1099.999952 | AA150: 412.4247938 | AC150: 0 | AD150: 0 | AE150: 1512.424746 | AG150: 999.9999519 | AI150: 0 | AK150: 100 | AM150: 0 | AO150: 0 | AQ150: 0 | AS150: 0 | AU150: 0 | AW150: 0 | AY150: 0 | BA150: 0
S151: 3898.20664 | U151: 79 | W151: 0 | Y151: 1099.999952 | AA151: 412.4247938 | AC151: 0 | AD151: 0 | AE151: 1512.424746 | AG151: 999.9999519 | AI151: 0 | AK151: 100 | AM151: 0 | AO151: 0 | AQ151: 0 | AS151: 0 | AU151: 0 | AW151: 0 | AY151: 0 | BA151: 0
S152: 3898.20664 | U152: 79 | W152: 0 | Y152: 1099.999952 | AA152: 412.4247938 | AC152: 0 | AD152: 0 | AE152: 1512.424746 | AG152: 999.9999519 | AI152: 0 | AK152: 100 | AM152: 0 | AO152: 0 | AQ152: 0 | AS152: 0 | AU152: 0 | AW152: 0 | AY152: 0 | BA152: 0
S153: 3898.20664 | U153: 79 | W153: 0 | Y153: 1099.999952 | AA153: 412.4247938 | AC153: 0 | AD153: 0 | AE153: 1512.424746 | AG153: 999.9999519 | AI153: 0 | AK153: 100 | AM153: 0 | AO153: 0 | AQ153: 0 | AS153: 0 | AU153: 0 | AW153: 0 | AY153: 0 | BA153: 0
S154: 3898.20664 | U154: 79 | W154: 0 | Y154: 1099.999952 | AA154: 412.4247938 | AC154: 0 | AD154: 0 | AE154: 1512.424746 | AG154: 999.9999519 | AI154: 0 | AK154: 100 | AM154: 0 | AO154: 0 | AQ154: 0 | AS154: 0 | AU154: 0 | AW154: 0 | AY154: 0 | BA154: 0
S155: 3898.20664 | U155: 79 | W155: 0 | Y155: 1099.999952 | AA155: 412.4247938 | AC155: 0 | AD155: 0 | AE155: 1512.424746 | AG155: 999.9999519 | AI155: 0 | AK155: 100 | AM155: 0 | AO155: 0 | AQ155: 0 | AS155: 0 | AU155: 0 | AW155: 0 | AY155: 0 | BA155: 0
S156: 3898.20664 | U156: 79 | W156: 0 | Y156: 1099.999952 | AA156: 412.4247938 | AC156: 0 | AD156: 0 | AE156: 1512.424746 | AG156: 999.9999519 | AI156: 0 | AK156: 100 | AM156: 0 | AO156: 0 | AQ156: 0 | AS156: 0 | AU156: 0 | AW156: 0 | AY156: 0 | BA156: 0
S157: 3898.20664 | U157: 79 | W157: 0 | Y157: 1099.999952 | AA157: 412.4247938 | AC157: 0 | AD157: 0 | AE157: 1512.424746 | AG157: 999.9999519 | AI157: 0 | AK157: 100 | AM157: 0 | AO157: 0 | AQ157: 0 | AS157: 0 | AU157: 0 | AW157: 0 | AY157: 0 | BA157: 0
S158: 3898.20664 | U158: 79 | W158: 0 | Y158: 1099.999952 | AA158: 412.4247938 | AC158: 0 | AD158: 0 | AE158: 1512.424746 | AG158: 999.9999519 | AI158: 0 | AK158: 100 | AM158: 0 | AO158: 0 | AQ158: 0 | AS158: 0 | AU158: 0 | AW158: 0 | AY158: 0 | BA158: 0
S159: 3898.20664 | U159: 79 | W159: 0 | Y159: 1099.999952 | AA159: 412.4247938 | AC159: 0 | AD159: 0 | AE159: 1512.424746 | AG159: 999.9999519 | AI159: 0 | AK159: 100 | AM159: 0 | AO159: 0 | AQ159: 0 | AS159: 0 | AU159: 0 | AW159: 0 | AY159: 0 | BA159: 0
S160: 3898.20664 | U160: 79 | W160: 0 | Y160: 1099.999952 | AA160: 412.4247938 | AC160: 0 | AD160: 0 | AE160: 1512.424746 | AG160: 999.9999519 | AI160: 0 | AK160: 100 | AM160: 0 | AO160: 0 | AQ160: 0 | AS160: 0 | AU160: 0 | AW160: 0 | AY160: 0 | BA160: 0
S161: 3898.20664 | U161: 79 | W161: 0 | Y161: 1099.999952 | AA161: 412.4247938 | AC161: 0 | AD161: 0 | AE161: 1512.424746 | AG161: 999.9999519 | AI161: 0 | AK161: 100 | AM161: 0 | AO161: 0 | AQ161: 0 | AS161: 0 | AU161: 0 | AW161: 0 | AY161: 0 | BA161: 0
S162: 3898.20664 | U162: 79 | W162: 0 | Y162: 1099.999952 | AA162: 412.4247938 | AC162: 0 | AD162: 0 | AE162: 1512.424746 | AG162: 999.9999519 | AI162: 0 | AK162: 100 | AM162: 0 | AO162: 0 | AQ162: 0 | AS162: 0 | AU162: 0 | AW162: 0 | AY162: 0 | BA162: 0
S163: 3898.20664 | U163: 79 | W163: 0 | Y163: 1099.999952 | AA163: 412.4247938 | AC163: 0 | AD163: 0 | AE163: 1512.424746 | AG163: 999.9999519 | AI163: 0 | AK163: 100 | AM163: 0 | AO163: 0 | AQ163: 0 | AS163: 0 | AU163: 0 | AW163: 0 | AY163: 0 | BA163: 0
S164: 3898.20664 | U164: 79 | W164: 0 | Y164: 1099.999952 | AA164: 412.4247938 | AC164: 0 | AD164: 0 | AE164: 1512.424746 | AG164: 999.9999519 | AI164: 0 | AK164: 100 | AM164: 0 | AO164: 0 | AQ164: 0 | AS164: 0 | AU164: 0 | AW164: 0 | AY164: 0 | BA164: 0
S165: 3898.20664 | U165: 79 | W165: 0 | Y165: 1099.999952 | AA165: 412.4247938 | AC165: 0 | AD165: 0 | AE165: 1512.424746 | AG165: 999.9999519 | AI165: 0 | AK165: 100 | AM165: 0 | AO165: 0 | AQ165: 0 | AS165: 0 | AU165: 0 | AW165: 0 | AY165: 0 | BA165: 0
S166: 3898.20664 | U166: 79 | W166: 0 | Y166: 1099.999952 | AA166: 412.4247938 | AC166: 0 | AD166: 0 | AE166: 1512.424746 | AG166: 999.9999519 | AI166: 0 | AK166: 100 | AM166: 0 | AO166: 0 | AQ166: 0 | AS166: 0 | AU166: 0 | AW166: 0 | AY166: 0 | BA166: 0
S167: 3898.20664 | U167: 79 | W167: 0 | Y167: 1099.999952 | AA167: 412.4247938 | AC167: 0 | AD167: 0 | AE167: 1512.424746 | AG167: 999.9999519 | AI167: 0 | AK167: 100 | AM167: 0 | AO167: 0 | AQ167: 0 | AS167: 0 | AU167: 0 | AW167: 0 | AY167: 0 | BA167: 0
S168: 3898.20664 | U168: 79 | W168: 0 | Y168: 1099.999952 | AA168: 412.4247938 | AC168: 0 | AD168: 0 | AE168: 1512.424746 | AG168: 999.9999519 | AI168: 0 | AK168: 100 | AM168: 0 | AO168: 0 | AQ168: 0 | AS168: 0 | AU168: 0 | AW168: 0 | AY168: 0 | BA168: 0
S169: 3898.20664 | U169: 79 | W169: 0 | Y169: 1099.999952 | AA169: 412.4247938 | AC169: 0 | AD169: 0 | AE169: 1512.424746 | AG169: 999.9999519 | AI169: 0 | AK169: 100 | AM169: 0 | AO169: 0 | AQ169: 0 | AS169: 0 | AU169: 0 | AW169: 0 | AY169: 0 | BA169: 0
S170: 3898.20664 | U170: 79 | W170: 0 | Y170: 1099.999952 | AA170: 412.4247938 | AC170: 0 | AD170: 0 | AE170: 1512.424746 | AG170: 999.9999519 | AI170: 0 | AK170: 100 | AM170: 0 | AO170: 0 | AQ170: 0 | AS170: 0 | AU170: 0 | AW170: 0 | AY170: 0 | BA170: 0
S171: 3898.20664 | U171: 79 | W171: 0 | Y171: 1099.999952 | AA171: 412.4247938 | AC171: 0 | AD171: 0 | AE171: 1512.424746 | AG171: 999.9999519 | AI171: 0 | AK171: 100 | AM171: 0 | AO171: 0 | AQ171: 0 | AS171: 0 | AU171: 0 | AW171: 0 | AY171: 0 | BA171: 0
S172: 3898.20664 | U172: 79 | W172: 0 | Y172: 1099.999952 | AA172: 412.4247938 | AC172: 0 | AD172: 0 | AE172: 1512.424746 | AG172: 999.9999519 | AI172: 0 | AK172: 100 | AM172: 0 | AO172: 0 | AQ172: 0 | AS172: 0 | AU172: 0 | AW172: 0 | AY172: 0 | BA172: 0
S173: 3898.20664 | U173: 79 | W173: 0 | Y173: 1099.999952 | AA173: 412.4247938 | AC173: 0 | AD173: 0 | AE173: 1512.424746 | AG173: 999.9999519 | AI173: 0 | AK173: 100 | AM173: 0 | AO173: 0 | AQ173: 0 | AS173: 0 | AU173: 0 | AW173: 0 | AY173: 0 | BA173: 0
S174: 3898.20664 | U174: 79 | W174: 0 | Y174: 1099.999952 | AA174: 412.4247938 | AC174: 0 | AD174: 0 | AE174: 1512.424746 | AG174: 999.9999519 | AI174: 0 | AK174: 100 | AM174: 0 | AO174: 0 | AQ174: 0 | AS174: 0 | AU174: 0 | AW174: 0 | AY174: 0 | BA174: 0
S175: 3898.20664 | U175: 79 | W175: 0 | Y175: 1099.999952 | AA175: 412.4247938 | AC175: 0 | AD175: 0 | AE175: 1512.424746 | AG175: 999.9999519 | AI175: 0 | AK175: 100 | AM175: 0 | AO175: 0 | AQ175: 0 | AS175: 0 | AU175: 0 | AW175: 0 | AY175: 0 | BA175: 0
S176: 3898.20664 | U176: 79 | W176: 0 | Y176: 1099.999952 | AA176: 412.4247938 | AC176: 0 | AD176: 0 | AE176: 1512.424746 | AG176: 999.9999519 | AI176: 0 | AK176: 100 | AM176: 0 | AO176: 0 | AQ176: 0 | AS176: 0 | AU176: 0 | AW176: 0 | AY176: 0 | BA176: 0
S177: 3898.20664 | U177: 79 | W177: 0 | Y177: 1099.999952 | AA177: 412.4247938 | AC177: 0 | AD177: 0 | AE177: 1512.424746 | AG177: 999.9999519 | AI177: 0 | AK177: 100 | AM177: 0 | AO177: 0 | AQ177: 0 | AS177: 0 | AU177: 0 | AW177: 0 | AY177: 0 | BA177: 0
S178: 3898.20664 | U178: 79 | W178: 0 | Y178: 1099.999952 | AA178: 412.4247938 | AC178: 0 | AD178: 0 | AE178: 1512.424746 | AG178: 999.9999519 | AI178: 0 | AK178: 100 | AM178: 0 | AO178: 0 | AQ178: 0 | AS178: 0 | AU178: 0 | AW178: 0 | AY178: 0 | BA178: 0
S179: 3898.20664 | U179: 79 | W179: 0 | Y179: 1099.999952 | AA179: 412.4247938 | AC179: 0 | AD179: 0 | AE179: 1512.424746 | AG179: 999.9999519 | AI179: 0 | AK179: 100 | AM179: 0 | AO179: 0 | AQ179: 0 | AS179: 0 | AU179: 0 | AW179: 0 | AY179: 0 | BA179: 0
S180: 3898.20664 | U180: 79 | W180: 0 | Y180: 1099.999952 | AA180: 412.4247938 | AC180: 0 | AD180: 0 | AE180: 1512.424746 | AG180: 999.9999519 | AI180: 0 | AK180: 100 | AM180: 0 | AO180: 0 | AQ180: 0 | AS180: 0 | AU180: 0 | AW180: 0 | AY180: 0 | BA180: 0
S181: 3898.20664 | U181: 79 | W181: 0 | Y181: 1099.999952 | AA181: 412.4247938 | AC181: 0 | AD181: 0 | AE181: 1512.424746 | AG181: 999.9999519 | AI181: 0 | AK181: 100 | AM181: 0 | AO181: 0 | AQ181: 0 | AS181: 0 | AU181: 0 | AW181: 0 | AY181: 0 | BA181: 0
S182: 3898.20664 | U182: 79 | W182: 0 | Y182: 1099.999952 | AA182: 412.4247938 | AC182: 0 | AD182: 0 | AE182: 1512.424746 | AG182: 999.9999519 | AI182: 0 | AK182: 100 | AM182: 0 | AO182: 0 | AQ182: 0 | AS182: 0 | AU182: 0 | AW182: 0 | AY182: 0 | BA182: 0
S183: 3898.20664 | U183: 79 | W183: 0 | Y183: 1099.999952 | AA183: 412.4247938 | AC183: 0 | AD183: 0 | AE183: 1512.424746 | AG183: 999.9999519 | AI183: 0 | AK183: 100 | AM183: 0 | AO183: 0 | AQ183: 0 | AS183: 0 | AU183: 0 | AW183: 0 | AY183: 0 | BA183: 0
S184: 3898.20664 | U184: 79 | W184: 0 | Y184: 1099.999952 | AA184: 412.4247938 | AC184: 0 | AD184: 0 | AE184: 1512.424746 | AG184: 999.9999519 | AI184: 0 | AK184: 100 | AM184: 0 | AO184: 0 | AQ184: 0 | AS184: 0 | AU184: 0 | AW184: 0 | AY184: 0 | BA184: 0
S185: 3898.20664 | U185: 79 | W185: 0 | Y185: 1099.999952 | AA185: 412.4247938 | AC185: 0 | AD185: 0 | AE185: 1512.424746 | AG185: 999.9999519 | AI185: 0 | AK185: 100 | AM185: 0 | AO185: 0 | AQ185: 0 | AS185: 0 | AU185: 0 | AW185: 0 | AY185: 0 | BA185: 0
S186: 3898.20664 | U186: 79 | W186: 0 | Y186: 1099.999952 | AA186: 412.4247938 | AC186: 0 | AD186: 0 | AE186: 1512.424746 | AG186: 999.9999519 | AI186: 0 | AK186: 100 | AM186: 0 | AO186: 0 | AQ186: 0 | AS186: 0 | AU186: 0 | AW186: 0 | AY186: 0 | BA186: 0
S187: 3898.20664 | U187: 79 | W187: 0 | Y187: 1099.999952 | AA187: 412.4247938 | AC187: 0 | AD187: 0 | AE187: 1512.424746 | AG187: 999.9999519 | AI187: 0 | AK187: 100 | AM187: 0 | AO187: 0 | AQ187: 0 | AS187: 0 | AU187: 0 | AW187: 0 | AY187: 0 | BA187: 0
S188: 3898.20664 | U188: 79 | W188: 0 | Y188: 1099.999952 | AA188: 412.4247938 | AC188: 0 | AD188: 0 | AE188: 1512.424746 | AG188: 999.9999519 | AI188: 0 | AK188: 100 | AM188: 0 | AO188: 0 | AQ188: 0 | AS188: 0 | AU188: 0 | AW188: 0 | AY188: 0 | BA188: 0
S189: 3898.20664 | U189: 79 | W189: 0 | Y189: 1099.999952 | AA189: 412.4247938 | AC189: 0 | AD189: 0 | AE189: 1512.424746 | AG189: 999.9999519 | AI189: 0 | AK189: 100 | AM189: 0 | AO189: 0 | AQ189: 0 | AS189: 0 | AU189: 0 | AW189: 0 | AY189: 0 | BA189: 0
S190: 3898.20664 | U190: 79 | W190: 0 | Y190: 1099.999952 | AA190: 412.4247938 | AC190: 0 | AD190: 0 | AE190: 1512.424746 | AG190: 999.9999519 | AI190: 0 | AK190: 100 | AM190: 0 | AO190: 0 | AQ190: 0 | AS190: 0 | AU190: 0 | AW190: 0 | AY190: 0 | BA190: 0
S191: 3898.20664 | U191: 79 | W191: 0 | Y191: 1099.999952 | AA191: 412.4247938 | AC191: 0 | AD191: 0 | AE191: 1512.424746 | AG191: 999.9999519 | AI191: 0 | AK191: 100 | AM191: 0 | AO191: 0 | AQ191: 0 | AS191: 0 | AU191: 0 | AW191: 0 | AY191: 0 | BA191: 0
S192: 3898.20664 | U192: 79 | W192: 0 | Y192: 1099.999952 | AA192: 412.4247938 | AC192: 0 | AD192: 0 | AE192: 1512.424746 | AG192: 999.9999519 | AI192: 0 | AK192: 100 | AM192: 0 | AO192: 0 | AQ192: 0 | AS192: 0 | AU192: 0 | AW192: 0 | AY192: 0 | BA192: 0
S193: 3898.20664 | U193: 79 | W193: 0 | Y193: 1099.999952 | AA193: 412.4247938 | AC193: 0 | AD193: 0 | AE193: 1512.424746 | AG193: 999.9999519 | AI193: 0 | AK193: 100 | AM193: 0 | AO193: 0 | AQ193: 0 | AS193: 0 | AU193: 0 | AW193: 0 | AY193: 0 | BA193: 0
S194: 3898.20664 | U194: 79 | W194: 0 | Y194: 1099.999952 | AA194: 412.4247938 | AC194: 0 | AD194: 0 | AE194: 1512.424746 | AG194: 999.9999519 | AI194: 0 | AK194: 100 | AM194: 0 | AO194: 0 | AQ194: 0 | AS194: 0 | AU194: 0 | AW194: 0 | AY194: 0 | BA194: 0
S195: 3898.20664 | U195: 79 | W195: 0 | Y195: 1099.999952 | AA195: 412.4247938 | AC195: 0 | AD195: =Dia_Col_Deduct+Dia_Col_Copay+Dia_Col_Coinsur -> 0 | AE195: 1512.424746 | AG195: 999.9999519 | AI195: 0 | AK195: 100 | AM195: 0 | AO195: 0 | AQ195: 0 | AS195: 0 | AU195: 0 | AW195: 0 | AY195: 0 | BA195: 0
S196: 3898.20664 | U196: 79 | W196: 0 | Y196: 1099.999952 | AA196: 412.4247938 | AC196: 0 | AD196: 0 | AE196: 1512.424746 | AG196: 999.9999519 | AI196: 0 | AK196: 100 | AM196: 0 | AO196: 0 | AQ196: 0 | AS196: 0 | AU196: 0 | AW196: 0 | AY196: 0 | BA196: 0
S197: =R197+S196 -> 3898.20664 | U197: =T197+U196 -> 79 | W197: =V197+W196 -> 0 | Y197: =X197+Y196 -> 1099.999952 | AA197: =Z197+AA196 -> 412.4247938 | AC197: =AB197+AC196 -> 0 | AD197: 0 | AE197: =AD197+AE196 -> 1512.424746 | AG197: =AF197+AG196 -> 999.9999519 | AI197: =AH197+AI196 -> 0 | AK197: =AJ197+AK196 -> 100 | AM197: =AL197+AM196 -> 0 | AO197: =AN197+AO196 -> 0 | AQ197: =AP197+AQ196 -> 0 | AS197: =AR197+AS196 -> 0 | AU197: =AT197+AU196 -> 0 | AW197: =AV197+AW196 -> 0 | AY197: =AX197+AY196 -> 0 | BA197: =AZ197+BA196 -> 0
S198: 3898.20664 | U198: 79 | W198: 0 | Y198: 1099.999952 | AA198: 412.4247938 | AC198: 0 | AD198: 0 | AE198: 1512.424746 | AG198: 999.9999519 | AI198: 0 | AK198: 100 | AM198: 0 | AO198: 0 | AQ198: 0 | AS198: 0 | AU198: 0 | AW198: 0 | AY198: 0 | BA198: 0
S199: 3898.20664 | U199: 79 | W199: 0 | Y199: 1099.999952 | AA199: 412.4247938 | AC199: 0 | AD199: 0 | AE199: 1512.424746 | AG199: 999.9999519 | AI199: 0 | AK199: 100 | AM199: 0 | AO199: 0 | AQ199: 0 | AS199: 0 | AU199: 0 | AW199: 0 | AY199: 0 | BA199: 0
S200: 3898.20664 | U200: 79 | W200: 0 | Y200: 1099.999952 | AA200: 412.4247938 | AC200: 0 | AD200: 0 | AE200: 1512.424746 | AG200: 999.9999519 | AI200: 0 | AK200: 100 | AM200: 0 | AO200: 0 | AQ200: 0 | AS200: 0 | AU200: 0 | AW200: 0 | AY200: 0 | BA200: 0
... 202 more rows

Sheet Maternity Timeline
I1: CATEGORIES | R1: COSTS | AF1: DEDUCTIBLES | AR1: LIMITS
A2: Date of Service | B2: Maternity Claim Unique Key | C2: Diagnosis Code (ICD-9) | D2: CPT©, HCPCS, or Other Billing Code | E2: Provider Type | F2: Category | G2: Descriptor | H2: Notes | I2: DME | J2: Generic RX | K2: Hospital Care | L2: Lab | M2: Radiology | N2: Obstetric | O2: Vaccines | P2: Visits | Q2: Amount Allowed | R2: Insurer Expense | S2: Running Insurer | T2: Exclusions | U2: Running Excl | V2: Limitations | W2: Running Limit | X2: Deductible | Y2: Running Deduct | Z2: Copayment | AA2: Running Copay | AB2: Coinsurance | AC2: Running Coinsur | AD2: OOP | AE2: Running OOP | AF2: Overall | AG2: Running Overall | AH2: DME | AI2: Running DME | AJ2: Generic RX | AK2: Running RX | AL2: Hospital Care | AM2: Running Hospital | AN2: Obstetric | AO2: Running Obst | AP2: Vaccines | AQ2: Running Vaccine | AR2: Mat RX per month | AS2: Running Mat RX Month | AT2: Mat RX per year | AU2: Running Mat RX Yr
A3: 2011-01-07 | B3: 8 | C3: =IF(ISBLANK(VLOOKUP(Mat_Claim,Mat_UniqueLine,2,FALSE)),"",VLOOKUP(Mat_Claim,Mat_UniqueLine,2,FALSE)) ->  | D3: =IF(ISBLANK(VLOOKUP(Mat_Claim,Mat_UniqueLine,3,FALSE)),"",VLOOKUP(Mat_Claim,Mat_UniqueLine,3,FALSE)) -> OTC | E3: =IF(ISBLANK(VLOOKUP(Mat_Claim,Mat_UniqueLine,4,FALSE)),"",VLOOKUP(Mat_Claim,Mat_UniqueLine,4,FALSE)) -> Pharmacy Retail | F3: =IF(ISBLANK(VLOOKUP(Mat_Claim,Mat_UniqueLine,5,FALSE)),"",VLOOKUP(Mat_Claim,Mat_UniqueLine,5,FALSE)) -> Pharmacy | G3: =IF(ISBLANK(VLOOKUP(Mat_Claim,Mat_UniqueLine,6,FALSE)),"",VLOOKUP(Mat_Claim,Mat_UniqueLine,6,FALSE)) -> Prenatal Vitamins (OTC - Bottle of 100) [1 pill daily; 30 pills/month] | H3: =IF(ISBLANK(VLOOKUP(Mat_Claim,Mat_UniqueLine,8,FALSE)),"",VLOOKUP(Mat_Claim,Mat_UniqueLine,8,FALSE)) ->  | I3: =IF(Mat_Col_Category="Medical equipment and supplies",1,"") ->  | J3: =IF(AND(Mat_Col_Category="Pharmacy",Mat_Col_BillCode<>"OTC"),1,"") ->  | K3: =IF(OR(Mat_Col_Category="Anesthesia",Mat_Col_Provider="Inpatient Facility"),1,"") ->  | L3: =IF(Mat_Col_Category="Laboratory tests",1,"") ->  | M3: =IF(Mat_Col_Category="Radiology",1,"") ->  | N3: =IF(Mat_Col_BillCode="Bundled in global OB package - 59400",1,"") ->  | O3: =IF(Mat_Col_Category="Vaccines, other preventive",1,"") ->  | P3: =IF(Mat_Col_Category="Office visits & procedures",1,"") ->  | Q3: =IF(ISBLANK(VLOOKUP(Mat_Claim,Mat_UniqueLine,7,FALSE)),"",VLOOKUP(Mat_Claim,Mat_UniqueLine,7,FALSE)) -> 30 | S3: =R3 -> 0 | T3: 30 | U3: =T3 -> 30 | W3: =V3 -> 0 | Y3: =X3 -> 0 | AA3: =Z3 -> 0 | AC3: =AB3 -> 0 | AD3: =Mat_Col_Deduct+Mat_Col_Copay+Mat_Col_Coinsur -> 0 | AE3: =AD3 -> 0 | AG3: =AF3 -> 0 | AI3: =AH3 -> 0 | AK3: =AJ3 -> 0 | AM3: =AL3 -> 0 | AO3: =AN3 -> 0 | AQ3: =AP3 -> 0 | AS3: =AR3 -> 0 | AU3: =AT3 -> 0
A4: 2011-04-01 | B4: 14 | C4: V22.0 | D4: 80055 | E4: OBGYN | F4: Laboratory tests | G4: Obstetric Panel | H4: 80055 - Global OB panel code | L4: 1 | Q4: 54.23990642 | R4: 54.23990642 | S4: =S3+R4 -> 54.23990642 | U4: =U3+T4 -> 30 | W4: =W3+V4 -> 0 | Y4: =Y3+X4 -> 0 | AA4: =AA3+Z4 -> 0 | AC4: =AC3+AB4 -> 0 | AD4: 0 | AE4: =AE3+AD4 -> 0 | AG4: =AG3+AF4 -> 0 | AI4: =AI3+AH4 -> 0 | AK4: =AK3+AJ4 -> 0 | AM4: =AM3+AL4 -> 0 | AO4: =AO3+AN4 -> 0 | AQ4: =AQ3+AP4 -> 0 | AS4: =AS3+AR4 -> 0 | AU4: =AU3+AT4 -> 0
A5: 2011-04-01 | B5: 30 | C5: V22.0 | D5: 87801 x2 | E5: OBGYN | F5: Laboratory tests | G5: Detect agnt mult dna ampli | H5: Gonorrhea / Chlamydia screen | L5: 1 | Q5: 9.447952486 | R5: 9.447952486 | S5: =S4+R5 -> 63.68785891 | U5: =U4+T5 -> 30 | W5: =W4+V5 -> 0 | Y5: =Y4+X5 -> 0 | AA5: =AA4+Z5 -> 0 | AC5: =AC4+AB5 -> 0 | AD5: 0 | AE5: =AE4+AD5 -> 0 | AG5: =AG4+AF5 -> 0 | AI5: =AI4+AH5 -> 0 | AK5: =AK4+AJ5 -> 0 | AM5: =AM4+AL5 -> 0 | AO5: =AO4+AN5 -> 0 | AQ5: =AQ4+AP5 -> 0 | AS5: =AS4+AR5 -> 0 | AU5: =AU4+AT5 -> 0
A6: 2011-04-01 | B6: 31 | C6: V22.0 | D6: 88164 | E6: OBGYN | F6: Laboratory tests | G6: Cytopath TBS C/V Manual | H6: Pap smear | L6: 1 | Q6: 14.73512297 | R6: 14.73512297 | S6: 78.42298188 | U6: 30 | W6: 0 | Y6: 0 | AA6: 0 | AC6: 0 | AD6: 0 | AE6: 0 | AG6: 0 | AI6: 0 | AK6: 0 | AM6: 0 | AO6: 0 | AQ6: 0 | AS6: 0 | AU6: 0
A7: 2011-04-01 | B7: 28 | C7: V22.0 | D7: 86701 | E7: OBGYN | F7: Laboratory tests | G7: HIV-1 | L7: 1 | Q7: 12.935806 | R7: 12.935806 | S7: 91.35878788 | U7: 30 | W7: 0 | Y7: 0 | AA7: 0 | AC7: 0 | AD7: 0 | AE7: 0 | AG7: 0 | AI7: 0 | AK7: 0 | AM7: 0 | AO7: 0 | AQ7: 0 | AS7: 0 | AU7: 0
A8: 2011-04-01 | B8: 12 | C8: V22.0 | D8: 36415 | E8: OBGYN | F8: Laboratory tests | G8: Routine Venipuncture | H8: Cystic fibrosis screen | L8: 1 | Q8: 4.131255056 | R8: 4.131255056 | S8: 95.49004294 | U8: 30 | W8: 0 | Y8: 0 | AA8: 0 | AC8: 0 | AD8: 0 | AE8: 0 | AG8: 0 | AI8: 0 | AK8: 0 | AM8: 0 | AO8: 0 | AQ8: 0 | AS8: 0 | AU8: 0
A9: 2011-04-01 | B9: 35 | C9: V72.42 | D9: 81025 | E9: OBGYN | F9: Laboratory tests | G9: Urine Pregnancy Test | L9: 1 | Q9: 8.868002624 | R9: 8.868002624 | S9: 104.3580456 | U9: 30 | W9: 0 | Y9: 0 | AA9: 0 | AC9: 0 | AD9: 0 | AE9: 0 | AG9: 0 | AI9: 0 | AK9: 0 | AM9: 0 | AO9: 0 | AQ9: 0 | AS9: 0 | AU9: 0
A10: 2011-04-01 | B10: 32 | C10: V22.0 | D10: Bundled in global OB package - 59400 | E10: OBGYN | F10: Routine Obstetric Care | G10: Office/Outpatient Visit Est | N10: 1 | Q10: 2084.28 | R10: 1044.28 | S10: 1148.638046 | U10: 30 | W10: 0 | X10: 1000 | Y10: 1000 | Z10: 40 | AA10: 40 | AC10: 0 | AD10: 1040 | AE10: 1040 | AF10: 1000 | AG10: 1000 | AI10: 0 | AK10: 0 | AM10: 0 | AO10: 0 | AQ10: 0 | AS10: 0 | AU10: 0
A11: 2011-04-07 | B11: 32 | C11: V22.0 | D11: Bundled in global OB package - 59400 | E11: OBGYN | F11: Routine Obstetric Care | G11: Office/Outpatient Visit Est | N11: 1 | Q11: 2084.28 | S11: 1148.638046 | U11: 30 | W11: 0 | Y11: 1000 | AA11: 40 | AC11: 0 | AD11: 0 | AE11: 1040 | AG11: 1000 | AI11: 0 | AK11: 0 | AM11: 0 | AO11: 0 | AQ11: 0 | AS11: 0 | AU11: 0
A12: 2011-04-07 | B12: 8 | D12: OTC | E12: Pharmacy Retail | F12: Pharmacy | G12: Prenatal Vitamins (OTC - Bottle of 100) [1 pill daily; 30 pills/month] | Q12: 30 | S12: 1148.638046 | T12: 30 | U12: 60 | W12: 0 | Y12: 1000 | AA12: 40 | AC12: 0 | AD12: 0 | AE12: 1040 | AG12: 1000 | AI12: 0 | AK12: 0 | AM12: 0 | AO12: 0 | AQ12: 0 | AS12: 0 | AU12: 0
A13: 2011-05-27 | B13: 32 | C13: V22.0 | D13: Bundled in global OB package - 59400 | E13: OBGYN | F13: Routine Obstetric Care | G13: Office/Outpatient Visit Est | N13: 1 | Q13: 2084.28 | S13: 1148.638046 | U13: 60 | W13: 0 | Y13: 1000 | AA13: 40 | AC13: 0 | AD13: 0 | AE13: 1040 | AG13: 1000 | AI13: 0 | AK13: 0 | AM13: 0 | AO13: 0 | AQ13: 0 | AS13: 0 | AU13: 0
A14: 2011-06-24 | B14: 15 | C14: V22.0 | D14: 82105 | E14: OBGYN | F14: Laboratory tests | G14: Alpha-fetoprotein serum | H14: Maternal serum quad screen | L14: 1 | Q14: 27.85909003 | R14: 27.85909003 | S14: 1176.497136 | U14: 60 | W14: 0 | Y14: 1000 | AA14: 40 | AC14: 0 | AD14: 0 | AE14: 1040 | AG14: 1000 | AI14: 0 | AK14: 0 | AM14: 0 | AO14: 0 | AQ14: 0 | AS14: 0 | AU14: 0
A15: 2011-06-24 | B15: 16 | C15: V22.0 | D15: 82677 | E15: OBGYN | F15: Laboratory tests | G15: Alssay of estriol | H15: Maternal serum quad screen | L15: 1 | Q15: 26.62877662 | R15: 26.62877662 | S15: 1203.125912 | U15: 60 | W15: 0 | Y15: 1000 | AA15: 40 | AC15: 0 | AD15: 0 | AE15: 1040 | AG15: 1000 | AI15: 0 | AK15: 0 | AM15: 0 | AO15: 0 | AQ15: 0 | AS15: 0 | AU15: 0
A16: 2011-06-24 | B16: 25 | C16: V22.0 | D16: 84702 | E16: OBGYN | F16: Laboratory tests | G16: Chorionic gonadotropin test | H16: Maternal serum quad screen | L16: 1 | Q16: 21.47364741 | R16: 21.47364741 | S16: 1224.59956 | U16: 60 | W16: 0 | Y16: 1000 | AA16: 40 | AC16: 0 | AD16: 0 | AE16: 1040 | AG16: 1000 | AI16: 0 | AK16: 0 | AM16: 0 | AO16: 0 | AQ16: 0 | AS16: 0 | AU16: 0
A17: 2011-06-24 | B17: 27 | C17: V22.0 | D17: 86336 | E17: OBGYN | F17: Laboratory tests | G17: Inhibin A | H17: Maternal serum quad screen | L17: 1 | Q17: 22.50259489 | R17: 22.50259489 | S17: 1247.102155 | U17: 60 | W17: 0 | Y17: 1000 | AA17: 40 | AC17: 0 | AD17: 0 | AE17: 1040 | AG17: 1000 | AI17: 0 | AK17: 0 | AM17: 0 | AO17: 0 | AQ17: 0 | AS17: 0 | AU17: 0
A18: 2011-06-24 | B18: 23 | C18: V22.0 | D18: 83912 | E18: OBGYN | F18: Laboratory tests | G18: Genetic examination | H18: Cystic fibrosis screen | L18: 1 | Q18: 11.78048983 | R18: 11.78048983 | S18: 1258.882644 | U18: 60 | W18: 0 | Y18: 1000 | AA18: 40 | AC18: 0 | AD18: 0 | AE18: 1040 | AG18: 1000 | AI18: 0 | AK18: 0 | AM18: 0 | AO18: 0 | AQ18: 0 | AS18: 0 | AU18: 0
A19: 2011-06-24 | B19: 19 | C19: V22.0 | D19: 83891 | E19: OBGYN | F19: Laboratory tests | G19: Molecule isolate nucleic | H19: Cystic fibrosis screen | L19: 1 | Q19: 7.19851449 | R19: 7.19851449 | S19: 1266.081159 | U19: 60 | W19: 0 | Y19: 1000 | AA19: 40 | AC19: 0 | AD19: 0 | AE19: 1040 | AG19: 1000 | AI19: 0 | AK19: 0 | AM19: 0 | AO19: 0 | AQ19: 0 | AS19: 0 | AU19: 0
A20: 2011-06-24 | B20: 20 | C20: V22.0 | D20: 83900 | E20: OBGYN | F20: Laboratory tests | G20: Molecule nucleic ampli 2 seq | H20: Cystic fibrosis screen | L20: 1 | Q20: 31.84038095 | R20: 31.84038095 | S20: 1297.92154 | U20: 60 | W20: 0 | Y20: 1000 | AA20: 40 | AC20: 0 | AD20: 0 | AE20: 1040 | AG20: 1000 | AI20: 0 | AK20: 0 | AM20: 0 | AO20: 0 | AQ20: 0 | AS20: 0 | AU20: 0
A21: 2011-06-24 | B21: 21 | C21: V22.0 | D21: 83901 x13 | E21: OBGYN | F21: Laboratory tests | G21: Molecule nucleic ampli addon | H21: Cystic fibrosis screen | L21: 1 | Q21: 129.5235263 | R21: 129.5235263 | S21: 1427.445066 | U21: 60 | W21: 0 | Y21: 1000 | AA21: 40 | AC21: 0 | AD21: 0 | AE21: 1040 | AG21: 1000 | AI21: 0 | AK21: 0 | AM21: 0 | AO21: 0 | AQ21: 0 | AS21: 0 | AU21: 0
A22: 2011-06-24 | B22: 24 | C22: V22.0 | D22: 83914 x32 | E22: OBGYN | F22: Laboratory tests | G22: Mutation ident ola/sbce/aspe | H22: Cystic fibrosis screen | L22: 1 | Q22: 50.0612434 | R22: 50.0612434 | S22: 1477.50631 | U22: 60 | W22: 0 | Y22: 1000 | AA22: 40 | AC22: 0 | AD22: 0 | AE22: 1040 | AG22: 1000 | AI22: 0 | AK22: 0 | AM22: 0 | AO22: 0 | AQ22: 0 | AS22: 0 | AU22: 0
A23: 2011-06-24 | B23: 22 | C23: V22.0 | D23: 83909 | E23: OBGYN | F23: Laboratory tests | G23: Nucleic acid high resolute | H23: Cystic fibrosis screen | L23: 1 | Q23: 18.9766764 | R23: 18.9766764 | S23: 1496.482986 | U23: 60 | W23: 0 | Y23: 1000 | AA23: 40 | AC23: 0 | AD23: 0 | AE23: 1040 | AG23: 1000 | AI23: 0 | AK23: 0 | AM23: 0 | AO23: 0 | AQ23: 0 | AS23: 0 | AU23: 0
A24: 2011-06-24 | B24: 12 | C24: V22.0 | D24: 36415 | E24: OBGYN | F24: Laboratory tests | G24: Routine Venipuncture | H24: Cystic fibrosis screen | L24: 1 | Q24: 4.131255056 | R24: 4.131255056 | S24: 1500.614241 | U24: 60 | W24: 0 | Y24: 1000 | AA24: 40 | AC24: 0 | AD24: 0 | AE24: 1040 | AG24: 1000 | AI24: 0 | AK24: 0 | AM24: 0 | AO24: 0 | AQ24: 0 | AS24: 0 | AU24: 0
A25: 2011-06-24 | B25: 32 | C25: V22.0 | D25: Bundled in global OB package - 59400 | E25: OBGYN | F25: Routine Obstetric Care | G25: Office/Outpatient Visit Est | N25: 1 | Q25: 2084.28 | S25: 1500.614241 | U25: 60 | W25: 0 | Y25: 1000 | AA25: 40 | AC25: 0 | AD25: 0 | AE25: 1040 | AG25: 1000 | AI25: 0 | AK25: 0 | AM25: 0 | AO25: 0 | AQ25: 0 | AS25: 0 | AU25: 0
A26: 2011-07-06 | B26: 8 | D26: OTC | E26: Pharmacy Retail | F26: Pharmacy | G26: Prenatal Vitamins (OTC - Bottle of 100) [1 pill daily; 30 pills/month] | Q26: 30 | S26: 1500.614241 | T26: 30 | U26: 90 | W26: 0 | Y26: 1000 | AA26: 40 | AC26: 0 | AD26: 0 | AE26: 1040 | AG26: 1000 | AI26: 0 | AK26: 0 | AM26: 0 | AO26: 0 | AQ26: 0 | AS26: 0 | AU26: 0
A27: 2011-07-22 | B27: 32 | C27: V22.0 | D27: Bundled in global OB package - 59400 | E27: OBGYN | F27: Routine Obstetric Care | G27: Office/Outpatient Visit Est | N27: 1 | Q27: 2084.28 | S27: 1500.614241 | U27: 90 | W27: 0 | Y27: 1000 | AA27: 40 | AC27: 0 | AD27: 0 | AE27: 1040 | AG27: 1000 | AI27: 0 | AK27: 0 | AM27: 0 | AO27: 0 | AQ27: 0 | AS27: 0 | AU27: 0
A28: 2011-07-22 | B28: 13 | C28: V22.0 | D28: 76805 | E28: Radiology | F28: Radiology | G28: OB US >/= 14 WKS SNGL FETUS | M28: 1 | Q28: 176.1133936 | R28: 123.2793755 | S28: 1623.893616 | U28: 90 | W28: 0 | X28: 0 | Y28: 1000 | AA28: 40 | AB28: 52.83401807 | AC28: 52.83401807 | AD28: 52.83401807 | AE28: 1092.834018 | AF28: 0 | AG28: 1000 | AI28: 0 | AK28: 0 | AM28: 0 | AO28: 0 | AQ28: 0 | AS28: 0 | AU28: 0
A29: 2011-08-19 | B29: 32 | C29: V22.0 | D29: Bundled in global OB package - 59400 | E29: OBGYN | F29: Routine Obstetric Care | G29: Office/Outpatient Visit Est | N29: 1 | Q29: 2084.28 | S29: 1623.893616 | U29: 90 | W29: 0 | Y29: 1000 | AA29: 40 | AC29: 52.83401807 | AD29: 0 | AE29: 1092.834018 | AG29: 1000 | AI29: 0 | AK29: 0 | AM29: 0 | AO29: 0 | AQ29: 0 | AS29: 0 | AU29: 0
A30: 2011-09-16 | B30: 17 | C30: V22.0 | D30: 82947 | E30: OBGYN | F30: Laboratory tests | G30: Assay Glucose Blood Quant | L30: 1 | Q30: 6.431760408 | R30: 6.431760408 | S30: 1630.325377 | U30: 90 | W30: 0 | Y30: 1000 | AA30: 40 | AC30: 52.83401807 | AD30: 0 | AE30: 1092.834018 | AG30: 1000 | AI30: 0 | AK30: 0 | AM30: 0 | AO30: 0 | AQ30: 0 | AS30: 0 | AU30: 0
A31: 2011-09-16 | B31: 26 | C31: V22.0 | D31: 85025 | E31: OBGYN | F31: Laboratory tests | G31: Complete cbc w/auto diff wbc | L31: 1 | Q31: 12.28266297 | R31: 12.28266297 | S31: 1642.60804 | U31: 90 | W31: 0 | Y31: 1000 | AA31: 40 | AC31: 52.83401807 | AD31: 0 | AE31: 1092.834018 | AG31: 1000 | AI31: 0 | AK31: 0 | AM31: 0 | AO31: 0 | AQ31: 0 | AS31: 0 | AU31: 0
A32: 2011-09-16 | B32: 18 | C32: V22.0 | D32: 82950 | E32: OBGYN | F32: Laboratory tests | G32: Glucose Test | L32: 1 | Q32: 6.953296518 | R32: 6.953296518 | S32: 1649.561336 | U32: 90 | W32: 0 | Y32: 1000 | AA32: 40 | AC32: 52.83401807 | AD32: 0 | AE32: 1092.834018 | AG32: 1000 | AI32: 0 | AK32: 0 | AM32: 0 | AO32: 0 | AQ32: 0 | AS32: 0 | AU32: 0
A33: 2011-09-16 | B33: 12 | C33: V22.0 | D33: 36415 | E33: OBGYN | F33: Laboratory tests | G33: Routine Venipuncture | H33: Cystic fibrosis screen | L33: 1 | Q33: 4.131255056 | R33: 4.131255056 | S33: 1653.692591 | U33: 90 | W33: 0 | Y33: 1000 | AA33: 40 | AC33: 52.83401807 | AD33: 0 | AE33: 1092.834018 | AG33: 1000 | AI33: 0 | AK33: 0 | AM33: 0 | AO33: 0 | AQ33: 0 | AS33: 0 | AU33: 0
A34: 2011-09-16 | B34: 32 | C34: V22.0 | D34: Bundled in global OB package - 59400 | E34: OBGYN | F34: Routine Obstetric Care | G34: Office/Outpatient Visit Est | N34: 1 | Q34: 2084.28 | S34: 1653.692591 | U34: 90 | W34: 0 | Y34: 1000 | AA34: 40 | AC34: 52.83401807 | AD34: 0 | AE34: 1092.834018 | AG34: 1000 | AI34: 0 | AK34: 0 | AM34: 0 | AO34: 0 | AQ34: 0 | AS34: 0 | AU34: 0
A35: 2011-09-30 | B35: 32 | C35: =IF(ISBLANK(VLOOKUP(Mat_Claim,Mat_UniqueLine,2,FALSE)),"",VLOOKUP(Mat_Claim,Mat_UniqueLine,2,FALSE)) -> V22.0 | D35: =IF(ISBLANK(VLOOKUP(Mat_Claim,Mat_UniqueLine,3,FALSE)),"",VLOOKUP(Mat_Claim,Mat_UniqueLine,3,FALSE)) -> Bundled in global OB package - 59400 | E35: =IF(ISBLANK(VLOOKUP(Mat_Claim,Mat_UniqueLine,4,FALSE)),"",VLOOKUP(Mat_Claim,Mat_UniqueLine,4,FALSE)) -> OBGYN | F35: =IF(ISBLANK(VLOOKUP(Mat_Claim,Mat_UniqueLine,5,FALSE)),"",VLOOKUP(Mat_Claim,Mat_UniqueLine,5,FALSE)) -> Routine Obstetric Care | G35: =IF(ISBLANK(VLOOKUP(Mat_Claim,Mat_UniqueLine,6,FALSE)),"",VLOOKUP(Mat_Claim,Mat_UniqueLine,6,FALSE)) -> Office/Outpatient Visit Est | H35: =IF(ISBLANK(VLOOKUP(Mat_Claim,Mat_UniqueLine,8,FALSE)),"",VLOOKUP(Mat_Claim,Mat_UniqueLine,8,FALSE)) ->  | I35: =IF(Mat_Col_Category="Medical equipment and supplies",1,"") ->  | J35: =IF(AND(Mat_Col_Category="Pharmacy",Mat_Col_BillCode<>"OTC"),1,"") ->  | K35: =IF(OR(Mat_Col_Category="Anesthesia",Mat_Col_Provider="Inpatient Facility"),1,"") ->  | L35: =IF(Mat_Col_Category="Laboratory tests",1,"") ->  | M35: =IF(Mat_Col_Category="Radiology",1,"") ->  | N35: =IF(Mat_Col_BillCode="Bundled in global OB package - 59400",1,"") -> 1 | O35: =IF(Mat_Col_Category="Vaccines, other preventive",1,"") ->  | P35: =IF(Mat_Col_Category="Office visits & procedures",1,"") ->  | Q35: =IF(ISBLANK(VLOOKUP(Mat_Claim,Mat_UniqueLine,7,FALSE)),"",VLOOKUP(Mat_Claim,Mat_UniqueLine,7,FALSE)) -> 2084.28 | S35: 1653.692591 | U35: 90 | W35: 0 | Y35: 1000 | AA35: 40 | AC35: 52.83401807 | AD35: 0 | AE35: 1092.834018 | AG35: 1000 | AI35: 0 | AK35: 0 | AM35: 0 | AO35: 0 | AQ35: 0 | AS35: 0 | AU35: 0
A36: 2011-10-04 | B36: 8 | D36: OTC | E36: Pharmacy Retail | F36: Pharmacy | G36: Prenatal Vitamins (OTC - Bottle of 100) [1 pill daily; 30 pills/month] | Q36: 30 | S36: 1653.692591 | T36: 30 | U36: 120 | W36: 0 | Y36: 1000 | AA36: 40 | AC36: 52.83401807 | AD36: 0 | AE36: 1092.834018 | AG36: 1000 | AI36: 0 | AK36: 0 | AM36: 0 | AO36: 0 | AQ36: 0 | AS36: 0 | AU36: 0
A37: 2011-10-14 | B37: 32 | C37: V22.0 | D37: Bundled in global OB package - 59400 | E37: OBGYN | F37: Routine Obstetric Care | G37: Office/Outpatient Visit Est | N37: 1 | Q37: 2084.28 | S37: 1653.692591 | U37: 120 | W37: 0 | Y37: 1000 | AA37: 40 | AC37: 52.83401807 | AD37: 0 | AE37: 1092.834018 | AG37: 1000 | AI37: 0 | AK37: 0 | AM37: 0 | AO37: 0 | AQ37: 0 | AS37: 0 | AU37: 0
A38: 2011-10-20 | B38: 9 | D38: S9442 | E38: Alternative Provider | F38: Education | G38: Birthing class | Q38: 0 | S38: 1653.692591 | U38: 120 | W38: 0 | Y38: 1000 | AA38: 40 | AC38: 52.83401807 | AD38: 0 | AE38: 1092.834018 | AG38: 1000 | AI38: 0 | AK38: 0 | AM38: 0 | AO38: 0 | AQ38: 0 | AS38: 0 | AU38: 0
A39: 2011-10-27 | B39: 9 | D39: S9442 | E39: Alternative Provider | F39: Education | G39: Birthing class | Q39: 0 | S39: 1653.692591 | U39: 120 | W39: 0 | Y39: 1000 | AA39: 40 | AC39: 52.83401807 | AD39: 0 | AE39: 1092.834018 | AG39: 1000 | AI39: 0 | AK39: 0 | AM39: 0 | AO39: 0 | AQ39: 0 | AS39: 0 | AU39: 0
A40: 2011-10-28 | B40: 29 | C40: V22.0 | D40: 87653 | E40: OBGYN | F40: Laboratory tests | G40: Strep B DNA Amp Probe | L40: 1 | Q40: 40.61207081 | R40: 40.61207081 | S40: 1694.304662 | U40: 120 | W40: 0 | Y40: 1000 | AA40: 40 | AC40: 52.83401807 | AD40: 0 | AE40: 1092.834018 | AG40: 1000 | AI40: 0 | AK40: 0 | AM40: 0 | AO40: 0 | AQ40: 0 | AS40: 0 | AU40: 0
A41: 2011-10-28 | B41: 32 | C41: V22.0 | D41: Bundled in global OB package - 59400 | E41: OBGYN | F41: Routine Obstetric Care | G41: Office/Outpatient Visit Est | N41: 1 | Q41: 2084.28 | S41: 1694.304662 | U41: 120 | W41: 0 | Y41: 1000 | AA41: 40 | AC41: 52.83401807 | AD41: 0 | AE41: 1092.834018 | AG41: 1000 | AI41: 0 | AK41: 0 | AM41: 0 | AO41: 0 | AQ41: 0 | AS41: 0 | AU41: 0
A42: 2011-10-28 | B42: 10 | C42: V04.81 | D42: 90471 | E42: OBGYN | F42: Vaccines, other preventive | G42: Immunization Admin | O42: 1 | Q42: 20.03871025 | R42: 20.03871025 | S42: 1714.343372 | U42: 120 | W42: 0 | Y42: 1000 | AA42: 40 | AC42: 52.83401807 | AD42: 0 | AE42: 1092.834018 | AG42: 1000 | AI42: 0 | AK42: 0 | AM42: 0 | AO42: 0 | AQ42: 0 | AS42: 0 | AU42: 0
A43: 2011-10-28 | B43: 11 | C43: V04.81 | D43: 90656 | E43: OBGYN | F43: Vaccines, other preventive | G43: Flu Vaccine N0 Preserv 3 & > | O43: 1 | Q43: 15.03511905 | R43: 15.03511905 | S43: 1729.378492 | U43: 120 | W43: 0 | Y43: 1000 | AA43: 40 | AC43: 52.83401807 | AD43: 0 | AE43: 1092.834018 | AG43: 1000 | AI43: 0 | AK43: 0 | AM43: 0 | AO43: 0 | AQ43: 0 | AS43: 0 | AU43: 0
A44: 2011-11-01 | B44: 9 | D44: S9442 | E44: Alternative Provider | F44: Education | G44: Birthing class | Q44: 0 | S44: 1729.378492 | U44: 120 | W44: 0 | Y44: 1000 | AA44: 40 | AC44: 52.83401807 | AD44: 0 | AE44: 1092.834018 | AG44: 1000 | AI44: 0 | AK44: 0 | AM44: 0 | AO44: 0 | AQ44: 0 | AS44: 0 | AU44: 0
A45: 2011-11-08 | B45: 9 | D45: S9442 | E45: Alternative Provider | F45: Education | G45: Birthing class | Q45: 0 | S45: 1729.378492 | U45: 120 | W45: 0 | Y45: 1000 | AA45: 40 | AC45: 52.83401807 | AD45: 0 | AE45: 1092.834018 | AG45: 1000 | AI45: 0 | AK45: 0 | AM45: 0 | AO45: 0 | AQ45: 0 | AS45: 0 | AU45: 0
A46: 2011-11-11 | B46: 32 | C46: V22.0 | D46: Bundled in global OB package - 59400 | E46: OBGYN | F46: Routine Obstetric Care | G46: Office/Outpatient Visit Est | N46: 1 | Q46: 2084.28 | S46: 1729.378492 | U46: 120 | W46: 0 | Y46: 1000 | AA46: 40 | AC46: 52.83401807 | AD46: 0 | AE46: 1092.834018 | AG46: 1000 | AI46: 0 | AK46: 0 | AM46: 0 | AO46: 0 | AQ46: 0 | AS46: 0 | AU46: 0
A47: 2011-11-18 | B47: 32 | C47: V22.0 | D47: Bundled in global OB package - 59400 | E47: OBGYN | F47: Routine Obstetric Care | G47: Office/Outpatient Visit Est | N47: 1 | Q47: 2084.28 | S47: 1729.378492 | U47: 120 | W47: 0 | Y47: 1000 | AA47: 40 | AC47: 52.83401807 | AD47: 0 | AE47: 1092.834018 | AG47: 1000 | AI47: 0 | AK47: 0 | AM47: 0 | AO47: 0 | AQ47: 0 | AS47: 0 | AU47: 0
A48: 2011-11-25 | B48: 32 | C48: V22.0 | D48: Bundled in global OB package - 59400 | E48: OBGYN | F48: Routine Obstetric Care | G48: Office/Outpatient Visit Est | N48: 1 | Q48: 2084.28 | S48: 1729.378492 | U48: 120 | W48: 0 | Y48: 1000 | AA48: 40 | AC48: 52.83401807 | AD48: 0 | AE48: 1092.834018 | AG48: 1000 | AI48: 0 | AK48: 0 | AM48: 0 | AO48: 0 | AQ48: 0 | AS48: 0 | AU48: 0
A49: 2011-12-02 | B49: 32 | C49: V22.0 | D49: Bundled in global OB package - 59400 | E49: OBGYN | F49: Routine Obstetric Care | G49: Office/Outpatient Visit Est | N49: 1 | Q49: 2084.28 | S49: 1729.378492 | U49: 120 | W49: 0 | Y49: 1000 | AA49: 40 | AC49: 52.83401807 | AD49: 0 | AE49: 1092.834018 | AG49: 1000 | AI49: 0 | AK49: 0 | AM49: 0 | AO49: 0 | AQ49: 0 | AS49: 0 | AU49: 0
A50: 2011-12-09 | B50: 36 | E50: Inpatient Facility | F50: Hospital charges (bundle) | G50: Inpatient Maternity Bundle (Bundled line items 4, 5, 34) | H50: see individual line items on Line Item Maternity tab | K50: 1 | Q50: 4471.44 | R50: 3130.008 | S50: 4859.386492 | U50: 120 | W50: 0 | X50: 0 | Y50: 1000 | AA50: 40 | AB50: 1341.432 | AC50: 1394.266018 | AD50: 1341.432 | AE50: 2434.266018 | AF50: 0 | AG50: 1000 | AI50: 0 | AK50: 0 | AM50: 0 | AO50: 0 | AQ50: 0 | AS50: 0 | AU50: 0
A51: 2011-12-09 | B51: 6 | C51: 650, V27.0, Proc: 73.59 | D51: Bundled in global OB package - 59400 | E51: OBGYN | F51: Routine Obstetric Care | G51: Obstetrical Care | H51: 59400 - Global OB package description/code | N51: 1 | Q51: 2084.282905 | S51: 4859.386492 | U51: 120 | W51: 0 | Y51: 1000 | AA51: 40 | AC51: 1394.266018 | AD51: 0 | AE51: 2434.266018 | AG51: 1000 | AI51: 0 | AK51: 0 | AM51: 0 | AO51: 0 | AQ51: 0 | AS51: 0 | AU51: 0
A52: 2011-12-09 | B52: 3 | C52: 650, V27.0 | D52: S9443 | E52: Inpatient Facility | F52: Education | G52: Lactation class | H52: Included in hospital rate** | K52: 1 | Q52: 0 | S52: 4859.386492 | U52: 120 | W52: 0 | Y52: 1000 | AA52: 40 | AC52: 1394.266018 | AD52: 0 | AE52: 2434.266018 | AG52: 1000 | AI52: 0 | AK52: 0 | AM52: 0 | AO52: 0 | AQ52: 0 | AS52: 0 | AU52: 0
A53: 2011-12-11 | B53: 7 | D53: OTC | E53: Pharmacy Retail | F53: Pharmacy | G53: Docusate sodium (OTC) [1 pill QD] | Q53: 30 | S53: 4859.386492 | T53: 30 | U53: 150 | W53: 0 | Y53: 1000 | AA53: 40 | AC53: 1394.266018 | AD53: 0 | AE53: 2434.266018 | AG53: 1000 | AI53: 0 | AK53: 0 | AM53: 0 | AO53: 0 | AQ53: 0 | AS53: 0 | AU53: 0
A54: 2011-12-11 | B54: 2 | D54: 591346601 | E54: Pharmacy Retail | F54: Pharmacy | G54: Ibuprofen 800mg (Rx) [1 pill Q8H PRN; 60 pills] | J54: 1 | Q54: 17.52 | R54: 0 | S54: 4859.386492 | U54: 150 | W54: 0 | X54: 17.52 | Y54: 1017.52 | Z54: 0 | AA54: 40 | AC54: 1394.266018 | AD54: 17.52 | AE54: 2451.786018 | AG54: 1000 | AI54: 0 | AJ54: 17.52 | AK54: 17.52 | AM54: 0 | AO54: 0 | AQ54: 0 | AS54: 0 | AU54: 0
A55: 2011-12-11 | B55: 1 | D55: 378710401 | E55: Pharmacy Retail | F55: Pharmacy | G55: Oxycodone/APAP 5mg/325mg (Rx) [1 pill Q6H PRN; 15 pills] | J55: 1 | Q55: 5.21 | R55: 0 | S55: 4859.386492 | U55: 150 | W55: 0 | X55: 5.21 | Y55: 1022.73 | Z55: 0 | AA55: 40 | AC55: 1394.266018 | AD55: 5.21 | AE55: 2456.996018 | AG55: 1000 | AI55: 0 | AJ55: 5.21 | AK55: 22.73 | AM55: 0 | AO55: 0 | AQ55: 0 | AS55: 0 | AU55: 0
A56: 2011-12-23 | B56: 33 | C56: V24.2 | D56: Bundled in global OB package - 59400 | E56: OBGYN | F56: Routine Obstetric Care | G56: Office/Outpatient Visit Est | H56: Post partum visit | N56: 1 | Q56: 2084.28 | S56: 4859.386492 | U56: 150 | W56: 0 | Y56: 1022.73 | AA56: 40 | AC56: 1394.266018 | AD56: 0 | AE56: 2456.996018 | AG56: 1000 | AI56: 0 | AK56: 22.73 | AM56: 0 | AO56: 0 | AQ56: 0 | AS56: 0 | AU56: 0
S57: 4859.386492 | U57: 150 | W57: 0 | Y57: 1022.73 | AA57: 40 | AC57: 1394.266018 | AD57: 0 | AE57: 2456.996018 | AG57: 1000 | AI57: 0 | AK57: 22.73 | AM57: 0 | AO57: 0 | AQ57: 0 | AS57: 0 | AU57: 0
S58: 4859.386492 | U58: 150 | W58: 0 | Y58: 1022.73 | AA58: 40 | AC58: 1394.266018 | AD58: 0 | AE58: 2456.996018 | AG58: 1000 | AI58: 0 | AK58: 22.73 | AM58: 0 | AO58: 0 | AQ58: 0 | AS58: 0 | AU58: 0
S59: 4859.386492 | U59: 150 | W59: 0 | Y59: 1022.73 | AA59: 40 | AC59: 1394.266018 | AD59: 0 | AE59: 2456.996018 | AG59: 1000 | AI59: 0 | AK59: 22.73 | AM59: 0 | AO59: 0 | AQ59: 0 | AS59: 0 | AU59: 0
S60: 4859.386492 | U60: 150 | W60: 0 | Y60: 1022.73 | AA60: 40 | AC60: 1394.266018 | AD60: 0 | AE60: 2456.996018 | AG60: 1000 | AI60: 0 | AK60: 22.73 | AM60: 0 | AO60: 0 | AQ60: 0 | AS60: 0 | AU60: 0
S61: 4859.386492 | U61: 150 | W61: 0 | Y61: 1022.73 | AA61: 40 | AC61: 1394.266018 | AD61: 0 | AE61: 2456.996018 | AG61: 1000 | AI61: 0 | AK61: 22.73 | AM61: 0 | AO61: 0 | AQ61: 0 | AS61: 0 | AU61: 0
S62: 4859.386492 | U62: 150 | W62: 0 | Y62: 1022.73 | AA62: 40 | AC62: 1394.266018 | AD62: 0 | AE62: 2456.996018 | AG62: 1000 | AI62: 0 | AK62: 22.73 | AM62: 0 | AO62: 0 | AQ62: 0 | AS62: 0 | AU62: 0
S63: 4859.386492 | U63: 150 | W63: 0 | Y63: 1022.73 | AA63: 40 | AC63: 1394.266018 | AD63: 0 | AE63: 2456.996018 | AG63: 1000 | AI63: 0 | AK63: 22.73 | AM63: 0 | AO63: 0 | AQ63: 0 | AS63: 0 | AU63: 0
S64: 4859.386492 | U64: 150 | W64: 0 | Y64: 1022.73 | AA64: 40 | AC64: 1394.266018 | AD64: 0 | AE64: 2456.996018 | AG64: 1000 | AI64: 0 | AK64: 22.73 | AM64: 0 | AO64: 0 | AQ64: 0 | AS64: 0 | AU64: 0
S65: 4859.386492 | U65: 150 | W65: 0 | Y65: 1022.73 | AA65: 40 | AC65: 1394.266018 | AD65: =Mat_Col_Deduct+Mat_Col_Copay+Mat_Col_Coinsur -> 0 | AE65: 2456.996018 | AG65: 1000 | AI65: 0 | AK65: 22.73 | AM65: 0 | AO65: 0 | AQ65: 0 | AS65: 0 | AU65: 0
S66: 4859.386492 | U66: 150 | W66: 0 | Y66: 1022.73 | AA66: 40 | AC66: 1394.266018 | AD66: 0 | AE66: 2456.996018 | AG66: 1000 | AI66: 0 | AK66: 22.73 | AM66: 0 | AO66: 0 | AQ66: 0 | AS66: 0 | AU66: 0
S67: =S66+R67 -> 4859.386492 | U67: 150 | W67: =W66+V67 -> 0 | Y67: =Y66+X67 -> 1022.73 | AA67: =AA66+Z67 -> 40 | AC67: =AC66+AB67 -> 1394.266018 | AD67: 0 | AE67: =AE66+AD67 -> 2456.996018 | AG67: =AG66+AF67 -> 1000 | AI67: =AI66+AH67 -> 0 | AK67: =AK66+AJ67 -> 22.73 | AM67: =AM66+AL67 -> 0 | AO67: =AO66+AN67 -> 0 | AQ67: 0 | AS67: =AS66+AR67 -> 0 | AU67: =AU66+AT67 -> 0
S68: 4859.386492 | U68: 150 | W68: 0 | Y68: 1022.73 | AA68: 40 | AC68: 1394.266018 | AD68: 0 | AE68: 2456.996018 | AG68: 1000 | AI68: 0 | AK68: 22.73 | AM68: 0 | AO68: 0 | AQ68: 0 | AS68: 0 | AU68: 0
S69: 4859.386492 | U69: =U68+T69 -> 150 | W69: 0 | Y69: 1022.73 | AA69: 40 | AC69: 1394.266018 | AD69: 0 | AE69: 2456.996018 | AG69: 1000 | AI69: 0 | AK69: 22.73 | AM69: 0 | AO69: 0 | AQ69: =AQ68+AP69 -> 0 | AS69: 0 | AU69: 0
S70: 4859.386492 | U70: 150 | W70: 0 | Y70: 1022.73 | AA70: 40 | AC70: 1394.266018 | AD70: 0 | AE70: 2456.996018 | AG70: 1000 | AI70: 0 | AK70: 22.73 | AM70: 0 | AO70: 0 | AQ70: 0 | AS70: 0 | AU70: 0
S71: 4859.386492 | U71: 150 | W71: 0 | Y71: 1022.73 | AA71: 40 | AC71: 1394.266018 | AD71: 0 | AE71: 2456.996018 | AG71: 1000 | AI71: 0 | AK71: 22.73 | AM71: 0 | AO71: 0 | AQ71: 0 | AS71: 0 | AU71: 0
S72: 4859.386492 | U72: 150 | W72: 0 | Y72: 1022.73 | AA72: 40 | AC72: 1394.266018 | AD72: 0 | AE72: 2456.996018 | AG72: 1000 | AI72: 0 | AK72: 22.73 | AM72: 0 | AO72: 0 | AQ72: 0 | AS72: 0 | AU72: 0
S73: 4859.386492 | U73: 150 | W73: 0 | Y73: 1022.73 | AA73: 40 | AC73: 1394.266018 | AD73: 0 | AE73: 2456.996018 | AG73: 1000 | AI73: 0 | AK73: 22.73 | AM73: 0 | AO73: 0 | AQ73: 0 | AS73: 0 | AU73: 0
S74: 4859.386492 | U74: 150 | W74: 0 | Y74: 1022.73 | AA74: 40 | AC74: 1394.266018 | AD74: 0 | AE74: 2456.996018 | AG74: 1000 | AI74: 0 | AK74: 22.73 | AM74: 0 | AO74: 0 | AQ74: 0 | AS74: 0 | AU74: 0
S75: 4859.386492 | U75: 150 | W75: 0 | Y75: 1022.73 | AA75: 40 | AC75: 1394.266018 | AD75: 0 | AE75: 2456.996018 | AG75: 1000 | AI75: 0 | AK75: 22.73 | AM75: 0 | AO75: 0 | AQ75: 0 | AS75: 0 | AU75: 0
S76: 4859.386492 | U76: 150 | W76: 0 | Y76: 1022.73 | AA76: 40 | AC76: 1394.266018 | AD76: 0 | AE76: 2456.996018 | AG76: 1000 | AI76: 0 | AK76: 22.73 | AM76: 0 | AO76: 0 | AQ76: 0 | AS76: 0 | AU76: 0
S77: 4859.386492 | U77: 150 | W77: 0 | Y77: 1022.73 | AA77: 40 | AC77: 1394.266018 | AD77: 0 | AE77: 2456.996018 | AG77: 1000 | AI77: 0 | AK77: 22.73 | AM77: 0 | AO77: 0 | AQ77: 0 | AS77: 0 | AU77: 0
S78: 4859.386492 | U78: 150 | W78: 0 | Y78: 1022.73 | AA78: 40 | AC78: 1394.266018 | AD78: 0 | AE78: 2456.996018 | AG78: 1000 | AI78: 0 | AK78: 22.73 | AM78: 0 | AO78: 0 | AQ78: 0 | AS78: 0 | AU78: 0
S79: 4859.386492 | U79: 150 | W79: 0 | Y79: 1022.73 | AA79: 40 | AC79: 1394.266018 | AD79: 0 | AE79: 2456.996018 | AG79: 1000 | AI79: 0 | AK79: 22.73 | AM79: 0 | AO79: 0 | AQ79: 0 | AS79: 0 | AU79: 0
S80: 4859.386492 | U80: 150 | W80: 0 | Y80: 1022.73 | AA80: 40 | AC80: 1394.266018 | AD80: 0 | AE80: 2456.996018 | AG80: 1000 | AI80: 0 | AK80: 22.73 | AM80: 0 | AO80: 0 | AQ80: 0 | AS80: 0 | AU80: 0
S81: 4859.386492 | U81: 150 | W81: 0 | Y81: 1022.73 | AA81: 40 | AC81: 1394.266018 | AD81: 0 | AE81: 2456.996018 | AG81: 1000 | AI81: 0 | AK81: 22.73 | AM81: 0 | AO81: 0 | AQ81: 0 | AS81: 0 | AU81: 0
S82: 4859.386492 | U82: 150 | W82: 0 | Y82: 1022.73 | AA82: 40 | AC82: 1394.266018 | AD82: 0 | AE82: 2456.996018 | AG82: 1000 | AI82: 0 | AK82: 22.73 | AM82: 0 | AO82: 0 | AQ82: 0 | AS82: 0 | AU82: 0
S83: 4859.386492 | U83: 150 | W83: 0 | Y83: 1022.73 | AA83: 40 | AC83: 1394.266018 | AD83: 0 | AE83: 2456.996018 | AG83: 1000 | AI83: 0 | AK83: 22.73 | AM83: 0 | AO83: 0 | AQ83: 0 | AS83: 0 | AU83: 0
S84: 4859.386492 | U84: 150 | W84: 0 | Y84: 1022.73 | AA84: 40 | AC84: 1394.266018 | AD84: 0 | AE84: 2456.996018 | AG84: 1000 | AI84: 0 | AK84: 22.73 | AM84: 0 | AO84: 0 | AQ84: 0 | AS84: 0 | AU84: 0
S85: 4859.386492 | U85: 150 | W85: 0 | Y85: 1022.73 | AA85: 40 | AC85: 1394.266018 | AD85: 0 | AE85: 2456.996018 | AG85: 1000 | AI85: 0 | AK85: 22.73 | AM85: 0 | AO85: 0 | AQ85: 0 | AS85: 0 | AU85: 0
S86: 4859.386492 | U86: 150 | W86: 0 | Y86: 1022.73 | AA86: 40 | AC86: 1394.266018 | AD86: 0 | AE86: 2456.996018 | AG86: 1000 | AI86: 0 | AK86: 22.73 | AM86: 0 | AO86: 0 | AQ86: 0 | AS86: 0 | AU86: 0
S87: 4859.386492 | U87: 150 | W87: 0 | Y87: 1022.73 | AA87: 40 | AC87: 1394.266018 | AD87: 0 | AE87: 2456.996018 | AG87: 1000 | AI87: 0 | AK87: 22.73 | AM87: 0 | AO87: 0 | AQ87: 0 | AS87: 0 | AU87: 0
S88: 4859.386492 | U88: 150 | W88: 0 | Y88: 1022.73 | AA88: 40 | AC88: 1394.266018 | AD88: 0 | AE88: 2456.996018 | AG88: 1000 | AI88: 0 | AK88: 22.73 | AM88: 0 | AO88: 0 | AQ88: 0 | AS88: 0 | AU88: 0
S89: 4859.386492 | U89: 150 | W89: 0 | Y89: 1022.73 | AA89: 40 | AC89: 1394.266018 | AD89: 0 | AE89: 2456.996018 | AG89: 1000 | AI89: 0 | AK89: 22.73 | AM89: 0 | AO89: 0 | AQ89: 0 | AS89: 0 | AU89: 0
S90: 4859.386492 | U90: 150 | W90: 0 | Y90: 1022.73 | AA90: 40 | AC90: 1394.266018 | AD90: 0 | AE90: 2456.996018 | AG90: 1000 | AI90: 0 | AK90: 22.73 | AM90: 0 | AO90: 0 | AQ90: 0 | AS90: 0 | AU90: 0
S91: 4859.386492 | U91: 150 | W91: 0 | Y91: 1022.73 | AA91: 40 | AC91: 1394.266018 | AD91: 0 | AE91: 2456.996018 | AG91: 1000 | AI91: 0 | AK91: 22.73 | AM91: 0 | AO91: 0 | AQ91: 0 | AS91: 0 | AU91: 0
S92: 4859.386492 | U92: 150 | W92: 0 | Y92: 1022.73 | AA92: 40 | AC92: 1394.266018 | AD92: 0 | AE92: 2456.996018 | AG92: 1000 | AI92: 0 | AK92: 22.73 | AM92: 0 | AO92: 0 | AQ92: 0 | AS92: 0 | AU92: 0
S93: 4859.386492 | U93: 150 | W93: 0 | Y93: 1022.73 | AA93: 40 | AC93: 1394.266018 | AD93: 0 | AE93: 2456.996018 | AG93: 1000 | AI93: 0 | AK93: 22.73 | AM93: 0 | AO93: 0 | AQ93: 0 | AS93: 0 | AU93: 0
S94: 4859.386492 | U94: 150 | W94: 0 | Y94: 1022.73 | AA94: 40 | AC94: 1394.266018 | AD94: 0 | AE94: 2456.996018 | AG94: 1000 | AI94: 0 | AK94: 22.73 | AM94: 0 | AO94: 0 | AQ94: 0 | AS94: 0 | AU94: 0
S95: 4859.386492 | U95: 150 | W95: 0 | Y95: 1022.73 | AA95: 40 | AC95: 1394.266018 | AD95: 0 | AE95: 2456.996018 | AG95: 1000 | AI95: 0 | AK95: 22.73 | AM95: 0 | AO95: 0 | AQ95: 0 | AS95: 0 | AU95: 0
S96: 4859.386492 | U96: 150 | W96: 0 | Y96: 1022.73 | AA96: 40 | AC96: 1394.266018 | AD96: 0 | AE96: 2456.996018 | AG96: 1000 | AI96: 0 | AK96: 22.73 | AM96: 0 | AO96: 0 | AQ96: 0 | AS96: 0 | AU96: 0
S97: 4859.386492 | U97: 150 | W97: 0 | Y97: 1022.73 | AA97: 40 | AC97: 1394.266018 | AD97: 0 | AE97: 2456.996018 | AG97: 1000 | AI97: 0 | AK97: 22.73 | AM97: 0 | AO97: 0 | AQ97: 0 | AS97: 0 | AU97: 0
S98: 4859.386492 | U98: 150 | W98: 0 | Y98: 1022.73 | AA98: 40 | AC98: 1394.266018 | AD98: 0 | AE98: 2456.996018 | AG98: 1000 | AI98: 0 | AK98: 22.73 | AM98: 0 | AO98: 0 | AQ98: 0 | AS98: 0 | AU98: 0
S99: 4859.386492 | U99: 150 | W99: 0 | Y99: 1022.73 | AA99: 40 | AC99: 1394.266018 | AD99: 0 | AE99: 2456.996018 | AG99: 1000 | AI99: 0 | AK99: 22.73 | AM99: 0 | AO99: 0 | AQ99: 0 | AS99: 0 | AU99: 0
S100: 4859.386492 | U100: 150 | W100: 0 | Y100: 1022.73 | AA100: 40 | AC100: 1394.266018 | AD100: 0 | AE100: 2456.996018 | AG100: 1000 | AI100: 0 | AK100: 22.73 | AM100: 0 | AO100: 0 | AQ100: 0 | AS100: 0 | AU100: 0
S101: 4859.386492 | U101: 150 | W101: 0 | Y101: 1022.73 | AA101: 40 | AC101: 1394.266018 | AD101: 0 | AE101: 2456.996018 | AG101: 1000 | AI101: 0 | AK101: 22.73 | AM101: 0 | AO101: 0 | AQ101: 0 | AS101: 0 | AU101: 0
S102: 4859.386492 | U102: 150 | W102: 0 | Y102: 1022.73 | AA102: 40 | AC102: 1394.266018 | AD102: 0 | AE102: 2456.996018 | AG102: 1000 | AI102: 0 | AK102: 22.73 | AM102: 0 | AO102: 0 | AQ102: 0 | AS102: 0 | AU102: 0
S103: 4859.386492 | U103: 150 | W103: 0 | Y103: 1022.73 | AA103: 40 | AC103: 1394.266018 | AD103: 0 | AE103: 2456.996018 | AG103: 1000 | AI103: 0 | AK103: 22.73 | AM103: 0 | AO103: 0 | AQ103: 0 | AS103: 0 | AU103: 0
S104: 4859.386492 | U104: 150 | W104: 0 | Y104: 1022.73 | AA104: 40 | AC104: 1394.266018 | AD104: 0 | AE104: 2456.996018 | AG104: 1000 | AI104: 0 | AK104: 22.73 | AM104: 0 | AO104: 0 | AQ104: 0 | AS104: 0 | AU104: 0
S105: 4859.386492 | U105: 150 | W105: 0 | Y105: 1022.73 | AA105: 40 | AC105: 1394.266018 | AD105: 0 | AE105: 2456.996018 | AG105: 1000 | AI105: 0 | AK105: 22.73 | AM105: 0 | AO105: 0 | AQ105: 0 | AS105: 0 | AU105: 0
S106: 4859.386492 | U106: 150 | W106: 0 | Y106: 1022.73 | AA106: 40 | AC106: 1394.266018 | AD106: 0 | AE106: 2456.996018 | AG106: 1000 | AI106: 0 | AK106: 22.73 | AM106: 0 | AO106: 0 | AQ106: 0 | AS106: 0 | AU106: 0
S107: 4859.386492 | U107: 150 | W107: 0 | Y107: 1022.73 | AA107: 40 | AC107: 1394.266018 | AD107: 0 | AE107: 2456.996018 | AG107: 1000 | AI107: 0 | AK107: 22.73 | AM107: 0 | AO107: 0 | AQ107: 0 | AS107: 0 | AU107: 0
S108: 4859.386492 | U108: 150 | W108: 0 | Y108: 1022.73 | AA108: 40 | AC108: 1394.266018 | AD108: 0 | AE108: 2456.996018 | AG108: 1000 | AI108: 0 | AK108: 22.73 | AM108: 0 | AO108: 0 | AQ108: 0 | AS108: 0 | AU108: 0
S109: 4859.386492 | U109: 150 | W109: 0 | Y109: 1022.73 | AA109: 40 | AC109: 1394.266018 | AD109: 0 | AE109: 2456.996018 | AG109: 1000 | AI109: 0 | AK109: 22.73 | AM109: 0 | AO109: 0 | AQ109: 0 | AS109: 0 | AU109: 0
S110: 4859.386492 | U110: 150 | W110: 0 | Y110: 1022.73 | AA110: 40 | AC110: 1394.266018 | AD110: 0 | AE110: 2456.996018 | AG110: 1000 | AI110: 0 | AK110: 22.73 | AM110: 0 | AO110: 0 | AQ110: 0 | AS110: 0 | AU110: 0
S111: 4859.386492 | U111: 150 | W111: 0 | Y111: 1022.73 | AA111: 40 | AC111: 1394.266018 | AD111: 0 | AE111: 2456.996018 | AG111: 1000 | AI111: 0 | AK111: 22.73 | AM111: 0 | AO111: 0 | AQ111: 0 | AS111: 0 | AU111: 0
S112: 4859.386492 | U112: 150 | W112: 0 | Y112: 1022.73 | AA112: 40 | AC112: 1394.266018 | AD112: 0 | AE112: 2456.996018 | AG112: 1000 | AI112: 0 | AK112: 22.73 | AM112: 0 | AO112: 0 | AQ112: 0 | AS112: 0 | AU112: 0
S113: 4859.386492 | U113: 150 | W113: 0 | Y113: 1022.73 | AA113: 40 | AC113: 1394.266018 | AD113: 0 | AE113: 2456.996018 | AG113: 1000 | AI113: 0 | AK113: 22.73 | AM113: 0 | AO113: 0 | AQ113: 0 | AS113: 0 | AU113: 0
S114: 4859.386492 | U114: 150 | W114: 0 | Y114: 1022.73 | AA114: 40 | AC114: 1394.266018 | AD114: 0 | AE114: 2456.996018 | AG114: 1000 | AI114: 0 | AK114: 22.73 | AM114: 0 | AO114: 0 | AQ114: 0 | AS114: 0 | AU114: 0
S115: 4859.386492 | U115: 150 | W115: 0 | Y115: 1022.73 | AA115: 40 | AC115: 1394.266018 | AD115: 0 | AE115: 2456.996018 | AG115: 1000 | AI115: 0 | AK115: 22.73 | AM115: 0 | AO115: 0 | AQ115: 0 | AS115: 0 | AU115: 0
S116: 4859.386492 | U116: 150 | W116: 0 | Y116: 1022.73 | AA116: 40 | AC116: 1394.266018 | AD116: 0 | AE116: 2456.996018 | AG116: 1000 | AI116: 0 | AK116: 22.73 | AM116: 0 | AO116: 0 | AQ116: 0 | AS116: 0 | AU116: 0
S117: 4859.386492 | U117: 150 | W117: 0 | Y117: 1022.73 | AA117: 40 | AC117: 1394.266018 | AD117: 0 | AE117: 2456.996018 | AG117: 1000 | AI117: 0 | AK117: 22.73 | AM117: 0 | AO117: 0 | AQ117: 0 | AS117: 0 | AU117: 0
S118: 4859.386492 | U118: 150 | W118: 0 | Y118: 1022.73 | AA118: 40 | AC118: 1394.266018 | AD118: 0 | AE118: 2456.996018 | AG118: 1000 | AI118: 0 | AK118: 22.73 | AM118: 0 | AO118: 0 | AQ118: 0 | AS118: 0 | AU118: 0
S119: 4859.386492 | U119: 150 | W119: 0 | Y119: 1022.73 | AA119: 40 | AC119: 1394.266018 | AD119: 0 | AE119: 2456.996018 | AG119: 1000 | AI119: 0 | AK119: 22.73 | AM119: 0 | AO119: 0 | AQ119: 0 | AS119: 0 | AU119: 0
S120: 4859.386492 | U120: 150 | W120: 0 | Y120: 1022.73 | AA120: 40 | AC120: 1394.266018 | AD120: 0 | AE120: 2456.996018 | AG120: 1000 | AI120: 0 | AK120: 22.73 | AM120: 0 | AO120: 0 | AQ120: 0 | AS120: 0 | AU120: 0
S121: 4859.386492 | U121: 150 | W121: 0 | Y121: 1022.73 | AA121: 40 | AC121: 1394.266018 | AD121: 0 | AE121: 2456.996018 | AG121: 1000 | AI121: 0 | AK121: 22.73 | AM121: 0 | AO121: 0 | AQ121: 0 | AS121: 0 | AU121: 0
S122: 4859.386492 | U122: 150 | W122: 0 | Y122: 1022.73 | AA122: 40 | AC122: 1394.266018 | AD122: 0 | AE122: 2456.996018 | AG122: 1000 | AI122: 0 | AK122: 22.73 | AM122: 0 | AO122: 0 | AQ122: 0 | AS122: 0 | AU122: 0
S123: 4859.386492 | U123: 150 | W123: 0 | Y123: 1022.73 | AA123: 40 | AC123: 1394.266018 | AD123: 0 | AE123: 2456.996018 | AG123: 1000 | AI123: 0 | AK123: 22.73 | AM123: 0 | AO123: 0 | AQ123: 0 | AS123: 0 | AU123: 0
S124: 4859.386492 | U124: 150 | W124: 0 | Y124: 1022.73 | AA124: 40 | AC124: 1394.266018 | AD124: 0 | AE124: 2456.996018 | AG124: 1000 | AI124: 0 | AK124: 22.73 | AM124: 0 | AO124: 0 | AQ124: 0 | AS124: 0 | AU124: 0
S125: 4859.386492 | U125: 150 | W125: 0 | Y125: 1022.73 | AA125: 40 | AC125: 1394.266018 | AD125: 0 | AE125: 2456.996018 | AG125: 1000 | AI125: 0 | AK125: 22.73 | AM125: 0 | AO125: 0 | AQ125: 0 | AS125: 0 | AU125: 0
S126: 4859.386492 | U126: 150 | W126: 0 | Y126: 1022.73 | AA126: 40 | AC126: 1394.266018 | AD126: 0 | AE126: 2456.996018 | AG126: 1000 | AI126: 0 | AK126: 22.73 | AM126: 0 | AO126: 0 | AQ126: 0 | AS126: 0 | AU126: 0
S127: 4859.386492 | U127: 150 | W127: 0 | Y127: 1022.73 | AA127: 40 | AC127: 1394.266018 | AD127: 0 | AE127: 2456.996018 | AG127: 1000 | AI127: 0 | AK127: 22.73 | AM127: 0 | AO127: 0 | AQ127: 0 | AS127: 0 | AU127: 0
S128: 4859.386492 | U128: 150 | W128: 0 | Y128: 1022.73 | AA128: 40 | AC128: 1394.266018 | AD128: 0 | AE128: 2456.996018 | AG128: 1000 | AI128: 0 | AK128: 22.73 | AM128: 0 | AO128: 0 | AQ128: 0 | AS128: 0 | AU128: 0
S129: 4859.386492 | U129: 150 | W129: 0 | Y129: 1022.73 | AA129: 40 | AC129: 1394.266018 | AD129: =Mat_Col_Deduct+Mat_Col_Copay+Mat_Col_Coinsur -> 0 | AE129: 2456.996018 | AG129: 1000 | AI129: 0 | AK129: 22.73 | AM129: 0 | AO129: 0 | AQ129: 0 | AS129: 0 | AU129: 0
S130: 4859.386492 | U130: 150 | W130: 0 | Y130: 1022.73 | AA130: 40 | AC130: 1394.266018 | AD130: 0 | AE130: 2456.996018 | AG130: 1000 | AI130: 0 | AK130: 22.73 | AM130: 0 | AO130: 0 | AQ130: 0 | AS130: 0 | AU130: 0
S131: =S130+R131 -> 4859.386492 | U131: 150 | W131: =W130+V131 -> 0 | Y131: =Y130+X131 -> 1022.73 | AA131: =AA130+Z131 -> 40 | AC131: =AC130+AB131 -> 1394.266018 | AD131: 0 | AE131: =AE130+AD131 -> 2456.996018 | AG131: =AG130+AF131 -> 1000 | AI131: =AI130+AH131 -> 0 | AK131: =AK130+AJ131 -> 22.73 | AM131: =AM130+AL131 -> 0 | AO131: =AO130+AN131 -> 0 | AQ131: 0 | AS131: =AS130+AR131 -> 0 | AU131: =AU130+AT131 -> 0
S132: 4859.386492 | U132: 150 | W132: 0 | Y132: 1022.73 | AA132: 40 | AC132: 1394.266018 | AD132: 0 | AE132: 2456.996018 | AG132: 1000 | AI132: 0 | AK132: 22.73 | AM132: 0 | AO132: 0 | AQ132: 0 | AS132: 0 | AU132: 0
S133: 4859.386492 | U133: =U132+T133 -> 150 | W133: 0 | Y133: 1022.73 | AA133: 40 | AC133: 1394.266018 | AD133: 0 | AE133: 2456.996018 | AG133: 1000 | AI133: 0 | AK133: 22.73 | AM133: 0 | AO133: 0 | AQ133: =AQ132+AP133 -> 0 | AS133: 0 | AU133: 0
S134: 4859.386492 | U134: 150 | W134: 0 | Y134: 1022.73 | AA134: 40 | AC134: 1394.266018 | AD134: 0 | AE134: 2456.996018 | AG134: 1000 | AI134: 0 | AK134: 22.73 | AM134: 0 | AO134: 0 | AQ134: 0 | AS134: 0 | AU134: 0
S135: 4859.386492 | U135: 150 | W135: 0 | Y135: 1022.73 | AA135: 40 | AC135: 1394.266018 | AD135: 0 | AE135: 2456.996018 | AG135: 1000 | AI135: 0 | AK135: 22.73 | AM135: 0 | AO135: 0 | AQ135: 0 | AS135: 0 | AU135: 0
S136: 4859.386492 | U136: 150 | W136: 0 | Y136: 1022.73 | AA136: 40 | AC136: 1394.266018 | AD136: 0 | AE136: 2456.996018 | AG136: 1000 | AI136: 0 | AK136: 22.73 | AM136: 0 | AO136: 0 | AQ136: 0 | AS136: 0 | AU136: 0
S137: 4859.386492 | U137: 150 | W137: 0 | Y137: 1022.73 | AA137: 40 | AC137: 1394.266018 | AD137: 0 | AE137: 2456.996018 | AG137: 1000 | AI137: 0 | AK137: 22.73 | AM137: 0 | AO137: 0 | AQ137: 0 | AS137: 0 | AU137: 0
S138: 4859.386492 | U138: 150 | W138: 0 | Y138: 1022.73 | AA138: 40 | AC138: 1394.266018 | AD138: 0 | AE138: 2456.996018 | AG138: 1000 | AI138: 0 | AK138: 22.73 | AM138: 0 | AO138: 0 | AQ138: 0 | AS138: 0 | AU138: 0
S139: 4859.386492 | U139: 150 | W139: 0 | Y139: 1022.73 | AA139: 40 | AC139: 1394.266018 | AD139: 0 | AE139: 2456.996018 | AG139: 1000 | AI139: 0 | AK139: 22.73 | AM139: 0 | AO139: 0 | AQ139: 0 | AS139: 0 | AU139: 0
S140: 4859.386492 | U140: 150 | W140: 0 | Y140: 1022.73 | AA140: 40 | AC140: 1394.266018 | AD140: 0 | AE140: 2456.996018 | AG140: 1000 | AI140: 0 | AK140: 22.73 | AM140: 0 | AO140: 0 | AQ140: 0 | AS140: 0 | AU140: 0
S141: 4859.386492 | U141: 150 | W141: 0 | Y141: 1022.73 | AA141: 40 | AC141: 1394.266018 | AD141: 0 | AE141: 2456.996018 | AG141: 1000 | AI141: 0 | AK141: 22.73 | AM141: 0 | AO141: 0 | AQ141: 0 | AS141: 0 | AU141: 0
S142: 4859.386492 | U142: 150 | W142: 0 | Y142: 1022.73 | AA142: 40 | AC142: 1394.266018 | AD142: 0 | AE142: 2456.996018 | AG142: 1000 | AI142: 0 | AK142: 22.73 | AM142: 0 | AO142: 0 | AQ142: 0 | AS142: 0 | AU142: 0
S143: 4859.386492 | U143: 150 | W143: 0 | Y143: 1022.73 | AA143: 40 | AC143: 1394.266018 | AD143: 0 | AE143: 2456.996018 | AG143: 1000 | AI143: 0 | AK143: 22.73 | AM143: 0 | AO143: 0 | AQ143: 0 | AS143: 0 | AU143: 0
S144: 4859.386492 | U144: 150 | W144: 0 | Y144: 1022.73 | AA144: 40 | AC144: 1394.266018 | AD144: 0 | AE144: 2456.996018 | AG144: 1000 | AI144: 0 | AK144: 22.73 | AM144: 0 | AO144: 0 | AQ144: 0 | AS144: 0 | AU144: 0
S145: 4859.386492 | U145: 150 | W145: 0 | Y145: 1022.73 | AA145: 40 | AC145: 1394.266018 | AD145: 0 | AE145: 2456.996018 | AG145: 1000 | AI145: 0 | AK145: 22.73 | AM145: 0 | AO145: 0 | AQ145: 0 | AS145: 0 | AU145: 0
S146: 4859.386492 | U146: 150 | W146: 0 | Y146: 1022.73 | AA146: 40 | AC146: 1394.266018 | AD146: 0 | AE146: 2456.996018 | AG146: 1000 | AI146: 0 | AK146: 22.73 | AM146: 0 | AO146: 0 | AQ146: 0 | AS146: 0 | AU146: 0
S147: 4859.386492 | U147: 150 | W147: 0 | Y147: 1022.73 | AA147: 40 | AC147: 1394.266018 | AD147: 0 | AE147: 2456.996018 | AG147: 1000 | AI147: 0 | AK147: 22.73 | AM147: 0 | AO147: 0 | AQ147: 0 | AS147: 0 | AU147: 0
S148: 4859.386492 | U148: 150 | W148: 0 | Y148: 1022.73 | AA148: 40 | AC148: 1394.266018 | AD148: 0 | AE148: 2456.996018 | AG148: 1000 | AI148: 0 | AK148: 22.73 | AM148: 0 | AO148: 0 | AQ148: 0 | AS148: 0 | AU148: 0
S149: 4859.386492 | U149: 150 | W149: 0 | Y149: 1022.73 | AA149: 40 | AC149: 1394.266018 | AD149: 0 | AE149: 2456.996018 | AG149: 1000 | AI149: 0 | AK149: 22.73 | AM149: 0 | AO149: 0 | AQ149: 0 | AS149: 0 | AU149: 0
S150: 4859.386492 | U150: 150 | W150: 0 | Y150: 1022.73 | AA150: 40 | AC150: 1394.266018 | AD150: 0 | AE150: 2456.996018 | AG150: 1000 | AI150: 0 | AK150: 22.73 | AM150: 0 | AO150: 0 | AQ150: 0 | AS150: 0 | AU150: 0
S151: 4859.386492 | U151: 150 | W151: 0 | Y151: 1022.73 | AA151: 40 | AC151: 1394.266018 | AD151: 0 | AE151: 2456.996018 | AG151: 1000 | AI151: 0 | AK151: 22.73 | AM151: 0 | AO151: 0 | AQ151: 0 | AS151: 0 | AU151: 0
S152: 4859.386492 | U152: 150 | W152: 0 | Y152: 1022.73 | AA152: 40 | AC152: 1394.266018 | AD152: 0 | AE152: 2456.996018 | AG152: 1000 | AI152: 0 | AK152: 22.73 | AM152: 0 | AO152: 0 | AQ152: 0 | AS152: 0 | AU152: 0
S153: 4859.386492 | U153: 150 | W153: 0 | Y153: 1022.73 | AA153: 40 | AC153: 1394.266018 | AD153: 0 | AE153: 2456.996018 | AG153: 1000 | AI153: 0 | AK153: 22.73 | AM153: 0 | AO153: 0 | AQ153: 0 | AS153: 0 | AU153: 0
S154: 4859.386492 | U154: 150 | W154: 0 | Y154: 1022.73 | AA154: 40 | AC154: 1394.266018 | AD154: 0 | AE154: 2456.996018 | AG154: 1000 | AI154: 0 | AK154: 22.73 | AM154: 0 | AO154: 0 | AQ154: 0 | AS154: 0 | AU154: 0
S155: 4859.386492 | U155: 150 | W155: 0 | Y155: 1022.73 | AA155: 40 | AC155: 1394.266018 | AD155: 0 | AE155: 2456.996018 | AG155: 1000 | AI155: 0 | AK155: 22.73 | AM155: 0 | AO155: 0 | AQ155: 0 | AS155: 0 | AU155: 0
S156: 4859.386492 | U156: 150 | W156: 0 | Y156: 1022.73 | AA156: 40 | AC156: 1394.266018 | AD156: 0 | AE156: 2456.996018 | AG156: 1000 | AI156: 0 | AK156: 22.73 | AM156: 0 | AO156: 0 | AQ156: 0 | AS156: 0 | AU156: 0
S157: 4859.386492 | U157: 150 | W157: 0 | Y157: 1022.73 | AA157: 40 | AC157: 1394.266018 | AD157: 0 | AE157: 2456.996018 | AG157: 1000 | AI157: 0 | AK157: 22.73 | AM157: 0 | AO157: 0 | AQ157: 0 | AS157: 0 | AU157: 0
S158: 4859.386492 | U158: 150 | W158: 0 | Y158: 1022.73 | AA158: 40 | AC158: 1394.266018 | AD158: 0 | AE158: 2456.996018 | AG158: 1000 | AI158: 0 | AK158: 22.73 | AM158: 0 | AO158: 0 | AQ158: 0 | AS158: 0 | AU158: 0
S159: 4859.386492 | U159: 150 | W159: 0 | Y159: 1022.73 | AA159: 40 | AC159: 1394.266018 | AD159: 0 | AE159: 2456.996018 | AG159: 1000 | AI159: 0 | AK159: 22.73 | AM159: 0 | AO159: 0 | AQ159: 0 | AS159: 0 | AU159: 0
S160: 4859.386492 | U160: 150 | W160: 0 | Y160: 1022.73 | AA160: 40 | AC160: 1394.266018 | AD160: 0 | AE160: 2456.996018 | AG160: 1000 | AI160: 0 | AK160: 22.73 | AM160: 0 | AO160: 0 | AQ160: 0 | AS160: 0 | AU160: 0
S161: 4859.386492 | U161: 150 | W161: 0 | Y161: 1022.73 | AA161: 40 | AC161: 1394.266018 | AD161: 0 | AE161: 2456.996018 | AG161: 1000 | AI161: 0 | AK161: 22.73 | AM161: 0 | AO161: 0 | AQ161: 0 | AS161: 0 | AU161: 0
S162: 4859.386492 | U162: 150 | W162: 0 | Y162: 1022.73 | AA162: 40 | AC162: 1394.266018 | AD162: 0 | AE162: 2456.996018 | AG162: 1000 | AI162: 0 | AK162: 22.73 | AM162: 0 | AO162: 0 | AQ162: 0 | AS162: 0 | AU162: 0
S163: 4859.386492 | U163: 150 | W163: 0 | Y163: 1022.73 | AA163: 40 | AC163: 1394.266018 | AD163: 0 | AE163: 2456.996018 | AG163: 1000 | AI163: 0 | AK163: 22.73 | AM163: 0 | AO163: 0 | AQ163: 0 | AS163: 0 | AU163: 0
S164: 4859.386492 | U164: 150 | W164: 0 | Y164: 1022.73 | AA164: 40 | AC164: 1394.266018 | AD164: 0 | AE164: 2456.996018 | AG164: 1000 | AI164: 0 | AK164: 22.73 | AM164: 0 | AO164: 0 | AQ164: 0 | AS164: 0 | AU164: 0
S165: 4859.386492 | U165: 150 | W165: 0 | Y165: 1022.73 | AA165: 40 | AC165: 1394.266018 | AD165: 0 | AE165: 2456.996018 | AG165: 1000 | AI165: 0 | AK165: 22.73 | AM165: 0 | AO165: 0 | AQ165: 0 | AS165: 0 | AU165: 0
S166: 4859.386492 | U166: 150 | W166: 0 | Y166: 1022.73 | AA166: 40 | AC166: 1394.266018 | AD166: 0 | AE166: 2456.996018 | AG166: 1000 | AI166: 0 | AK166: 22.73 | AM166: 0 | AO166: 0 | AQ166: 0 | AS166: 0 | AU166: 0
S167: 4859.386492 | U167: 150 | W167: 0 | Y167: 1022.73 | AA167: 40 | AC167: 1394.266018 | AD167: 0 | AE167: 2456.996018 | AG167: 1000 | AI167: 0 | AK167: 22.73 | AM167: 0 | AO167: 0 | AQ167: 0 | AS167: 0 | AU167: 0
S168: 4859.386492 | U168: 150 | W168: 0 | Y168: 1022.73 | AA168: 40 | AC168: 1394.266018 | AD168: 0 | AE168: 2456.996018 | AG168: 1000 | AI168: 0 | AK168: 22.73 | AM168: 0 | AO168: 0 | AQ168: 0 | AS168: 0 | AU168: 0
S169: 4859.386492 | U169: 150 | W169: 0 | Y169: 1022.73 | AA169: 40 | AC169: 1394.266018 | AD169: 0 | AE169: 2456.996018 | AG169: 1000 | AI169: 0 | AK169: 22.73 | AM169: 0 | AO169: 0 | AQ169: 0 | AS169: 0 | AU169: 0
S170: 4859.386492 | U170: 150 | W170: 0 | Y170: 1022.73 | AA170: 40 | AC170: 1394.266018 | AD170: 0 | AE170: 2456.996018 | AG170: 1000 | AI170: 0 | AK170: 22.73 | AM170: 0 | AO170: 0 | AQ170: 0 | AS170: 0 | AU170: 0
S171: 4859.386492 | U171: 150 | W171: 0 | Y171: 1022.73 | AA171: 40 | AC171: 1394.266018 | AD171: 0 | AE171: 2456.996018 | AG171: 1000 | AI171: 0 | AK171: 22.73 | AM171: 0 | AO171: 0 | AQ171: 0 | AS171: 0 | AU171: 0
S172: 4859.386492 | U172: 150 | W172: 0 | Y172: 1022.73 | AA172: 40 | AC172: 1394.266018 | AD172: 0 | AE172: 2456.996018 | AG172: 1000 | AI172: 0 | AK172: 22.73 | AM172: 0 | AO172: 0 | AQ172: 0 | AS172: 0 | AU172: 0
S173: 4859.386492 | U173: 150 | W173: 0 | Y173: 1022.73 | AA173: 40 | AC173: 1394.266018 | AD173: 0 | AE173: 2456.996018 | AG173: 1000 | AI173: 0 | AK173: 22.73 | AM173: 0 | AO173: 0 | AQ173: 0 | AS173: 0 | AU173: 0
S174: 4859.386492 | U174: 150 | W174: 0 | Y174: 1022.73 | AA174: 40 | AC174: 1394.266018 | AD174: 0 | AE174: 2456.996018 | AG174: 1000 | AI174: 0 | AK174: 22.73 | AM174: 0 | AO174: 0 | AQ174: 0 | AS174: 0 | AU174: 0
S175: 4859.386492 | U175: 150 | W175: 0 | Y175: 1022.73 | AA175: 40 | AC175: 1394.266018 | AD175: 0 | AE175: 2456.996018 | AG175: 1000 | AI175: 0 | AK175: 22.73 | AM175: 0 | AO175: 0 | AQ175: 0 | AS175: 0 | AU175: 0
S176: 4859.386492 | U176: 150 | W176: 0 | Y176: 1022.73 | AA176: 40 | AC176: 1394.266018 | AD176: 0 | AE176: 2456.996018 | AG176: 1000 | AI176: 0 | AK176: 22.73 | AM176: 0 | AO176: 0 | AQ176: 0 | AS176: 0 | AU176: 0
S177: 4859.386492 | U177: 150 | W177: 0 | Y177: 1022.73 | AA177: 40 | AC177: 1394.266018 | AD177: 0 | AE177: 2456.996018 | AG177: 1000 | AI177: 0 | AK177: 22.73 | AM177: 0 | AO177: 0 | AQ177: 0 | AS177: 0 | AU177: 0
S178: 4859.386492 | U178: 150 | W178: 0 | Y178: 1022.73 | AA178: 40 | AC178: 1394.266018 | AD178: 0 | AE178: 2456.996018 | AG178: 1000 | AI178: 0 | AK178: 22.73 | AM178: 0 | AO178: 0 | AQ178: 0 | AS178: 0 | AU178: 0
S179: 4859.386492 | U179: 150 | W179: 0 | Y179: 1022.73 | AA179: 40 | AC179: 1394.266018 | AD179: 0 | AE179: 2456.996018 | AG179: 1000 | AI179: 0 | AK179: 22.73 | AM179: 0 | AO179: 0 | AQ179: 0 | AS179: 0 | AU179: 0
S180: 4859.386492 | U180: 150 | W180: 0 | Y180: 1022.73 | AA180: 40 | AC180: 1394.266018 | AD180: 0 | AE180: 2456.996018 | AG180: 1000 | AI180: 0 | AK180: 22.73 | AM180: 0 | AO180: 0 | AQ180: 0 | AS180: 0 | AU180: 0
S181: 4859.386492 | U181: 150 | W181: 0 | Y181: 1022.73 | AA181: 40 | AC181: 1394.266018 | AD181: 0 | AE181: 2456.996018 | AG181: 1000 | AI181: 0 | AK181: 22.73 | AM181: 0 | AO181: 0 | AQ181: 0 | AS181: 0 | AU181: 0
S182: 4859.386492 | U182: 150 | W182: 0 | Y182: 1022.73 | AA182: 40 | AC182: 1394.266018 | AD182: 0 | AE182: 2456.996018 | AG182: 1000 | AI182: 0 | AK182: 22.73 | AM182: 0 | AO182: 0 | AQ182: 0 | AS182: 0 | AU182: 0
S183: 4859.386492 | U183: 150 | W183: 0 | Y183: 1022.73 | AA183: 40 | AC183: 1394.266018 | AD183: 0 | AE183: 2456.996018 | AG183: 1000 | AI183: 0 | AK183: 22.73 | AM183: 0 | AO183: 0 | AQ183: 0 | AS183: 0 | AU183: 0
S184: 4859.386492 | U184: 150 | W184: 0 | Y184: 1022.73 | AA184: 40 | AC184: 1394.266018 | AD184: 0 | AE184: 2456.996018 | AG184: 1000 | AI184: 0 | AK184: 22.73 | AM184: 0 | AO184: 0 | AQ184: 0 | AS184: 0 | AU184: 0
S185: 4859.386492 | U185: 150 | W185: 0 | Y185: 1022.73 | AA185: 40 | AC185: 1394.266018 | AD185: 0 | AE185: 2456.996018 | AG185: 1000 | AI185: 0 | AK185: 22.73 | AM185: 0 | AO185: 0 | AQ185: 0 | AS185: 0 | AU185: 0
S186: 4859.386492 | U186: 150 | W186: 0 | Y186: 1022.73 | AA186: 40 | AC186: 1394.266018 | AD186: 0 | AE186: 2456.996018 | AG186: 1000 | AI186: 0 | AK186: 22.73 | AM186: 0 | AO186: 0 | AQ186: 0 | AS186: 0 | AU186: 0
S187: 4859.386492 | U187: 150 | W187: 0 | Y187: 1022.73 | AA187: 40 | AC187: 1394.266018 | AD187: 0 | AE187: 2456.996018 | AG187: 1000 | AI187: 0 | AK187: 22.73 | AM187: 0 | AO187: 0 | AQ187: 0 | AS187: 0 | AU187: 0
S188: 4859.386492 | U188: 150 | W188: 0 | Y188: 1022.73 | AA188: 40 | AC188: 1394.266018 | AD188: 0 | AE188: 2456.996018 | AG188: 1000 | AI188: 0 | AK188: 22.73 | AM188: 0 | AO188: 0 | AQ188: 0 | AS188: 0 | AU188: 0
S189: 4859.386492 | U189: 150 | W189: 0 | Y189: 1022.73 | AA189: 40 | AC189: 1394.266018 | AD189: 0 | AE189: 2456.996018 | AG189: 1000 | AI189: 0 | AK189: 22.73 | AM189: 0 | AO189: 0 | AQ189: 0 | AS189: 0 | AU189: 0
S190: 4859.386492 | U190: 150 | W190: 0 | Y190: 1022.73 | AA190: 40 | AC190: 1394.266018 | AD190: 0 | AE190: 2456.996018 | AG190: 1000 | AI190: 0 | AK190: 22.73 | AM190: 0 | AO190: 0 | AQ190: 0 | AS190: 0 | AU190: 0
S191: 4859.386492 | U191: 150 | W191: 0 | Y191: 1022.73 | AA191: 40 | AC191: 1394.266018 | AD191: 0 | AE191: 2456.996018 | AG191: 1000 | AI191: 0 | AK191: 22.73 | AM191: 0 | AO191: 0 | AQ191: 0 | AS191: 0 | AU191: 0
S192: 4859.386492 | U192: 150 | W192: 0 | Y192: 1022.73 | AA192: 40 | AC192: 1394.266018 | AD192: 0 | AE192: 2456.996018 | AG192: 1000 | AI192: 0 | AK192: 22.73 | AM192: 0 | AO192: 0 | AQ192: 0 | AS192: 0 | AU192: 0
S193: 4859.386492 | U193: 150 | W193: 0 | Y193: 1022.73 | AA193: 40 | AC193: 1394.266018 | AD193: =Mat_Col_Deduct+Mat_Col_Copay+Mat_Col_Coinsur -> 0 | AE193: 2456.996018 | AG193: 1000 | AI193: 0 | AK193: 22.73 | AM193: 0 | AO193: 0 | AQ193: 0 | AS193: 0 | AU193: 0
S194: 4859.386492 | U194: 150 | W194: 0 | Y194: 1022.73 | AA194: 40 | AC194: 1394.266018 | AD194: 0 | AE194: 2456.996018 | AG194: 1000 | AI194: 0 | AK194: 22.73 | AM194: 0 | AO194: 0 | AQ194: 0 | AS194: 0 | AU194: 0
S195: =S194+R195 -> 4859.386492 | U195: 150 | W195: =W194+V195 -> 0 | Y195: =Y194+X195 -> 1022.73 | AA195: =AA194+Z195 -> 40 | AC195: =AC194+AB195 -> 1394.266018 | AD195: 0 | AE195: =AE194+AD195 -> 2456.996018 | AG195: =AG194+AF195 -> 1000 | AI195: =AI194+AH195 -> 0 | AK195: =AK194+AJ195 -> 22.73 | AM195: =AM194+AL195 -> 0 | AO195: =AO194+AN195 -> 0 | AQ195: 0 | AS195: =AS194+AR195 -> 0 | AU195: =AU194+AT195 -> 0
S196: 4859.386492 | U196: 150 | W196: 0 | Y196: 1022.73 | AA196: 40 | AC196: 1394.266018 | AD196: 0 | AE196: 2456.996018 | AG196: 1000 | AI196: 0 | AK196: 22.73 | AM196: 0 | AO196: 0 | AQ196: 0 | AS196: 0 | AU196: 0
S197: 4859.386492 | U197: =U196+T197 -> 150 | W197: 0 | Y197: 1022.73 | AA197: 40 | AC197: 1394.266018 | AD197: 0 | AE197: 2456.996018 | AG197: 1000 | AI197: 0 | AK197: 22.73 | AM197: 0 | AO197: 0 | AQ197: =AQ196+AP197 -> 0 | AS197: 0 | AU197: 0
S198: 4859.386492 | U198: 150 | W198: 0 | Y198: 1022.73 | AA198: 40 | AC198: 1394.266018 | AD198: 0 | AE198: 2456.996018 | AG198: 1000 | AI198: 0 | AK198: 22.73 | AM198: 0 | AO198: 0 | AQ198: 0 | AS198: 0 | AU198: 0
S199: 4859.386492 | U199: 150 | W199: 0 | Y199: 1022.73 | AA199: 40 | AC199: 1394.266018 | AD199: 0 | AE199: 2456.996018 | AG199: 1000 | AI199: 0 | AK199: 22.73 | AM199: 0 | AO199: 0 | AQ199: 0 | AS199: 0 | AU199: 0
S200: 4859.386492 | U200: 150 | W200: 0 | Y200: 1022.73 | AA200: 40 | AC200: 1394.266018 | AD200: 0 | AE200: 2456.996018 | AG200: 1000 | AI200: 0 | AK200: 22.73 | AM200: 0 | AO200: 0 | AQ200: 0 | AS200: 0 | AU200: 0
... 200 more rows

Sheet Manual Results (hidden)
H1: Re-run Calculator:
B3: MANUAL ENTRY RESULTS
C5: Maternity Scenario | I5: Diabetes Type 2 Scenario
D7: Plan Pays: | F7: =7540-F16 -> 4940 | J7: Plan Pays: | L7: =5400-L16 -> 3810
D10: Patient Pays: | F10: Maternity | J10: Patient Pays: | L10: Diabetes
F11: =F7 -> 4940 | L11: =L7 -> 3810
E12: Deductibles | F12: =MROUND(Mat_Prior_Deduct,10) -> 1020 | K12: Deductibles | L12: =MROUND(Dia_Prior_Deduct,10) -> 1100
E13: Copayments | F13: =MROUND(Mat_Prior_Copay,10) -> 40 | K13: Copayments | L13: =MROUND(Dia_Prior_Copay,10) -> 410
E14: Coinsurance | F14: =MROUND(Mat_Prior_Coinsur,10) -> 1390 | K14: Coinsurance | L14: =MROUND(Dia_Prior_Coinsur,10) -> 0
E15: Exclusions & Limits | F15: =MROUND(Mat_Prior_Excl,10)+MROUND(Mat_Prior_Limit,10) -> 150 | K15: Exclusions & Limits | L15: =MROUND(Dia_Prior_Excl,10)+MROUND(Dia_Prior_Limit,10) -> 80
E16: Total, excl Premiums | F16: =SUM(F12:F15) -> 2600 | K16: Total, excl Premiums | L16: =SUM(L12:L15) -> 1590

Sheet Automated Results (hidden)
H2: Rerun Calculator:
B3: AUTOMATED IMPORT RESULTS
E6: The results for the two scenarios are currently open in a separate file. The resulting CSV file was saved in the same location as the input file.

Sheet Orig Scenario (hidden)
A1: Mat | C1: Check Chrono | E1: Dia | G1: Check Chrono
A2: 2011-01-07 | B2: 8 | E2: 2011-01-03 | F2: 25
A3: 2011-04-01 | B3: 14 | C3: =IF(A3>=A2,"","Err") ->  | E3: 2011-01-03 | F3: 14 | G3: =IF(E3>=E2,"","Err") -> 
A4: 2011-04-01 | B4: 30 | C4: =IF(A4>=A3,"","Err") ->  | E4: 2011-01-03 | F4: 5 | G4: =IF(E4>=E3,"","Err") -> 
A5: 2011-04-01 | B5: 31 | C5: =IF(A5>=A4,"","Err") ->  | E5: 2011-01-03 | F5: 3
A6: 2011-04-01 | B6: 28 | E6: 2011-01-03 | F6: 7
A7: 2011-04-01 | B7: 12 | E7: 2011-01-03 | F7: 4
A8: 2011-04-01 | B8: 35 | E8: 2011-01-03 | F8: 6
A9: 2011-04-01 | B9: 32 | E9: 2011-01-03 | F9: 26
A10: 2011-04-07 | B10: 32 | E10: 2011-01-03 | F10: 1
A11: 2011-04-07 | B11: 8 | E11: 2011-01-03 | F11: 17
A12: 2011-05-27 | B12: 32 | E12: 2011-01-03 | F12: 18
A13: 2011-06-24 | B13: 15 | E13: 2011-01-03 | F13: 19
A14: 2011-06-24 | B14: 16 | E14: 2011-01-03 | F14: 15
A15: 2011-06-24 | B15: 25 | E15: 2011-01-03 | F15: 13
A16: 2011-06-24 | B16: 27 | E16: 2011-01-03 | F16: 8
A17: 2011-06-24 | B17: 23 | E17: 2011-01-03 | F17: 16
A18: 2011-06-24 | B18: 19 | E18: 2011-01-03 | F18: 9
A19: 2011-06-24 | B19: 20 | E19: 2011-01-03 | F19: 12
A20: 2011-06-24 | B20: 21 | E20: 2011-01-03 | F20: 10
A21: 2011-06-24 | B21: 24 | E21: 2011-01-03 | F21: 2
A22: 2011-06-24 | B22: 22 | E22: 2011-01-03 | F22: 11
A23: 2011-06-24 | B23: 12 | E23: 2011-01-03 | F23: 24
A24: 2011-06-24 | B24: 32 | E24: 2011-01-04 | F24: 21
A25: 2011-07-06 | B25: 8 | E25: 2011-01-04 | F25: 20
A26: 2011-07-22 | B26: 32 | E26: 2011-01-06 | F26: 23
A27: 2011-07-22 | B27: 13 | E27: 2011-01-07 | F27: 22
A28: 2011-08-19 | B28: 32 | E28: 2011-01-31 | F28: 17
A29: 2011-09-16 | B29: 17 | E29: 2011-02-02 | F29: 25
A30: 2011-09-16 | B30: 26 | E30: 2011-02-02 | F30: 14
A31: 2011-09-16 | B31: 18 | E31: 2011-02-02 | F31: 18
A32: 2011-09-16 | B32: 12 | E32: 2011-02-02 | F32: 19
A33: 2011-09-16 | B33: 32 | E33: 2011-02-22 | F33: 5
A34: 2011-09-30 | B34: 32 | E34: 2011-02-22 | F34: 4
A35: 2011-10-04 | B35: 8 | E35: 2011-02-28 | F35: 17
A36: 2011-10-14 | B36: 32 | E36: 2011-03-04 | F36: 25
A37: 2011-10-20 | B37: 9 | E37: 2011-03-04 | F37: 14
A38: 2011-10-27 | B38: 9 | E38: 2011-03-04 | F38: 18
A39: 2011-10-28 | B39: 29 | E39: 2011-03-04 | F39: 19
A40: 2011-10-28 | B40: 32 | E40: 2011-03-28 | F40: 26
A41: 2011-10-28 | B41: 10 | E41: 2011-03-28 | F41: 17
A42: 2011-10-28 | B42: 11 | E42: 2011-03-28 | F42: 24
A43: 2011-11-01 | B43: 9 | E43: 2011-04-03 | F43: 25
A44: 2011-11-08 | B44: 9 | E44: 2011-04-03 | F44: 14
A45: 2011-11-11 | B45: 32 | E45: 2011-04-03 | F45: 18
A46: 2011-11-18 | B46: 32 | E46: 2011-04-03 | F46: 19
A47: 2011-11-25 | B47: 32 | E47: 2011-04-13 | F47: 5
A48: 2011-12-02 | B48: 32 | E48: 2011-04-13 | F48: 4
A49: 2011-12-09 | B49: 5 | E49: 2011-04-25 | F49: 17
A50: 2011-12-09 | B50: 4 | E50: 2011-05-03 | F50: 25
A51: 2011-12-09 | B51: 34 | E51: 2011-05-03 | F51: 14
A52: 2011-12-09 | B52: 6 | E52: 2011-05-03 | F52: 18
A53: 2011-12-09 | B53: 3 | E53: 2011-05-03 | F53: 19
A54: 2011-12-11 | B54: 7 | E54: =E39+50 -> 2011-04-23 | F54: 5 | G54: Err
A55: 2011-12-11 | B55: 2 | E55: 2011-05-23 | F55: 17
A56: 2011-12-11 | B56: 1 | E56: 2011-06-02 | F56: 25
A57: 2011-12-23 | B57: 33 | E57: 2011-06-02 | F57: 14
E58: 2011-06-02 | F58: 5
E59: 2011-06-02 | F59: 4
E60: 2011-06-02 | F60: 18
E61: 2011-06-02 | F61: 19
E62: 2011-06-20 | F62: 26
E63: 2011-06-20 | F63: 17
E64: 2011-06-27 | F64: 15
E65: 2011-06-27 | F65: 16
E66: 2011-06-27 | F66: 10
E67: 2011-06-27 | F67: 2
E68: 2011-06-27 | F68: 11 | G68: =IF(E68>=E67,"","Err") -> 
E69: 2011-06-27 | F69: 24
E70: 2011-06-28 | F70: 21
E71: 2011-06-28 | F71: 20
E72: 2011-07-02 | F72: 25
E73: 2011-07-02 | F73: 14
E74: 2011-07-02 | F74: 6
E75: 2011-07-02 | F75: 18
E76: 2011-07-02 | F76: 19
E77: 2011-07-18 | F77: 17
E78: 2011-07-22 | F78: 4
E79: 2011-08-01 | F79: 25
E80: 2011-08-01 | F80: 14
E81: 2011-08-01 | F81: 18
E82: 2011-08-01 | F82: 19
E83: 2011-08-15 | F83: 17
E84: =E65+50 -> 2011-08-16 | F84: 4
E85: 2011-08-31 | F85: 25
E86: 2011-08-31 | F86: 14
E87: 2011-08-31 | F87: 18
E88: 2011-08-31 | F88: 19
E89: 2011-09-10 | F89: 5
E90: 2011-09-10 | F90: 4
E91: 2011-09-12 | F91: 26
E92: 2011-09-12 | F92: 17
E93: 2011-09-26 | F93: 24
E94: 2011-09-30 | F94: 25
E95: 2011-09-30 | F95: 14
E96: 2011-09-30 | F96: 18
E97: 2011-09-30 | F97: 19
E98: 2011-10-03 | F98: 28
E99: 2011-10-03 | F99: 27
E100: 2011-10-03 | F100: 29
E101: 2011-10-03 | F101: 30
E102: 2011-10-10 | F102: 17
E103: 2011-10-30 | F103: 25
E104: 2011-10-30 | F104: 14
E105: 2011-10-30 | F105: 5
E106: 2011-10-30 | F106: 18
E107: 2011-10-30 | F107: 19
E108: 2011-11-07 | F108: 17
E109: 2011-11-29 | F109: 25
E110: 2011-11-29 | F110: 14
E111: 2011-11-29 | F111: 18
E112: 2011-11-29 | F112: 19
E113: 2011-12-05 | F113: 26
E114: 2011-12-05 | F114: 17
E115: 2011-12-19 | F115: 5
E116: 2011-12-19 | F116: 4
E117: 2011-12-29 | F117: 25
E118: 2011-12-29 | F118: 14
E119: 2011-12-29 | F119: 6
E120: 2011-12-29 | F120: 18
E121: 2011-12-29 | F121: 19

Sheet Import (hidden)

Sheet Import Entry (hidden)
A1: =MATCH(INDIRECT("Import!A1"),Cost_Sharing_List_4,0) ->  | B1: =IF(INDIRECT("Import!B1")="","",INDIRECT("Import!B1")) ->  | E1: Import_Codes | H1: =ISERROR(A1) -> TRUE
A2: =MATCH(INDIRECT("Import!C1"),Cost_Sharing_List_4,0) ->  | B2: =IF(INDIRECT("Import!D1")="","",INDIRECT("Import!D1")) ->  | E2: Import_Values1 | H2: =ISERROR(A2) -> TRUE
A3: =MATCH(INDIRECT("Import!E1"),Cost_Sharing_List_4,0) ->  | B3: =IF(INDIRECT("Import!F1")="","",INDIRECT("Import!F1")) ->  | E3: Import_Values2 | H3: TRUE
A4: =MATCH(INDIRECT("Import!G1"),Cost_Sharing_List_4,0) ->  | B4: =IF(INDIRECT("Import!H1")="","",INDIRECT("Import!H1")) ->  | H4: TRUE
A5: =MATCH(INDIRECT("Import!I1"),Cost_Sharing_List_4,0) ->  | B5: =IF(INDIRECT("Import!J1")="","",INDIRECT("Import!J1")) ->  | H5: TRUE
A6: =MATCH(INDIRECT("Import!K1"),Cost_Sharing_List_5,0) ->  | B6: =IF(INDIRECT("Import!L1")="","",INDIRECT("Import!L1")) ->  | H6: TRUE
A7: =MATCH(INDIRECT("Import!M1"),Cost_Sharing_List_4,0) ->  | B7: =IF(INDIRECT("Import!N1")="","",INDIRECT("Import!N1")) ->  | H7: TRUE
A8: =MATCH(INDIRECT("Import!O1"),Cost_Sharing_List_4,0) ->  | B8: =IF(INDIRECT("Import!P1")="","",INDIRECT("Import!P1")) ->  | H8: TRUE
B9: =IF(INDIRECT("Import!Q1")="","",INDIRECT("Import!Q1")) ->  | G9: Error_Count_Import | H9: =COUNTIF(H1:H8,"TRUE") -> 8
B10: =IF(INDIRECT("Import!R1")="","",INDIRECT("Import!R1")) -> 
B11: =IF(INDIRECT("Import!S1")="","",INDIRECT("Import!S1")) -> 
B12: =IF(INDIRECT("Import!T1")="","",INDIRECT("Import!T1")) -> 
B13: =IF(INDIRECT("Import!U1")="","",INDIRECT("Import!U1")) -> 
B15: =IF(INDIRECT("Import!V1")="","",INDIRECT("Import!V1")) -> 
B16: =IF(INDIRECT("Import!W1")="","",INDIRECT("Import!W1")) -> 
B17: =IF(INDIRECT("Import!X1")="","",INDIRECT("Import!X1")) -> 
B18: =IF(INDIRECT("Import!Y1")="","",INDIRECT("Import!Y1")) -> 
B19: =IF(INDIRECT("Import!Z1")="","",INDIRECT("Import!Z1")) -> 
B20: =IF(INDIRECT("Import!AA1")="","",INDIRECT("Import!AA1")) -> 
B21: =IF(INDIRECT("Import!AB1")="","",INDIRECT("Import!AB1")) -> 
B22: =IF(INDIRECT("Import!AC1")="","",INDIRECT("Import!AC1")) -> 

Sheet Import Results (hidden)
A1: No Cost Sharing | C1: Copayment | D1: 10 | E1: Coinsurance | F1: 0.2 | G1: No Cost Sharing | I1: Coinsurance | J1: 0.2 | K1: Copayment | L1: 30 | M1: No Cost Sharing | O1: Copayment | P1: 30 | R1: 1000 | AD1: Maternity | AE1: 5410 | AF1: 1000 | AG1: 50 | AH1: 930 | AI1: 150 | AJ1: 2130 | AK1: Diabetes | AL1: 3810 | AM1: 1000 | AN1: 510 | AO1: 0 | AP1: 80 | AQ1: 1590
A2: No Cost Sharing | C2: Copayment | D2: 10 | E2: Coinsurance | F2: 0.3 | G2: No Cost Sharing | I2: Coinsurance | J2: 0.3 | K2: Copayment | L2: 40 | M2: No Cost Sharing | O2: Copayment | P2: 40 | R2: 1000 | T2: 100 | AD2: Maternity | AE2: 4940 | AF2: 1020 | AG2: 40 | AH2: 1390 | AI2: 150 | AJ2: 2600 | AK2: Diabetes | AL2: 3810 | AM2: 1100 | AN2: 410 | AO2: 0 | AP2: 80 | AQ2: 1590
